Workbook

Sheet Intro

Sheet 1 vol
A1: Vol à partir de l'entier n = | E1: 27 | G1: C'est fini !
G2: Le vol a duré | H2: 111 | I2: étapes
G3: Son altitude maximum a été de | H3: 9232
A4: Etape n°
A5: 0 | B5: 27
A6: 1 | B6: 82
A7: 2 | B7: 41
A8: 3 | B8: 124
A9: 4 | B9: 62
A10: 5 | B10: 31
A11: 6 | B11: 94
A12: 7 | B12: 47
A13: 8 | B13: 142
A14: 9 | B14: 71
A15: 10 | B15: 214
A16: 11 | B16: 107
A17: 12 | B17: 322
A18: 13 | B18: 161
A19: 14 | B19: 484
A20: 15 | B20: 242
A21: 16 | B21: 121
A22: 17 | B22: 364
A23: 18 | B23: 182
A24: 19 | B24: 91
A25: 20 | B25: 274
A26: 21 | B26: 137
A27: 22 | B27: 412
A28: 23 | B28: 206
A29: 24 | B29: 103
A30: 25 | B30: 310
A31: 26 | B31: 155
A32: 27 | B32: 466
A33: 28 | B33: 233
A34: 29 | B34: 700
A35: 30 | B35: 350
A36: 31 | B36: 175
A37: 32 | B37: 526
A38: 33 | B38: 263
A39: 34 | B39: 790
A40: 35 | B40: 395
A41: 36 | B41: 1186
A42: 37 | B42: 593
A43: 38 | B43: 1780
A44: 39 | B44: 890
A45: 40 | B45: 445
A46: 41 | B46: 1336
A47: 42 | B47: 668
A48: 43 | B48: 334
A49: 44 | B49: 167
A50: 45 | B50: 502
A51: 46 | B51: 251
A52: 47 | B52: 754
A53: 48 | B53: 377
A54: 49 | B54: 1132
A55: 50 | B55: 566
A56: 51 | B56: 283
A57: 52 | B57: 850
A58: 53 | B58: 425
A59: 54 | B59: 1276
A60: 55 | B60: 638
A61: 56 | B61: 319
A62: 57 | B62: 958
A63: 58 | B63: 479
A64: 59 | B64: 1438
A65: 60 | B65: 719
A66: 61 | B66: 2158
A67: 62 | B67: 1079
A68: 63 | B68: 3238
A69: 64 | B69: 1619
A70: 65 | B70: 4858
A71: 66 | B71: 2429
A72: 67 | B72: 7288
A73: 68 | B73: 3644
A74: 69 | B74: 1822
A75: 70 | B75: 911
A76: 71 | B76: 2734
A77: 72 | B77: 1367
A78: 73 | B78: 4102
A79: 74 | B79: 2051
A80: 75 | B80: 6154
A81: 76 | B81: 3077
A82: 77 | B82: 9232
A83: 78 | B83: 4616
A84: 79 | B84: 2308
A85: 80 | B85: 1154
A86: 81 | B86: 577
A87: 82 | B87: 1732
A88: 83 | B88: 866
A89: 84 | B89: 433
A90: 85 | B90: 1300
A91: 86 | B91: 650
A92: 87 | B92: 325
A93: 88 | B93: 976
A94: 89 | B94: 488
A95: 90 | B95: 244
A96: 91 | B96: 122
A97: 92 | B97: 61
A98: 93 | B98: 184
A99: 94 | B99: 92
A100: 95 | B100: 46
A101: 96 | B101: 23
A102: 97 | B102: 70
A103: 98 | B103: 35
A104: 99 | B104: 106
A105: 100 | B105: 53
A106: 101 | B106: 160
A107: 102 | B107: 80
A108: 103 | B108: 40
A109: 104 | B109: 20
A110: 105 | B110: 10
A111: 106 | B111: 5
A112: 107 | B112: 16
A113: 108 | B113: 8
A114: 109 | B114: 4
A115: 110 | B115: 2
A116: 111 | B116: 1
A1078: 1073 | B1078: 0
A1079: 1074 | B1079: 0
A1080: 1075 | B1080: 0
A1081: 1076 | B1081: 0
A1082: 1077 | B1082: 0
A1083: 1078 | B1083: 0
A1084: 1079 | B1084: 0
A1085: 1080 | B1085: 0
A1086: 1081 | B1086: 0
A1087: 1082 | B1087: 0
A1088: 1083 | B1088: 0
A1089: 1084 | B1089: 0
A1090: 1085 | B1090: 0
A1091: 1086 | B1091: 0
A1092: 1087 | B1092: 0
A1093: 1088 | B1093: 0
A1094: 1089 | B1094: 0
A1095: 1090 | B1095: 0
A1096: 1091 | B1096: 0
A1097: 1092 | B1097: 0
A1098: 1093 | B1098: 0
A1099: 1094 | B1099: 0
A1100: 1095 | B1100: 0
A1101: 1096 | B1101: 0
A1102: 1097 | B1102: 0
A1103: 1098 | B1103: 0
A1104: 1099 | B1104: 0
A1105: 1100 | B1105: 0
A1106: 1101 | B1106: 0
A1107: 1102 | B1107: 0
A1108: 1103 | B1108: 0
A1109: 1104 | B1109: 0
A1110: 1105 | B1110: 0
A1111: 1106 | B1111: 0
A1112: 1107 | B1112: 0
A1113: 1108 | B1113: 0
A1114: 1109 | B1114: 0
A1115: 1110 | B1115: 0
A1116: 1111 | B1116: 0
A1117: 1112 | B1117: 0
A1118: 1113 | B1118: 0
A1119: 1114 | B1119: 0
A1120: 1115 | B1120: 0
A1121: 1116 | B1121: 0
A1122: 1117 | B1122: 0
A1123: 1118 | B1123: 0
A1124: 1119 | B1124: 0
A1125: 1120 | B1125: 0
A1126: 1121 | B1126: 0
A1127: 1122 | B1127: 0
A1128: 1123 | B1128: 0
A1129: 1124 | B1129: 0
A1130: 1125 | B1130: 0
A1131: 1126 | B1131: 0
A1132: 1127 | B1132: 0
A1133: 1128 | B1133: 0
A1134: 1129 | B1134: 0
A1135: 1130 | B1135: 0
A1136: 1131 | B1136: 0
A1137: 1132 | B1137: 0
A1138: 1133 | B1138: 0
A1139: 1134 | B1139: 0
A1140: 1135 | B1140: 0
A1141: 1136 | B1141: 0
A1142: 1137 | B1142: 0
A1143: 1138 | B1143: 0
A1144: 1139 | B1144: 0
A1145: 1140 | B1145: 0
A1146: 1141 | B1146: 0
A1147: 1142 | B1147: 0
A1148: 1143 | B1148: 0
A1149: 1144 | B1149: 0
A1150: 1145 | B1150: 0
A1151: 1146 | B1151: 0
A1152: 1147 | B1152: 0
A1153: 1148 | B1153: 0
A1154: 1149 | B1154: 0
A1155: 1150 | B1155: 0
A1156: 1151 | B1156: 0
A1157: 1152 | B1157: 0
A1158: 1153 | B1158: 0
A1159: 1154 | B1159: 0
A1160: 1155 | B1160: 0
A1161: 1156 | B1161: 0
... 256 more rows

Sheet vols de 255 entiers
C1: Vols des entiers n compris entre 2 et 256
A4: n = | B4: 2 | C4: 3 | D4: 4 | E4: 5 | F4: 6 | G4: 7 | H4: 8 | I4: 9 | J4: 10 | K4: 11 | L4: 12 | M4: 13 | N4: 14 | O4: 15 | P4: 16 | Q4: 17 | R4: 18 | S4: 19 | T4: 20 | U4: 21 | V4: 22 | W4: 23 | X4: 24 | Y4: 25 | Z4: 26 | AA4: 27 | AB4: 28 | AC4: 29 | AD4: 30 | AE4: 31 | AF4: 32 | AG4: 33 | AH4: 34 | AI4: 35 | AJ4: 36 | AK4: 37 | AL4: 38 | AM4: 39 | AN4: 40 | AO4: 41 | AP4: 42 | AQ4: 43 | AR4: 44 | AS4: 45 | AT4: 46 | AU4: 47 | AV4: 48 | AW4: 49 | AX4: 50 | AY4: 51 | AZ4: 52 | BA4: 53 | BB4: 54 | BC4: 55 | BD4: 56 | BE4: 57 | BF4: 58 | BG4: 59 | BH4: 60 | BI4: 61 | BJ4: 62 | BK4: 63 | BL4: 64 | BM4: 65 | BN4: 66 | BO4: 67 | BP4: 68 | BQ4: 69 | BR4: 70 | BS4: 71 | BT4: 72 | BU4: 73 | BV4: 74 | BW4: 75 | BX4: 76 | BY4: 77 | BZ4: 78 | CA4: 79 | CB4: 80 | CC4: 81 | CD4: 82 | CE4: 83 | CF4: 84 | CG4: 85 | CH4: 86 | CI4: 87 | CJ4: 88 | CK4: 89 | CL4: 90 | CM4: 91 | CN4: 92 | CO4: 93 | CP4: 94 | CQ4: 95 | CR4: 96 | CS4: 97 | CT4: 98 | CU4: 99 | CV4: 100 | CW4: 101 | CX4: 102 | CY4: 103 | CZ4: 104 | DA4: 105 | DB4: 106 | DC4: 107 | DD4: 108 | DE4: 109 | DF4: 110 | DG4: 111 | DH4: 112 | DI4: 113 | DJ4: 114 | DK4: 115 | DL4: 116 | DM4: 117 | DN4: 118 | DO4: 119 | DP4: 120 | DQ4: 121 | DR4: 122 | DS4: 123 | DT4: 124 | DU4: 125 | DV4: 126 | DW4: 127 | DX4: 128 | DY4: 129 | DZ4: 130 | EA4: 131 | EB4: 132 | EC4: 133 | ED4: 134 | EE4: 135 | EF4: 136 | EG4: 137 | EH4: 138 | EI4: 139 | EJ4: 140 | EK4: 141 | EL4: 142 | EM4: 143 | EN4: 144 | EO4: 145 | EP4: 146 | EQ4: 147 | ER4: 148 | ES4: 149 | ET4: 150 | EU4: 151 | EV4: 152 | EW4: 153 | EX4: 154 | EY4: 155 | EZ4: 156 | FA4: 157 | FB4: 158 | FC4: 159 | FD4: 160 | FE4: 161 | FF4: 162 | FG4: 163 | FH4: 164 | FI4: 165 | FJ4: 166 | FK4: 167 | FL4: 168 | FM4: 169 | FN4: 170 | FO4: 171 | FP4: 172 | FQ4: 173 | FR4: 174 | FS4: 175 | FT4: 176 | FU4: 177 | FV4: 178 | FW4: 179 | FX4: 180 | FY4: 181 | FZ4: 182 | GA4: 183 | GB4: 184 | GC4: 185 | GD4: 186 | GE4: 187 | GF4: 188 | GG4: 189 | GH4: 190 | GI4: 191 | GJ4: 192 | GK4: 193 | GL4: 194 | GM4: 195 | GN4: 196 | GO4: 197 | GP4: 198 | GQ4: 199 | GR4: 200 | GS4: 201 | GT4: 202 | GU4: 203 | GV4: 204 | GW4: 205 | GX4: 206 | GY4: 207 | GZ4: 208 | HA4: 209 | HB4: 210 | HC4: 211 | HD4: 212 | HE4: 213 | HF4: 214 | HG4: 215 | HH4: 216 | HI4: 217 | HJ4: 218 | HK4: 219 | HL4: 220 | HM4: 221 | HN4: 222 | HO4: 223 | HP4: 224 | HQ4: 225 | HR4: 226 | HS4: 227 | HT4: 228 | HU4: 229 | HV4: 230 | HW4: 231 | HX4: 232 | HY4: 233 | HZ4: 234 | IA4: 235 | IB4: 236 | IC4: 237 | ID4: 238 | IE4: 239 | IF4: 240 | IG4: 241 | IH4: 242 | II4: 243 | IJ4: 244 | IK4: 245 | IL4: 246 | IM4: 247 | IN4: 248 | IO4: 249 | IP4: 250 | IQ4: 251 | IR4: 252 | IS4: 253 | IT4: 254 | IU4: 255 | IV4: 256
B5: =IF(AND(B4<>1,B4<>""),IF(INT(B4/2)=B4/2,B4/2,3*B4+1),"") -> 1 | C5: =IF(AND(C4<>1,C4<>""),IF(INT(C4/2)=C4/2,C4/2,3*C4+1),"") -> 10 | D5: 2 | E5: 16 | F5: 3 | G5: 22 | H5: 4 | I5: 28 | J5: 5 | K5: 34 | L5: 6 | M5: 40 | N5: 7 | O5: 46 | P5: 8 | Q5: 52 | R5: 9 | S5: 58 | T5: 10 | U5: 64 | V5: 11 | W5: 70 | X5: 12 | Y5: 76 | Z5: 13 | AA5: 82 | AB5: 14 | AC5: 88 | AD5: 15 | AE5: 94 | AF5: 16 | AG5: 100 | AH5: 17 | AI5: 106 | AJ5: 18 | AK5: 112 | AL5: 19 | AM5: 118 | AN5: 20 | AO5: 124 | AP5: 21 | AQ5: 130 | AR5: 22 | AS5: 136 | AT5: 23 | AU5: 142 | AV5: 24 | AW5: 148 | AX5: 25 | AY5: 154 | AZ5: 26 | BA5: 160 | BB5: 27 | BC5: 166 | BD5: 28 | BE5: 172 | BF5: 29 | BG5: 178 | BH5: 30 | BI5: 184 | BJ5: 31 | BK5: 190 | BL5: 32 | BM5: 196 | BN5: 33 | BO5: =IF(AND(BO4<>1,BO4<>""),IF(INT(BO4/2)=BO4/2,BO4/2,3*BO4+1),"") -> 202 | BP5: 34 | BQ5: 208 | BR5: 35 | BS5: 214 | BT5: 36 | BU5: 220 | BV5: 37 | BW5: 226 | BX5: 38 | BY5: 232 | BZ5: 39 | CA5: 238 | CB5: 40 | CC5: 244 | CD5: 41 | CE5: =IF(AND(CE4<>1,CE4<>""),IF(INT(CE4/2)=CE4/2,CE4/2,3*CE4+1),"") -> 250 | CF5: 42 | CG5: 256 | CH5: 43 | CI5: 262 | CJ5: 44 | CK5: 268 | CL5: 45 | CM5: 274 | CN5: 46 | CO5: 280 | CP5: 47 | CQ5: 286 | CR5: 48 | CS5: 292 | CT5: 49 | CU5: =IF(AND(CU4<>1,CU4<>""),IF(INT(CU4/2)=CU4/2,CU4/2,3*CU4+1),"") -> 298 | CV5: 50 | CW5: 304 | CX5: 51 | CY5: 310 | CZ5: 52 | DA5: 316 | DB5: 53 | DC5: 322 | DD5: 54 | DE5: 328 | DF5: 55 | DG5: 334 | DH5: 56 | DI5: 340 | DJ5: 57 | DK5: =IF(AND(DK4<>1,DK4<>""),IF(INT(DK4/2)=DK4/2,DK4/2,3*DK4+1),"") -> 346 | DL5: 58 | DM5: 352 | DN5: 59 | DO5: 358 | DP5: 60 | DQ5: 364 | DR5: 61 | DS5: 370 | DT5: 62 | DU5: 376 | DV5: 63 | DW5: 382 | DX5: 64 | DY5: 388 | DZ5: 65 | EA5: =IF(AND(EA4<>1,EA4<>""),IF(INT(EA4/2)=EA4/2,EA4/2,3*EA4+1),"") -> 394 | EB5: 66 | EC5: 400 | ED5: 67 | EE5: 406 | EF5: 68 | EG5: 412 | EH5: 69 | EI5: 418 | EJ5: 70 | EK5: 424 | EL5: 71 | EM5: 430 | EN5: 72 | EO5: 436 | EP5: 73 | EQ5: =IF(AND(EQ4<>1,EQ4<>""),IF(INT(EQ4/2)=EQ4/2,EQ4/2,3*EQ4+1),"") -> 442 | ER5: 74 | ES5: 448 | ET5: 75 | EU5: 454 | EV5: 76 | EW5: 460 | EX5: 77 | EY5: 466 | EZ5: 78 | FA5: 472 | FB5: 79 | FC5: 478 | FD5: 80 | FE5: 484 | FF5: 81 | FG5: =IF(AND(FG4<>1,FG4<>""),IF(INT(FG4/2)=FG4/2,FG4/2,3*FG4+1),"") -> 490 | FH5: 82 | FI5: 496 | FJ5: 83 | FK5: 502 | FL5: 84 | FM5: 508 | FN5: 85 | FO5: 514 | FP5: 86 | FQ5: 520 | FR5: 87 | FS5: 526 | FT5: 88 | FU5: 532 | FV5: 89 | FW5: =IF(AND(FW4<>1,FW4<>""),IF(INT(FW4/2)=FW4/2,FW4/2,3*FW4+1),"") -> 538 | FX5: 90 | FY5: 544 | FZ5: 91 | GA5: 550 | GB5: 92 | GC5: 556 | GD5: 93 | GE5: 562 | GF5: 94 | GG5: 568 | GH5: 95 | GI5: 574 | GJ5: 96 | GK5: 580 | GL5: 97 | GM5: =IF(AND(GM4<>1,GM4<>""),IF(INT(GM4/2)=GM4/2,GM4/2,3*GM4+1),"") -> 586 | GN5: 98 | GO5: 592 | GP5: 99 | GQ5: 598 | GR5: 100 | GS5: 604 | GT5: 101 | GU5: 610 | GV5: 102 | GW5: 616 | GX5: 103 | GY5: 622 | GZ5: 104 | HA5: 628 | HB5: 105 | HC5: =IF(AND(HC4<>1,HC4<>""),IF(INT(HC4/2)=HC4/2,HC4/2,3*HC4+1),"") -> 634 | HD5: 106 | HE5: 640 | HF5: 107 | HG5: 646 | HH5: 108 | HI5: 652 | HJ5: 109 | HK5: 658 | HL5: 110 | HM5: 664 | HN5: 111 | HO5: 670 | HP5: 112 | HQ5: 676 | HR5: 113 | HS5: =IF(AND(HS4<>1,HS4<>""),IF(INT(HS4/2)=HS4/2,HS4/2,3*HS4+1),"") -> 682 | HT5: 114 | HU5: 688 | HV5: 115 | HW5: 694 | HX5: 116 | HY5: 700 | HZ5: 117 | IA5: 706 | IB5: 118 | IC5: 712 | ID5: 119 | IE5: 718 | IF5: 120 | IG5: 724 | IH5: 121 | II5: =IF(AND(II4<>1,II4<>""),IF(INT(II4/2)=II4/2,II4/2,3*II4+1),"") -> 730 | IJ5: 122 | IK5: 736 | IL5: 123 | IM5: 742 | IN5: 124 | IO5: 748 | IP5: 125 | IQ5: 754 | IR5: 126 | IS5: 760 | IT5: 127 | IU5: 766 | IV5: 128
B6: =IF(AND(B5<>1,B5<>""),IF(INT(B5/2)=B5/2,B5/2,3*B5+1),"") ->  | C6: 5 | D6: 1 | E6: 8 | F6: 10 | G6: 11 | H6: 2 | I6: 14 | J6: 16 | K6: 17 | L6: 3 | M6: 20 | N6: 22 | O6: 23 | P6: 4 | Q6: 26 | R6: 28 | S6: 29 | T6: 5 | U6: 32 | V6: 34 | W6: 35 | X6: 6 | Y6: 38 | Z6: 40 | AA6: 41 | AB6: 7 | AC6: 44 | AD6: 46 | AE6: 47 | AF6: 8 | AG6: 50 | AH6: 52 | AI6: 53 | AJ6: 9 | AK6: 56 | AL6: 58 | AM6: 59 | AN6: 10 | AO6: 62 | AP6: 64 | AQ6: 65 | AR6: 11 | AS6: 68 | AT6: 70 | AU6: 71 | AV6: 12 | AW6: 74 | AX6: 76 | AY6: 77 | AZ6: 13 | BA6: 80 | BB6: 82 | BC6: 83 | BD6: 14 | BE6: 86 | BF6: 88 | BG6: 89 | BH6: 15 | BI6: 92 | BJ6: 94 | BK6: 95 | BL6: 16 | BM6: 98 | BN6: 100 | BO6: 101 | BP6: 17 | BQ6: 104 | BR6: 106 | BS6: 107 | BT6: 18 | BU6: 110 | BV6: 112 | BW6: 113 | BX6: 19 | BY6: 116 | BZ6: 118 | CA6: 119 | CB6: 20 | CC6: 122 | CD6: 124 | CE6: 125 | CF6: 21 | CG6: 128 | CH6: 130 | CI6: 131 | CJ6: 22 | CK6: 134 | CL6: 136 | CM6: 137 | CN6: 23 | CO6: 140 | CP6: 142 | CQ6: 143 | CR6: 24 | CS6: 146 | CT6: 148 | CU6: 149 | CV6: 25 | CW6: 152 | CX6: 154 | CY6: 155 | CZ6: 26 | DA6: 158 | DB6: 160 | DC6: 161 | DD6: 27 | DE6: 164 | DF6: 166 | DG6: 167 | DH6: 28 | DI6: 170 | DJ6: 172 | DK6: 173 | DL6: 29 | DM6: 176 | DN6: 178 | DO6: 179 | DP6: 30 | DQ6: 182 | DR6: 184 | DS6: 185 | DT6: 31 | DU6: 188 | DV6: 190 | DW6: 191 | DX6: 32 | DY6: 194 | DZ6: 196 | EA6: 197 | EB6: 33 | EC6: 200 | ED6: 202 | EE6: 203 | EF6: 34 | EG6: 206 | EH6: 208 | EI6: 209 | EJ6: 35 | EK6: 212 | EL6: 214 | EM6: 215 | EN6: 36 | EO6: 218 | EP6: 220 | EQ6: 221 | ER6: 37 | ES6: 224 | ET6: 226 | EU6: 227 | EV6: 38 | EW6: 230 | EX6: 232 | EY6: 233 | EZ6: 39 | FA6: 236 | FB6: 238 | FC6: 239 | FD6: 40 | FE6: 242 | FF6: 244 | FG6: 245 | FH6: 41 | FI6: 248 | FJ6: 250 | FK6: 251 | FL6: 42 | FM6: 254 | FN6: 256 | FO6: 257 | FP6: 43 | FQ6: 260 | FR6: 262 | FS6: 263 | FT6: 44 | FU6: 266 | FV6: 268 | FW6: 269 | FX6: 45 | FY6: 272 | FZ6: 274 | GA6: 275 | GB6: 46 | GC6: 278 | GD6: 280 | GE6: 281 | GF6: 47 | GG6: 284 | GH6: 286 | GI6: 287 | GJ6: 48 | GK6: 290 | GL6: 292 | GM6: 293 | GN6: 49 | GO6: 296 | GP6: 298 | GQ6: 299 | GR6: 50 | GS6: 302 | GT6: 304 | GU6: 305 | GV6: 51 | GW6: 308 | GX6: 310 | GY6: 311 | GZ6: 52 | HA6: 314 | HB6: 316 | HC6: 317 | HD6: 53 | HE6: 320 | HF6: 322 | HG6: 323 | HH6: 54 | HI6: 326 | HJ6: 328 | HK6: 329 | HL6: 55 | HM6: 332 | HN6: 334 | HO6: 335 | HP6: 56 | HQ6: 338 | HR6: 340 | HS6: 341 | HT6: 57 | HU6: 344 | HV6: 346 | HW6: 347 | HX6: 58 | HY6: 350 | HZ6: 352 | IA6: 353 | IB6: 59 | IC6: 356 | ID6: 358 | IE6: 359 | IF6: 60 | IG6: 362 | IH6: 364 | II6: 365 | IJ6: 61 | IK6: 368 | IL6: 370 | IM6: 371 | IN6: 62 | IO6: 374 | IP6: 376 | IQ6: 377 | IR6: 63 | IS6: 380 | IT6: 382 | IU6: 383 | IV6: 64
C7: 16 | E7: 4 | F7: 5 | G7: 34 | H7: 1 | I7: 7 | J7: 8 | K7: 52 | L7: 10 | M7: 10 | N7: 11 | O7: 70 | P7: 2 | Q7: 13 | R7: 14 | S7: 88 | T7: 16 | U7: 16 | V7: 17 | W7: 106 | X7: 3 | Y7: 19 | Z7: 20 | AA7: 124 | AB7: 22 | AC7: 22 | AD7: 23 | AE7: 142 | AF7: 4 | AG7: 25 | AH7: 26 | AI7: 160 | AJ7: 28 | AK7: 28 | AL7: 29 | AM7: 178 | AN7: 5 | AO7: 31 | AP7: 32 | AQ7: 196 | AR7: 34 | AS7: 34 | AT7: 35 | AU7: 214 | AV7: 6 | AW7: 37 | AX7: 38 | AY7: 232 | AZ7: 40 | BA7: 40 | BB7: 41 | BC7: 250 | BD7: 7 | BE7: 43 | BF7: 44 | BG7: 268 | BH7: 46 | BI7: 46 | BJ7: 47 | BK7: 286 | BL7: 8 | BM7: 49 | BN7: 50 | BO7: 304 | BP7: 52 | BQ7: 52 | BR7: 53 | BS7: 322 | BT7: 9 | BU7: 55 | BV7: 56 | BW7: 340 | BX7: 58 | BY7: 58 | BZ7: 59 | CA7: 358 | CB7: 10 | CC7: 61 | CD7: 62 | CE7: 376 | CF7: 64 | CG7: 64 | CH7: 65 | CI7: 394 | CJ7: 11 | CK7: 67 | CL7: 68 | CM7: 412 | CN7: 70 | CO7: 70 | CP7: 71 | CQ7: 430 | CR7: 12 | CS7: 73 | CT7: 74 | CU7: 448 | CV7: 76 | CW7: 76 | CX7: 77 | CY7: 466 | CZ7: 13 | DA7: 79 | DB7: 80 | DC7: 484 | DD7: 82 | DE7: 82 | DF7: 83 | DG7: 502 | DH7: 14 | DI7: 85 | DJ7: 86 | DK7: 520 | DL7: 88 | DM7: 88 | DN7: 89 | DO7: 538 | DP7: 15 | DQ7: 91 | DR7: 92 | DS7: 556 | DT7: 94 | DU7: 94 | DV7: 95 | DW7: 574 | DX7: 16 | DY7: 97 | DZ7: 98 | EA7: 592 | EB7: 100 | EC7: 100 | ED7: 101 | EE7: 610 | EF7: 17 | EG7: 103 | EH7: 104 | EI7: 628 | EJ7: 106 | EK7: 106 | EL7: 107 | EM7: 646 | EN7: 18 | EO7: 109 | EP7: 110 | EQ7: 664 | ER7: 112 | ES7: 112 | ET7: 113 | EU7: 682 | EV7: 19 | EW7: 115 | EX7: 116 | EY7: 700 | EZ7: 118 | FA7: 118 | FB7: 119 | FC7: 718 | FD7: 20 | FE7: 121 | FF7: 122 | FG7: 736 | FH7: 124 | FI7: 124 | FJ7: 125 | FK7: 754 | FL7: 21 | FM7: 127 | FN7: 128 | FO7: 772 | FP7: 130 | FQ7: 130 | FR7: 131 | FS7: 790 | FT7: 22 | FU7: 133 | FV7: 134 | FW7: 808 | FX7: 136 | FY7: 136 | FZ7: 137 | GA7: 826 | GB7: 23 | GC7: 139 | GD7: 140 | GE7: 844 | GF7: 142 | GG7: 142 | GH7: 143 | GI7: 862 | GJ7: 24 | GK7: 145 | GL7: 146 | GM7: 880 | GN7: 148 | GO7: 148 | GP7: 149 | GQ7: 898 | GR7: 25 | GS7: 151 | GT7: 152 | GU7: 916 | GV7: 154 | GW7: 154 | GX7: 155 | GY7: 934 | GZ7: 26 | HA7: 157 | HB7: 158 | HC7: 952 | HD7: 160 | HE7: 160 | HF7: 161 | HG7: 970 | HH7: 27 | HI7: 163 | HJ7: 164 | HK7: 988 | HL7: 166 | HM7: 166 | HN7: 167 | HO7: 1006 | HP7: 28 | HQ7: 169 | HR7: 170 | HS7: 1024 | HT7: 172 | HU7: 172 | HV7: 173 | HW7: 1042 | HX7: 29 | HY7: 175 | HZ7: 176 | IA7: 1060 | IB7: 178 | IC7: 178 | ID7: 179 | IE7: 1078 | IF7: 30 | IG7: 181 | IH7: 182 | II7: 1096 | IJ7: 184 | IK7: 184 | IL7: 185 | IM7: 1114 | IN7: 31 | IO7: 187 | IP7: 188 | IQ7: 1132 | IR7: 190 | IS7: 190 | IT7: 191 | IU7: 1150 | IV7: 32
C8: 8 | E8: 2 | F8: 16 | G8: 17 | I8: 22 | J8: 4 | K8: 26 | L8: 5 | M8: 5 | N8: 34 | O8: 35 | P8: 1 | Q8: 40 | R8: 7 | S8: 44 | T8: 8 | U8: 8 | V8: 52 | W8: 53 | X8: 10 | Y8: 58 | Z8: 10 | AA8: 62 | AB8: 11 | AC8: 11 | AD8: 70 | AE8: 71 | AF8: 2 | AG8: 76 | AH8: 13 | AI8: 80 | AJ8: 14 | AK8: 14 | AL8: 88 | AM8: 89 | AN8: 16 | AO8: 94 | AP8: 16 | AQ8: 98 | AR8: 17 | AS8: 17 | AT8: 106 | AU8: 107 | AV8: 3 | AW8: 112 | AX8: 19 | AY8: 116 | AZ8: 20 | BA8: 20 | BB8: 124 | BC8: 125 | BD8: 22 | BE8: 130 | BF8: 22 | BG8: 134 | BH8: 23 | BI8: 23 | BJ8: 142 | BK8: 143 | BL8: 4 | BM8: 148 | BN8: =IF(AND(BN7<>1,BN7<>""),IF(INT(BN7/2)=BN7/2,BN7/2,3*BN7+1),"") -> 25 | BO8: 152 | BP8: 26 | BQ8: 26 | BR8: 160 | BS8: 161 | BT8: 28 | BU8: 166 | BV8: 28 | BW8: 170 | BX8: 29 | BY8: 29 | BZ8: 178 | CA8: 179 | CB8: 5 | CC8: 184 | CD8: 31 | CE8: 188 | CF8: 32 | CG8: 32 | CH8: 196 | CI8: 197 | CJ8: 34 | CK8: 202 | CL8: 34 | CM8: 206 | CN8: 35 | CO8: 35 | CP8: 214 | CQ8: 215 | CR8: 6 | CS8: 220 | CT8: 37 | CU8: 224 | CV8: 38 | CW8: 38 | CX8: 232 | CY8: 233 | CZ8: 40 | DA8: 238 | DB8: 40 | DC8: 242 | DD8: 41 | DE8: 41 | DF8: 250 | DG8: 251 | DH8: 7 | DI8: 256 | DJ8: 43 | DK8: 260 | DL8: 44 | DM8: 44 | DN8: 268 | DO8: 269 | DP8: 46 | DQ8: 274 | DR8: 46 | DS8: 278 | DT8: 47 | DU8: 47 | DV8: 286 | DW8: 287 | DX8: 8 | DY8: 292 | DZ8: 49 | EA8: 296 | EB8: 50 | EC8: 50 | ED8: 304 | EE8: 305 | EF8: 52 | EG8: 310 | EH8: 52 | EI8: 314 | EJ8: 53 | EK8: 53 | EL8: 322 | EM8: 323 | EN8: 9 | EO8: 328 | EP8: 55 | EQ8: 332 | ER8: 56 | ES8: 56 | ET8: 340 | EU8: 341 | EV8: 58 | EW8: 346 | EX8: 58 | EY8: 350 | EZ8: 59 | FA8: 59 | FB8: 358 | FC8: 359 | FD8: 10 | FE8: 364 | FF8: 61 | FG8: 368 | FH8: 62 | FI8: 62 | FJ8: 376 | FK8: 377 | FL8: 64 | FM8: 382 | FN8: 64 | FO8: 386 | FP8: 65 | FQ8: 65 | FR8: 394 | FS8: 395 | FT8: 11 | FU8: 400 | FV8: 67 | FW8: 404 | FX8: 68 | FY8: 68 | FZ8: 412 | GA8: 413 | GB8: 70 | GC8: 418 | GD8: 70 | GE8: 422 | GF8: 71 | GG8: 71 | GH8: 430 | GI8: 431 | GJ8: 12 | GK8: 436 | GL8: 73 | GM8: 440 | GN8: 74 | GO8: 74 | GP8: 448 | GQ8: 449 | GR8: 76 | GS8: 454 | GT8: 76 | GU8: 458 | GV8: 77 | GW8: 77 | GX8: 466 | GY8: 467 | GZ8: 13 | HA8: 472 | HB8: 79 | HC8: 476 | HD8: 80 | HE8: 80 | HF8: 484 | HG8: 485 | HH8: 82 | HI8: 490 | HJ8: 82 | HK8: 494 | HL8: 83 | HM8: 83 | HN8: 502 | HO8: 503 | HP8: 14 | HQ8: 508 | HR8: 85 | HS8: 512 | HT8: 86 | HU8: 86 | HV8: 520 | HW8: 521 | HX8: 88 | HY8: 526 | HZ8: 88 | IA8: 530 | IB8: 89 | IC8: 89 | ID8: 538 | IE8: 539 | IF8: 15 | IG8: 544 | IH8: 91 | II8: 548 | IJ8: 92 | IK8: 92 | IL8: 556 | IM8: 557 | IN8: 94 | IO8: 562 | IP8: 94 | IQ8: 566 | IR8: 95 | IS8: 95 | IT8: 574 | IU8: 575 | IV8: 16
C9: 4 | E9: 1 | F9: 8 | G9: 52 | I9: 11 | J9: 2 | K9: 13 | L9: 16 | M9: 16 | N9: 17 | O9: 106 | Q9: 20 | R9: =IF(AND(R8<>1,R8<>""),IF(INT(R8/2)=R8/2,R8/2,3*R8+1),"") -> 22 | S9: 22 | T9: 4 | U9: 4 | V9: 26 | W9: 160 | X9: 5 | Y9: 29 | Z9: 5 | AA9: 31 | AB9: 34 | AC9: 34 | AD9: 35 | AE9: 214 | AF9: 1 | AG9: 38 | AH9: =IF(AND(AH8<>1,AH8<>""),IF(INT(AH8/2)=AH8/2,AH8/2,3*AH8+1),"") -> 40 | AI9: 40 | AJ9: 7 | AK9: 7 | AL9: 44 | AM9: 268 | AN9: 8 | AO9: 47 | AP9: 8 | AQ9: 49 | AR9: 52 | AS9: 52 | AT9: 53 | AU9: 322 | AV9: 10 | AW9: 56 | AX9: =IF(AND(AX8<>1,AX8<>""),IF(INT(AX8/2)=AX8/2,AX8/2,3*AX8+1),"") -> 58 | AY9: 58 | AZ9: 10 | BA9: 10 | BB9: 62 | BC9: 376 | BD9: 11 | BE9: 65 | BF9: 11 | BG9: 67 | BH9: 70 | BI9: 70 | BJ9: 71 | BK9: 430 | BL9: 2 | BM9: 74 | BN9: 76 | BO9: 76 | BP9: 13 | BQ9: 13 | BR9: 80 | BS9: 484 | BT9: 14 | BU9: 83 | BV9: 14 | BW9: 85 | BX9: 88 | BY9: 88 | BZ9: 89 | CA9: 538 | CB9: 16 | CC9: 92 | CD9: 94 | CE9: 94 | CF9: 16 | CG9: 16 | CH9: 98 | CI9: 592 | CJ9: 17 | CK9: 101 | CL9: 17 | CM9: 103 | CN9: 106 | CO9: 106 | CP9: 107 | CQ9: 646 | CR9: 3 | CS9: 110 | CT9: 112 | CU9: 112 | CV9: 19 | CW9: 19 | CX9: 116 | CY9: 700 | CZ9: 20 | DA9: 119 | DB9: 20 | DC9: 121 | DD9: 124 | DE9: 124 | DF9: 125 | DG9: 754 | DH9: 22 | DI9: 128 | DJ9: 130 | DK9: 130 | DL9: 22 | DM9: 22 | DN9: 134 | DO9: 808 | DP9: 23 | DQ9: 137 | DR9: 23 | DS9: 139 | DT9: 142 | DU9: 142 | DV9: 143 | DW9: 862 | DX9: 4 | DY9: 146 | DZ9: 148 | EA9: 148 | EB9: 25 | EC9: 25 | ED9: 152 | EE9: 916 | EF9: 26 | EG9: 155 | EH9: 26 | EI9: 157 | EJ9: 160 | EK9: 160 | EL9: 161 | EM9: 970 | EN9: 28 | EO9: 164 | EP9: 166 | EQ9: 166 | ER9: 28 | ES9: 28 | ET9: 170 | EU9: 1024 | EV9: 29 | EW9: 173 | EX9: 29 | EY9: 175 | EZ9: 178 | FA9: 178 | FB9: 179 | FC9: 1078 | FD9: 5 | FE9: 182 | FF9: 184 | FG9: 184 | FH9: 31 | FI9: 31 | FJ9: 188 | FK9: 1132 | FL9: 32 | FM9: 191 | FN9: 32 | FO9: 193 | FP9: 196 | FQ9: 196 | FR9: 197 | FS9: 1186 | FT9: 34 | FU9: 200 | FV9: 202 | FW9: 202 | FX9: 34 | FY9: 34 | FZ9: 206 | GA9: 1240 | GB9: 35 | GC9: 209 | GD9: 35 | GE9: 211 | GF9: 214 | GG9: 214 | GH9: 215 | GI9: 1294 | GJ9: 6 | GK9: 218 | GL9: 220 | GM9: 220 | GN9: 37 | GO9: 37 | GP9: 224 | GQ9: 1348 | GR9: 38 | GS9: 227 | GT9: 38 | GU9: 229 | GV9: 232 | GW9: 232 | GX9: 233 | GY9: 1402 | GZ9: 40 | HA9: 236 | HB9: 238 | HC9: 238 | HD9: 40 | HE9: 40 | HF9: 242 | HG9: 1456 | HH9: 41 | HI9: 245 | HJ9: 41 | HK9: 247 | HL9: 250 | HM9: 250 | HN9: 251 | HO9: 1510 | HP9: 7 | HQ9: 254 | HR9: 256 | HS9: 256 | HT9: 43 | HU9: 43 | HV9: 260 | HW9: 1564 | HX9: 44 | HY9: 263 | HZ9: 44 | IA9: 265 | IB9: 268 | IC9: 268 | ID9: 269 | IE9: 1618 | IF9: 46 | IG9: 272 | IH9: 274 | II9: 274 | IJ9: 46 | IK9: 46 | IL9: 278 | IM9: 1672 | IN9: 47 | IO9: 281 | IP9: 47 | IQ9: 283 | IR9: 286 | IS9: 286 | IT9: 287 | IU9: 1726 | IV9: 8
C10: 2 | F10: 4 | G10: 26 | I10: 34 | J10: 1 | K10: 40 | L10: 8 | M10: 8 | N10: 52 | O10: 53 | Q10: 10 | R10: 11 | S10: 11 | T10: 2 | U10: 2 | V10: 13 | W10: 80 | X10: 16 | Y10: 88 | Z10: 16 | AA10: 94 | AB10: 17 | AC10: 17 | AD10: 106 | AE10: 107 | AG10: 19 | AH10: 20 | AI10: 20 | AJ10: 22 | AK10: 22 | AL10: 22 | AM10: 134 | AN10: 4 | AO10: 142 | AP10: 4 | AQ10: 148 | AR10: 26 | AS10: 26 | AT10: 160 | AU10: 161 | AV10: 5 | AW10: 28 | AX10: 29 | AY10: 29 | AZ10: 5 | BA10: 5 | BB10: 31 | BC10: 188 | BD10: 34 | BE10: 196 | BF10: 34 | BG10: 202 | BH10: 35 | BI10: 35 | BJ10: 214 | BK10: 215 | BL10: 1 | BM10: 37 | BN10: 38 | BO10: 38 | BP10: 40 | BQ10: 40 | BR10: 40 | BS10: 242 | BT10: 7 | BU10: 250 | BV10: 7 | BW10: 256 | BX10: 44 | BY10: 44 | BZ10: 268 | CA10: 269 | CB10: 8 | CC10: 46 | CD10: 47 | CE10: 47 | CF10: 8 | CG10: 8 | CH10: 49 | CI10: 296 | CJ10: 52 | CK10: 304 | CL10: 52 | CM10: 310 | CN10: 53 | CO10: 53 | CP10: 322 | CQ10: 323 | CR10: 10 | CS10: 55 | CT10: 56 | CU10: 56 | CV10: 58 | CW10: 58 | CX10: 58 | CY10: 350 | CZ10: 10 | DA10: 358 | DB10: 10 | DC10: 364 | DD10: 62 | DE10: 62 | DF10: 376 | DG10: 377 | DH10: 11 | DI10: 64 | DJ10: 65 | DK10: 65 | DL10: 11 | DM10: 11 | DN10: 67 | DO10: 404 | DP10: 70 | DQ10: 412 | DR10: 70 | DS10: 418 | DT10: 71 | DU10: 71 | DV10: 430 | DW10: 431 | DX10: 2 | DY10: 73 | DZ10: 74 | EA10: 74 | EB10: 76 | EC10: 76 | ED10: 76 | EE10: 458 | EF10: 13 | EG10: 466 | EH10: 13 | EI10: 472 | EJ10: 80 | EK10: 80 | EL10: 484 | EM10: 485 | EN10: 14 | EO10: 82 | EP10: 83 | EQ10: 83 | ER10: 14 | ES10: 14 | ET10: 85 | EU10: 512 | EV10: 88 | EW10: 520 | EX10: 88 | EY10: 526 | EZ10: 89 | FA10: 89 | FB10: 538 | FC10: 539 | FD10: 16 | FE10: 91 | FF10: 92 | FG10: 92 | FH10: 94 | FI10: 94 | FJ10: 94 | FK10: 566 | FL10: 16 | FM10: 574 | FN10: 16 | FO10: 580 | FP10: 98 | FQ10: 98 | FR10: 592 | FS10: 593 | FT10: 17 | FU10: 100 | FV10: 101 | FW10: 101 | FX10: 17 | FY10: 17 | FZ10: 103 | GA10: 620 | GB10: 106 | GC10: 628 | GD10: 106 | GE10: 634 | GF10: 107 | GG10: 107 | GH10: 646 | GI10: 647 | GJ10: 3 | GK10: 109 | GL10: 110 | GM10: 110 | GN10: 112 | GO10: 112 | GP10: 112 | GQ10: 674 | GR10: 19 | GS10: 682 | GT10: 19 | GU10: 688 | GV10: 116 | GW10: 116 | GX10: 700 | GY10: 701 | GZ10: 20 | HA10: 118 | HB10: 119 | HC10: 119 | HD10: 20 | HE10: 20 | HF10: 121 | HG10: 728 | HH10: 124 | HI10: 736 | HJ10: 124 | HK10: 742 | HL10: 125 | HM10: 125 | HN10: 754 | HO10: 755 | HP10: 22 | HQ10: 127 | HR10: 128 | HS10: 128 | HT10: 130 | HU10: 130 | HV10: 130 | HW10: 782 | HX10: 22 | HY10: 790 | HZ10: 22 | IA10: 796 | IB10: 134 | IC10: 134 | ID10: 808 | IE10: 809 | IF10: 23 | IG10: 136 | IH10: 137 | II10: 137 | IJ10: 23 | IK10: 23 | IL10: 139 | IM10: 836 | IN10: 142 | IO10: 844 | IP10: 142 | IQ10: 850 | IR10: 143 | IS10: 143 | IT10: 862 | IU10: 863 | IV10: 4
C11: 1 | F11: 2 | G11: 13 | I11: 17 | K11: 20 | L11: 4 | M11: 4 | N11: 26 | O11: 160 | Q11: 5 | R11: 34 | S11: 34 | T11: 1 | U11: 1 | V11: 40 | W11: 40 | X11: 8 | Y11: 44 | Z11: 8 | AA11: 47 | AB11: 52 | AC11: 52 | AD11: 53 | AE11: 322 | AG11: 58 | AH11: 10 | AI11: 10 | AJ11: 11 | AK11: 11 | AL11: 11 | AM11: 67 | AN11: 2 | AO11: 71 | AP11: 2 | AQ11: 74 | AR11: 13 | AS11: 13 | AT11: 80 | AU11: 484 | AV11: 16 | AW11: 14 | AX11: 88 | AY11: 88 | AZ11: 16 | BA11: 16 | BB11: 94 | BC11: 94 | BD11: 17 | BE11: 98 | BF11: 17 | BG11: 101 | BH11: 106 | BI11: 106 | BJ11: 107 | BK11: 646 | BM11: 112 | BN11: 19 | BO11: 19 | BP11: 20 | BQ11: 20 | BR11: 20 | BS11: 121 | BT11: 22 | BU11: 125 | BV11: 22 | BW11: 128 | BX11: 22 | BY11: 22 | BZ11: 134 | CA11: 808 | CB11: 4 | CC11: 23 | CD11: 142 | CE11: 142 | CF11: 4 | CG11: 4 | CH11: 148 | CI11: 148 | CJ11: 26 | CK11: 152 | CL11: 26 | CM11: 155 | CN11: 160 | CO11: 160 | CP11: 161 | CQ11: 970 | CR11: 5 | CS11: 166 | CT11: 28 | CU11: 28 | CV11: 29 | CW11: 29 | CX11: 29 | CY11: 175 | CZ11: 5 | DA11: 179 | DB11: 5 | DC11: 182 | DD11: 31 | DE11: 31 | DF11: 188 | DG11: 1132 | DH11: 34 | DI11: 32 | DJ11: 196 | DK11: 196 | DL11: 34 | DM11: 34 | DN11: 202 | DO11: 202 | DP11: 35 | DQ11: 206 | DR11: 35 | DS11: 209 | DT11: 214 | DU11: 214 | DV11: 215 | DW11: 1294 | DX11: 1 | DY11: 220 | DZ11: 37 | EA11: 37 | EB11: 38 | EC11: 38 | ED11: 38 | EE11: 229 | EF11: 40 | EG11: 233 | EH11: 40 | EI11: 236 | EJ11: 40 | EK11: 40 | EL11: 242 | EM11: 1456 | EN11: 7 | EO11: 41 | EP11: 250 | EQ11: 250 | ER11: 7 | ES11: 7 | ET11: 256 | EU11: 256 | EV11: 44 | EW11: 260 | EX11: 44 | EY11: 263 | EZ11: 268 | FA11: 268 | FB11: 269 | FC11: 1618 | FD11: 8 | FE11: 274 | FF11: 46 | FG11: 46 | FH11: 47 | FI11: 47 | FJ11: 47 | FK11: 283 | FL11: 8 | FM11: 287 | FN11: 8 | FO11: 290 | FP11: 49 | FQ11: 49 | FR11: 296 | FS11: 1780 | FT11: 52 | FU11: 50 | FV11: 304 | FW11: 304 | FX11: 52 | FY11: 52 | FZ11: 310 | GA11: 310 | GB11: 53 | GC11: 314 | GD11: 53 | GE11: 317 | GF11: 322 | GG11: 322 | GH11: 323 | GI11: 1942 | GJ11: 10 | GK11: 328 | GL11: 55 | GM11: 55 | GN11: 56 | GO11: 56 | GP11: 56 | GQ11: 337 | GR11: 58 | GS11: 341 | GT11: 58 | GU11: 344 | GV11: 58 | GW11: 58 | GX11: 350 | GY11: 2104 | GZ11: 10 | HA11: 59 | HB11: 358 | HC11: 358 | HD11: 10 | HE11: 10 | HF11: 364 | HG11: 364 | HH11: 62 | HI11: 368 | HJ11: 62 | HK11: 371 | HL11: 376 | HM11: 376 | HN11: 377 | HO11: 2266 | HP11: 11 | HQ11: 382 | HR11: 64 | HS11: 64 | HT11: 65 | HU11: 65 | HV11: 65 | HW11: 391 | HX11: 11 | HY11: 395 | HZ11: 11 | IA11: 398 | IB11: 67 | IC11: 67 | ID11: 404 | IE11: 2428 | IF11: 70 | IG11: 68 | IH11: 412 | II11: 412 | IJ11: 70 | IK11: 70 | IL11: 418 | IM11: 418 | IN11: 71 | IO11: 422 | IP11: 71 | IQ11: 425 | IR11: 430 | IS11: 430 | IT11: 431 | IU11: 2590 | IV11: 2
F12: 1 | G12: 40 | I12: 52 | K12: 10 | L12: 2 | M12: 2 | N12: 13 | O12: 80 | Q12: 16 | R12: 17 | S12: 17 | V12: 20 | W12: 20 | X12: 4 | Y12: 22 | Z12: 4 | AA12: 142 | AB12: 26 | AC12: 26 | AD12: 160 | AE12: 161 | AG12: 29 | AH12: 5 | AI12: 5 | AJ12: 34 | AK12: 34 | AL12: 34 | AM12: 202 | AN12: 1 | AO12: 214 | AP12: 1 | AQ12: 37 | AR12: 40 | AS12: 40 | AT12: 40 | AU12: 242 | AV12: 8 | AW12: 7 | AX12: 44 | AY12: 44 | AZ12: 8 | BA12: 8 | BB12: 47 | BC12: 47 | BD12: 52 | BE12: 49 | BF12: 52 | BG12: 304 | BH12: 53 | BI12: 53 | BJ12: 322 | BK12: 323 | BM12: 56 | BN12: 58 | BO12: 58 | BP12: 10 | BQ12: 10 | BR12: 10 | BS12: 364 | BT12: 11 | BU12: 376 | BV12: 11 | BW12: 64 | BX12: 11 | BY12: 11 | BZ12: 67 | CA12: 404 | CB12: 2 | CC12: 70 | CD12: 71 | CE12: 71 | CF12: 2 | CG12: 2 | CH12: 74 | CI12: 74 | CJ12: 13 | CK12: 76 | CL12: 13 | CM12: 466 | CN12: 80 | CO12: 80 | CP12: 484 | CQ12: 485 | CR12: 16 | CS12: 83 | CT12: 14 | CU12: 14 | CV12: 88 | CW12: 88 | CX12: 88 | CY12: 526 | CZ12: 16 | DA12: 538 | DB12: 16 | DC12: 91 | DD12: 94 | DE12: 94 | DF12: 94 | DG12: 566 | DH12: 17 | DI12: 16 | DJ12: 98 | DK12: 98 | DL12: 17 | DM12: 17 | DN12: 101 | DO12: 101 | DP12: 106 | DQ12: 103 | DR12: 106 | DS12: 628 | DT12: 107 | DU12: 107 | DV12: 646 | DW12: 647 | DY12: 110 | DZ12: 112 | EA12: 112 | EB12: 19 | EC12: 19 | ED12: 19 | EE12: 688 | EF12: 20 | EG12: 700 | EH12: 20 | EI12: 118 | EJ12: 20 | EK12: 20 | EL12: 121 | EM12: 728 | EN12: 22 | EO12: 124 | EP12: 125 | EQ12: 125 | ER12: 22 | ES12: 22 | ET12: 128 | EU12: 128 | EV12: 22 | EW12: 130 | EX12: 22 | EY12: 790 | EZ12: 134 | FA12: 134 | FB12: 808 | FC12: 809 | FD12: 4 | FE12: 137 | FF12: 23 | FG12: 23 | FH12: 142 | FI12: 142 | FJ12: 142 | FK12: 850 | FL12: 4 | FM12: 862 | FN12: 4 | FO12: 145 | FP12: 148 | FQ12: 148 | FR12: 148 | FS12: 890 | FT12: 26 | FU12: 25 | FV12: 152 | FW12: 152 | FX12: 26 | FY12: 26 | FZ12: 155 | GA12: 155 | GB12: 160 | GC12: 157 | GD12: 160 | GE12: 952 | GF12: 161 | GG12: 161 | GH12: 970 | GI12: 971 | GJ12: 5 | GK12: 164 | GL12: 166 | GM12: 166 | GN12: 28 | GO12: 28 | GP12: 28 | GQ12: 1012 | GR12: 29 | GS12: 1024 | GT12: 29 | GU12: 172 | GV12: 29 | GW12: 29 | GX12: 175 | GY12: 1052 | GZ12: 5 | HA12: 178 | HB12: 179 | HC12: 179 | HD12: 5 | HE12: 5 | HF12: 182 | HG12: 182 | HH12: 31 | HI12: 184 | HJ12: 31 | HK12: 1114 | HL12: 188 | HM12: 188 | HN12: 1132 | HO12: 1133 | HP12: 34 | HQ12: 191 | HR12: 32 | HS12: 32 | HT12: 196 | HU12: 196 | HV12: 196 | HW12: 1174 | HX12: 34 | HY12: 1186 | HZ12: 34 | IA12: 199 | IB12: 202 | IC12: 202 | ID12: 202 | IE12: 1214 | IF12: 35 | IG12: 34 | IH12: 206 | II12: 206 | IJ12: 35 | IK12: 35 | IL12: 209 | IM12: 209 | IN12: 214 | IO12: 211 | IP12: 214 | IQ12: 1276 | IR12: 215 | IS12: 215 | IT12: 1294 | IU12: 1295 | IV12: 1
G13: 20 | I13: 26 | K13: 5 | L13: 1 | M13: 1 | N13: 40 | O13: 40 | Q13: 8 | R13: 52 | S13: 52 | V13: 10 | W13: 10 | X13: 2 | Y13: 11 | Z13: 2 | AA13: 71 | AB13: 13 | AC13: 13 | AD13: 80 | AE13: 484 | AG13: 88 | AH13: 16 | AI13: 16 | AJ13: 17 | AK13: 17 | AL13: 17 | AM13: 101 | AO13: 107 | AQ13: 112 | AR13: 20 | AS13: 20 | AT13: 20 | AU13: 121 | AV13: 4 | AW13: 22 | AX13: 22 | AY13: 22 | AZ13: 4 | BA13: 4 | BB13: 142 | BC13: 142 | BD13: 26 | BE13: 148 | BF13: 26 | BG13: 152 | BH13: 160 | BI13: 160 | BJ13: 161 | BK13: 970 | BM13: 28 | BN13: 29 | BO13: 29 | BP13: 5 | BQ13: 5 | BR13: 5 | BS13: 182 | BT13: 34 | BU13: 188 | BV13: 34 | BW13: 32 | BX13: 34 | BY13: 34 | BZ13: 202 | CA13: 202 | CB13: 1 | CC13: 35 | CD13: 214 | CE13: 214 | CF13: 1 | CG13: 1 | CH13: 37 | CI13: 37 | CJ13: 40 | CK13: 38 | CL13: 40 | CM13: 233 | CN13: 40 | CO13: 40 | CP13: 242 | CQ13: 1456 | CR13: 8 | CS13: 250 | CT13: 7 | CU13: 7 | CV13: 44 | CW13: 44 | CX13: 44 | CY13: 263 | CZ13: 8 | DA13: 269 | DB13: 8 | DC13: 274 | DD13: 47 | DE13: 47 | DF13: 47 | DG13: 283 | DH13: 52 | DI13: 8 | DJ13: 49 | DK13: 49 | DL13: 52 | DM13: 52 | DN13: 304 | DO13: 304 | DP13: 53 | DQ13: 310 | DR13: 53 | DS13: 314 | DT13: 322 | DU13: 322 | DV13: 323 | DW13: 1942 | DY13: 55 | DZ13: 56 | EA13: 56 | EB13: 58 | EC13: 58 | ED13: 58 | EE13: 344 | EF13: 10 | EG13: 350 | EH13: 10 | EI13: 59 | EJ13: 10 | EK13: 10 | EL13: 364 | EM13: 364 | EN13: 11 | EO13: 62 | EP13: 376 | EQ13: 376 | ER13: 11 | ES13: 11 | ET13: 64 | EU13: 64 | EV13: 11 | EW13: 65 | EX13: 11 | EY13: 395 | EZ13: 67 | FA13: 67 | FB13: 404 | FC13: 2428 | FD13: 2 | FE13: 412 | FF13: 70 | FG13: 70 | FH13: 71 | FI13: 71 | FJ13: 71 | FK13: 425 | FL13: 2 | FM13: 431 | FN13: 2 | FO13: 436 | FP13: 74 | FQ13: 74 | FR13: 74 | FS13: 445 | FT13: 13 | FU13: 76 | FV13: 76 | FW13: 76 | FX13: 13 | FY13: 13 | FZ13: 466 | GA13: 466 | GB13: 80 | GC13: 472 | GD13: 80 | GE13: 476 | GF13: 484 | GG13: 484 | GH13: 485 | GI13: 2914 | GJ13: 16 | GK13: 82 | GL13: 83 | GM13: 83 | GN13: 14 | GO13: 14 | GP13: 14 | GQ13: 506 | GR13: 88 | GS13: 512 | GT13: 88 | GU13: 86 | GV13: 88 | GW13: 88 | GX13: 526 | GY13: 526 | GZ13: 16 | HA13: 89 | HB13: 538 | HC13: 538 | HD13: 16 | HE13: 16 | HF13: 91 | HG13: 91 | HH13: 94 | HI13: 92 | HJ13: 94 | HK13: 557 | HL13: 94 | HM13: 94 | HN13: 566 | HO13: 3400 | HP13: 17 | HQ13: 574 | HR13: 16 | HS13: 16 | HT13: 98 | HU13: 98 | HV13: 98 | HW13: 587 | HX13: 17 | HY13: 593 | HZ13: 17 | IA13: 598 | IB13: 101 | IC13: 101 | ID13: 101 | IE13: 607 | IF13: 106 | IG13: 17 | IH13: 103 | II13: 103 | IJ13: 106 | IK13: 106 | IL13: 628 | IM13: 628 | IN13: 107 | IO13: 634 | IP13: 107 | IQ13: 638 | IR13: 646 | IS13: 646 | IT13: 647 | IU13: 3886
G14: 10 | I14: 13 | K14: 16 | N14: 20 | O14: 20 | Q14: 4 | R14: 26 | S14: 26 | V14: 5 | W14: 5 | X14: 1 | Y14: 34 | Z14: 1 | AA14: 214 | AB14: 40 | AC14: 40 | AD14: 40 | AE14: 242 | AG14: 44 | AH14: 8 | AI14: 8 | AJ14: 52 | AK14: 52 | AL14: 52 | AM14: 304 | AO14: 322 | AQ14: 56 | AR14: 10 | AS14: 10 | AT14: 10 | AU14: 364 | AV14: 2 | AW14: 11 | AX14: 11 | AY14: 11 | AZ14: 2 | BA14: 2 | BB14: 71 | BC14: 71 | BD14: 13 | BE14: 74 | BF14: 13 | BG14: 76 | BH14: 80 | BI14: 80 | BJ14: 484 | BK14: 485 | BM14: 14 | BN14: 88 | BO14: 88 | BP14: 16 | BQ14: 16 | BR14: 16 | BS14: 91 | BT14: 17 | BU14: 94 | BV14: 17 | BW14: 16 | BX14: 17 | BY14: 17 | BZ14: 101 | CA14: 101 | CC14: 106 | CD14: 107 | CE14: 107 | CH14: 112 | CI14: 112 | CJ14: 20 | CK14: 19 | CL14: 20 | CM14: 700 | CN14: 20 | CO14: 20 | CP14: 121 | CQ14: 728 | CR14: 4 | CS14: 125 | CT14: 22 | CU14: 22 | CV14: 22 | CW14: 22 | CX14: 22 | CY14: 790 | CZ14: 4 | DA14: 808 | DB14: 4 | DC14: 137 | DD14: 142 | DE14: 142 | DF14: 142 | DG14: 850 | DH14: 26 | DI14: 4 | DJ14: 148 | DK14: 148 | DL14: 26 | DM14: 26 | DN14: 152 | DO14: 152 | DP14: 160 | DQ14: 155 | DR14: 160 | DS14: 157 | DT14: 161 | DU14: 161 | DV14: 970 | DW14: 971 | DY14: 166 | DZ14: 28 | EA14: 28 | EB14: 29 | EC14: 29 | ED14: 29 | EE14: 172 | EF14: 5 | EG14: 175 | EH14: 5 | EI14: 178 | EJ14: 5 | EK14: 5 | EL14: 182 | EM14: 182 | EN14: 34 | EO14: 31 | EP14: 188 | EQ14: 188 | ER14: 34 | ES14: 34 | ET14: 32 | EU14: 32 | EV14: 34 | EW14: 196 | EX14: 34 | EY14: 1186 | EZ14: 202 | FA14: 202 | FB14: 202 | FC14: 1214 | FD14: 1 | FE14: 206 | FF14: 35 | FG14: 35 | FH14: 214 | FI14: 214 | FJ14: 214 | FK14: 1276 | FL14: 1 | FM14: 1294 | FN14: 1 | FO14: 218 | FP14: 37 | FQ14: 37 | FR14: 37 | FS14: 1336 | FT14: 40 | FU14: 38 | FV14: 38 | FW14: 38 | FX14: 40 | FY14: 40 | FZ14: 233 | GA14: 233 | GB14: 40 | GC14: 236 | GD14: 40 | GE14: 238 | GF14: 242 | GG14: 242 | GH14: 1456 | GI14: 1457 | GJ14: 8 | GK14: 41 | GL14: 250 | GM14: 250 | GN14: 7 | GO14: 7 | GP14: 7 | GQ14: 253 | GR14: 44 | GS14: 256 | GT14: 44 | GU14: 43 | GV14: 44 | GW14: 44 | GX14: 263 | GY14: 263 | GZ14: 8 | HA14: 268 | HB14: 269 | HC14: 269 | HD14: 8 | HE14: 8 | HF14: 274 | HG14: 274 | HH14: 47 | HI14: 46 | HJ14: 47 | HK14: 1672 | HL14: 47 | HM14: 47 | HN14: 283 | HO14: 1700 | HP14: 52 | HQ14: 287 | HR14: 8 | HS14: 8 | HT14: 49 | HU14: 49 | HV14: 49 | HW14: 1762 | HX14: 52 | HY14: 1780 | HZ14: 52 | IA14: 299 | IB14: 304 | IC14: 304 | ID14: 304 | IE14: 1822 | IF14: 53 | IG14: 52 | IH14: 310 | II14: 310 | IJ14: 53 | IK14: 53 | IL14: 314 | IM14: 314 | IN14: 322 | IO14: 317 | IP14: 322 | IQ14: 319 | IR14: 323 | IS14: 323 | IT14: 1942 | IU14: 1943
G15: 5 | I15: 40 | K15: 8 | N15: 10 | O15: 10 | Q15: 2 | R15: 13 | S15: 13 | V15: 16 | W15: 16 | Y15: 17 | AA15: 107 | AB15: 20 | AC15: 20 | AD15: 20 | AE15: 121 | AG15: 22 | AH15: 4 | AI15: 4 | AJ15: 26 | AK15: 26 | AL15: 26 | AM15: 152 | AO15: 161 | AQ15: 28 | AR15: 5 | AS15: 5 | AT15: 5 | AU15: 182 | AV15: 1 | AW15: 34 | AX15: 34 | AY15: 34 | AZ15: 1 | BA15: 1 | BB15: 214 | BC15: 214 | BD15: 40 | BE15: 37 | BF15: 40 | BG15: 38 | BH15: 40 | BI15: 40 | BJ15: 242 | BK15: 1456 | BM15: 7 | BN15: 44 | BO15: 44 | BP15: 8 | BQ15: 8 | BR15: 8 | BS15: 274 | BT15: 52 | BU15: 47 | BV15: 52 | BW15: 8 | BX15: 52 | BY15: 52 | BZ15: 304 | CA15: 304 | CC15: 53 | CD15: 322 | CE15: 322 | CH15: 56 | CI15: 56 | CJ15: 10 | CK15: 58 | CL15: 10 | CM15: 350 | CN15: 10 | CO15: 10 | CP15: 364 | CQ15: 364 | CR15: 2 | CS15: 376 | CT15: 11 | CU15: 11 | CV15: 11 | CW15: 11 | CX15: 11 | CY15: 395 | CZ15: 2 | DA15: 404 | DB15: 2 | DC15: 412 | DD15: 71 | DE15: 71 | DF15: 71 | DG15: 425 | DH15: 13 | DI15: 2 | DJ15: 74 | DK15: 74 | DL15: 13 | DM15: 13 | DN15: 76 | DO15: 76 | DP15: 80 | DQ15: 466 | DR15: 80 | DS15: 472 | DT15: 484 | DU15: 484 | DV15: 485 | DW15: 2914 | DY15: 83 | DZ15: 14 | EA15: 14 | EB15: 88 | EC15: 88 | ED15: 88 | EE15: 86 | EF15: 16 | EG15: 526 | EH15: 16 | EI15: 89 | EJ15: 16 | EK15: 16 | EL15: 91 | EM15: 91 | EN15: 17 | EO15: 94 | EP15: 94 | EQ15: 94 | ER15: 17 | ES15: 17 | ET15: 16 | EU15: 16 | EV15: 17 | EW15: 98 | EX15: 17 | EY15: 593 | EZ15: 101 | FA15: 101 | FB15: 101 | FC15: 607 | FE15: 103 | FF15: 106 | FG15: 106 | FH15: 107 | FI15: 107 | FJ15: 107 | FK15: 638 | FM15: 647 | FO15: 109 | FP15: 112 | FQ15: 112 | FR15: 112 | FS15: 668 | FT15: 20 | FU15: 19 | FV15: 19 | FW15: 19 | FX15: 20 | FY15: 20 | FZ15: 700 | GA15: 700 | GB15: 20 | GC15: 118 | GD15: 20 | GE15: 119 | GF15: 121 | GG15: 121 | GH15: 728 | GI15: 4372 | GJ15: 4 | GK15: 124 | GL15: 125 | GM15: 125 | GN15: 22 | GO15: 22 | GP15: 22 | GQ15: 760 | GR15: 22 | GS15: 128 | GT15: 22 | GU15: 130 | GV15: 22 | GW15: 22 | GX15: 790 | GY15: 790 | GZ15: 4 | HA15: 134 | HB15: 808 | HC15: 808 | HD15: 4 | HE15: 4 | HF15: 137 | HG15: 137 | HH15: 142 | HI15: 23 | HJ15: 142 | HK15: 836 | HL15: 142 | HM15: 142 | HN15: 850 | HO15: 850 | HP15: 26 | HQ15: 862 | HR15: 4 | HS15: 4 | HT15: 148 | HU15: 148 | HV15: 148 | HW15: 881 | HX15: 26 | HY15: 890 | HZ15: 26 | IA15: 898 | IB15: 152 | IC15: 152 | ID15: 152 | IE15: 911 | IF15: 160 | IG15: 26 | IH15: 155 | II15: 155 | IJ15: 160 | IK15: 160 | IL15: 157 | IM15: 157 | IN15: 161 | IO15: 952 | IP15: 161 | IQ15: 958 | IR15: 970 | IS15: 970 | IT15: 971 | IU15: 5830
G16: 16 | I16: 20 | K16: 4 | N16: 5 | O16: 5 | Q16: 1 | R16: 40 | S16: 40 | V16: 8 | W16: 8 | Y16: 52 | AA16: 322 | AB16: 10 | AC16: 10 | AD16: 10 | AE16: 364 | AG16: 11 | AH16: 2 | AI16: 2 | AJ16: 13 | AK16: 13 | AL16: 13 | AM16: 76 | AO16: 484 | AQ16: 14 | AR16: 16 | AS16: 16 | AT16: 16 | AU16: 91 | AW16: 17 | AX16: 17 | AY16: 17 | BB16: 107 | BC16: 107 | BD16: 20 | BE16: 112 | BF16: 20 | BG16: 19 | BH16: 20 | BI16: 20 | BJ16: 121 | BK16: 728 | BM16: 22 | BN16: 22 | BO16: 22 | BP16: 4 | BQ16: 4 | BR16: 4 | BS16: 137 | BT16: 26 | BU16: 142 | BV16: 26 | BW16: 4 | BX16: 26 | BY16: 26 | BZ16: 152 | CA16: 152 | CC16: 160 | CD16: 161 | CE16: 161 | CH16: 28 | CI16: 28 | CJ16: 5 | CK16: 29 | CL16: 5 | CM16: 175 | CN16: 5 | CO16: 5 | CP16: 182 | CQ16: 182 | CR16: 1 | CS16: 188 | CT16: 34 | CU16: 34 | CV16: 34 | CW16: 34 | CX16: 34 | CY16: 1186 | CZ16: 1 | DA16: 202 | DB16: 1 | DC16: 206 | DD16: 214 | DE16: 214 | DF16: 214 | DG16: 1276 | DH16: 40 | DI16: 1 | DJ16: 37 | DK16: 37 | DL16: 40 | DM16: 40 | DN16: 38 | DO16: 38 | DP16: 40 | DQ16: 233 | DR16: 40 | DS16: 236 | DT16: 242 | DU16: 242 | DV16: 1456 | DW16: 1457 | DY16: 250 | DZ16: 7 | EA16: 7 | EB16: 44 | EC16: 44 | ED16: 44 | EE16: 43 | EF16: 8 | EG16: 263 | EH16: 8 | EI16: 268 | EJ16: 8 | EK16: 8 | EL16: 274 | EM16: 274 | EN16: 52 | EO16: 47 | EP16: 47 | EQ16: 47 | ER16: 52 | ES16: 52 | ET16: 8 | EU16: 8 | EV16: 52 | EW16: 49 | EX16: 52 | EY16: 1780 | EZ16: 304 | FA16: 304 | FB16: 304 | FC16: 1822 | FE16: 310 | FF16: 53 | FG16: 53 | FH16: 322 | FI16: 322 | FJ16: 322 | FK16: 319 | FM16: 1942 | FO16: 328 | FP16: 56 | FQ16: 56 | FR16: 56 | FS16: 334 | FT16: 10 | FU16: 58 | FV16: 58 | FW16: 58 | FX16: 10 | FY16: 10 | FZ16: 350 | GA16: 350 | GB16: 10 | GC16: 59 | GD16: 10 | GE16: 358 | GF16: 364 | GG16: 364 | GH16: 364 | GI16: 2186 | GJ16: 2 | GK16: 62 | GL16: 376 | GM16: 376 | GN16: 11 | GO16: 11 | GP16: 11 | GQ16: 380 | GR16: 11 | GS16: 64 | GT16: 11 | GU16: 65 | GV16: 11 | GW16: 11 | GX16: 395 | GY16: 395 | GZ16: 2 | HA16: 67 | HB16: 404 | HC16: 404 | HD16: 2 | HE16: 2 | HF16: 412 | HG16: 412 | HH16: 71 | HI16: 70 | HJ16: 71 | HK16: 418 | HL16: 71 | HM16: 71 | HN16: 425 | HO16: 425 | HP16: 13 | HQ16: 431 | HR16: 2 | HS16: 2 | HT16: 74 | HU16: 74 | HV16: 74 | HW16: 2644 | HX16: 13 | HY16: 445 | HZ16: 13 | IA16: 449 | IB16: 76 | IC16: 76 | ID16: 76 | IE16: 2734 | IF16: 80 | IG16: 13 | IH16: 466 | II16: 466 | IJ16: 80 | IK16: 80 | IL16: 472 | IM16: 472 | IN16: 484 | IO16: 476 | IP16: 484 | IQ16: 479 | IR16: 485 | IS16: 485 | IT16: 2914 | IU16: 2915
G17: 8 | I17: 10 | K17: 2 | N17: 16 | O17: 16 | R17: 20 | S17: 20 | V17: 4 | W17: 4 | Y17: 26 | AA17: 161 | AB17: 5 | AC17: 5 | AD17: 5 | AE17: 182 | AG17: 34 | AH17: 1 | AI17: 1 | AJ17: 40 | AK17: 40 | AL17: 40 | AM17: 38 | AO17: 242 | AQ17: 7 | AR17: 8 | AS17: 8 | AT17: 8 | AU17: 274 | AW17: 52 | AX17: 52 | AY17: 52 | BB17: 322 | BC17: 322 | BD17: 10 | BE17: 56 | BF17: 10 | BG17: 58 | BH17: 10 | BI17: 10 | BJ17: 364 | BK17: 364 | BM17: 11 | BN17: 11 | BO17: 11 | BP17: 2 | BQ17: 2 | BR17: 2 | BS17: 412 | BT17: 13 | BU17: 71 | BV17: 13 | BW17: 2 | BX17: 13 | BY17: 13 | BZ17: 76 | CA17: 76 | CC17: 80 | CD17: 484 | CE17: 484 | CH17: 14 | CI17: 14 | CJ17: 16 | CK17: 88 | CL17: 16 | CM17: 526 | CN17: 16 | CO17: 16 | CP17: 91 | CQ17: 91 | CS17: 94 | CT17: 17 | CU17: 17 | CV17: 17 | CW17: 17 | CX17: 17 | CY17: 593 | DA17: 101 | DC17: 103 | DD17: 107 | DE17: 107 | DF17: 107 | DG17: 638 | DH17: 20 | DJ17: 112 | DK17: 112 | DL17: 20 | DM17: 20 | DN17: 19 | DO17: 19 | DP17: 20 | DQ17: 700 | DR17: 20 | DS17: 118 | DT17: 121 | DU17: 121 | DV17: 728 | DW17: 4372 | DY17: 125 | DZ17: 22 | EA17: 22 | EB17: 22 | EC17: 22 | ED17: 22 | EE17: 130 | EF17: 4 | EG17: 790 | EH17: 4 | EI17: 134 | EJ17: 4 | EK17: 4 | EL17: 137 | EM17: 137 | EN17: 26 | EO17: 142 | EP17: 142 | EQ17: 142 | ER17: 26 | ES17: 26 | ET17: 4 | EU17: 4 | EV17: 26 | EW17: 148 | EX17: 26 | EY17: 890 | EZ17: 152 | FA17: 152 | FB17: 152 | FC17: 911 | FE17: 155 | FF17: 160 | FG17: 160 | FH17: 161 | FI17: 161 | FJ17: 161 | FK17: 958 | FM17: 971 | FO17: 164 | FP17: 28 | FQ17: 28 | FR17: 28 | FS17: 167 | FT17: 5 | FU17: 29 | FV17: 29 | FW17: 29 | FX17: 5 | FY17: 5 | FZ17: 175 | GA17: 175 | GB17: 5 | GC17: 178 | GD17: 5 | GE17: 179 | GF17: 182 | GG17: 182 | GH17: 182 | GI17: 1093 | GJ17: 1 | GK17: 31 | GL17: 188 | GM17: 188 | GN17: 34 | GO17: 34 | GP17: 34 | GQ17: 190 | GR17: 34 | GS17: 32 | GT17: 34 | GU17: 196 | GV17: 34 | GW17: 34 | GX17: 1186 | GY17: 1186 | GZ17: 1 | HA17: 202 | HB17: 202 | HC17: 202 | HD17: 1 | HE17: 1 | HF17: 206 | HG17: 206 | HH17: 214 | HI17: 35 | HJ17: 214 | HK17: 209 | HL17: 214 | HM17: 214 | HN17: 1276 | HO17: 1276 | HP17: 40 | HQ17: 1294 | HR17: 1 | HS17: 1 | HT17: 37 | HU17: 37 | HV17: 37 | HW17: 1322 | HX17: 40 | HY17: 1336 | HZ17: 40 | IA17: 1348 | IB17: 38 | IC17: 38 | ID17: 38 | IE17: 1367 | IF17: 40 | IG17: 40 | IH17: 233 | II17: 233 | IJ17: 40 | IK17: 40 | IL17: 236 | IM17: 236 | IN17: 242 | IO17: 238 | IP17: 242 | IQ17: 1438 | IR17: 1456 | IS17: 1456 | IT17: 1457 | IU17: 8746
G18: 4 | I18: 5 | K18: 1 | N18: 8 | O18: 8 | R18: 10 | S18: 10 | V18: 2 | W18: 2 | Y18: 13 | AA18: 484 | AB18: 16 | AC18: 16 | AD18: 16 | AE18: 91 | AG18: 17 | AJ18: 20 | AK18: 20 | AL18: 20 | AM18: 19 | AO18: 121 | AQ18: 22 | AR18: 4 | AS18: 4 | AT18: 4 | AU18: 137 | AW18: 26 | AX18: 26 | AY18: 26 | BB18: 161 | BC18: 161 | BD18: 5 | BE18: 28 | BF18: 5 | BG18: 29 | BH18: 5 | BI18: 5 | BJ18: 182 | BK18: 182 | BM18: 34 | BN18: 34 | BO18: 34 | BP18: 1 | BQ18: 1 | BR18: 1 | BS18: 206 | BT18: 40 | BU18: 214 | BV18: 40 | BW18: 1 | BX18: 40 | BY18: 40 | BZ18: 38 | CA18: 38 | CC18: 40 | CD18: 242 | CE18: 242 | CH18: 7 | CI18: 7 | CJ18: 8 | CK18: 44 | CL18: 8 | CM18: 263 | CN18: 8 | CO18: 8 | CP18: 274 | CQ18: 274 | CS18: 47 | CT18: 52 | CU18: 52 | CV18: 52 | CW18: 52 | CX18: 52 | CY18: 1780 | DA18: 304 | DC18: 310 | DD18: 322 | DE18: 322 | DF18: 322 | DG18: 319 | DH18: 10 | DJ18: 56 | DK18: 56 | DL18: 10 | DM18: 10 | DN18: 58 | DO18: 58 | DP18: 10 | DQ18: 350 | DR18: 10 | DS18: 59 | DT18: 364 | DU18: 364 | DV18: 364 | DW18: 2186 | DY18: 376 | DZ18: 11 | EA18: 11 | EB18: 11 | EC18: 11 | ED18: 11 | EE18: 65 | EF18: 2 | EG18: 395 | EH18: 2 | EI18: 67 | EJ18: 2 | EK18: 2 | EL18: 412 | EM18: 412 | EN18: 13 | EO18: 71 | EP18: 71 | EQ18: 71 | ER18: 13 | ES18: 13 | ET18: 2 | EU18: 2 | EV18: 13 | EW18: 74 | EX18: 13 | EY18: 445 | EZ18: 76 | FA18: 76 | FB18: 76 | FC18: 2734 | FE18: 466 | FF18: 80 | FG18: 80 | FH18: 484 | FI18: 484 | FJ18: 484 | FK18: 479 | FM18: 2914 | FO18: 82 | FP18: 14 | FQ18: 14 | FR18: 14 | FS18: 502 | FT18: 16 | FU18: 88 | FV18: 88 | FW18: 88 | FX18: 16 | FY18: 16 | FZ18: 526 | GA18: 526 | GB18: 16 | GC18: 89 | GD18: 16 | GE18: 538 | GF18: 91 | GG18: 91 | GH18: 91 | GI18: 3280 | GK18: 94 | GL18: 94 | GM18: 94 | GN18: 17 | GO18: 17 | GP18: 17 | GQ18: 95 | GR18: 17 | GS18: 16 | GT18: 17 | GU18: 98 | GV18: 17 | GW18: 17 | GX18: 593 | GY18: 593 | HA18: 101 | HB18: 101 | HC18: 101 | HF18: 103 | HG18: 103 | HH18: 107 | HI18: 106 | HJ18: 107 | HK18: 628 | HL18: 107 | HM18: 107 | HN18: 638 | HO18: 638 | HP18: 20 | HQ18: 647 | HT18: 112 | HU18: 112 | HV18: 112 | HW18: 661 | HX18: 20 | HY18: 668 | HZ18: 20 | IA18: 674 | IB18: 19 | IC18: 19 | ID18: 19 | IE18: 4102 | IF18: 20 | IG18: 20 | IH18: 700 | II18: 700 | IJ18: 20 | IK18: 20 | IL18: 118 | IM18: 118 | IN18: 121 | IO18: 119 | IP18: 121 | IQ18: 719 | IR18: 728 | IS18: 728 | IT18: 4372 | IU18: 4373
G19: 2 | I19: 16 | N19: 4 | O19: 4 | R19: 5 | S19: 5 | V19: 1 | W19: 1 | Y19: 40 | AA19: 242 | AB19: 8 | AC19: 8 | AD19: 8 | AE19: 274 | AG19: 52 | AJ19: 10 | AK19: 10 | AL19: 10 | AM19: 58 | AO19: 364 | AQ19: 11 | AR19: 2 | AS19: 2 | AT19: 2 | AU19: 412 | AW19: 13 | AX19: 13 | AY19: 13 | BB19: 484 | BC19: 484 | BD19: 16 | BE19: 14 | BF19: 16 | BG19: 88 | BH19: 16 | BI19: 16 | BJ19: 91 | BK19: 91 | BM19: 17 | BN19: 17 | BO19: 17 | BS19: 103 | BT19: 20 | BU19: 107 | BV19: 20 | BX19: 20 | BY19: 20 | BZ19: 19 | CA19: 19 | CC19: 20 | CD19: 121 | CE19: 121 | CH19: 22 | CI19: 22 | CJ19: 4 | CK19: 22 | CL19: 4 | CM19: 790 | CN19: 4 | CO19: 4 | CP19: 137 | CQ19: 137 | CS19: 142 | CT19: 26 | CU19: 26 | CV19: 26 | CW19: 26 | CX19: 26 | CY19: 890 | DA19: 152 | DC19: 155 | DD19: 161 | DE19: 161 | DF19: 161 | DG19: 958 | DH19: 5 | DJ19: 28 | DK19: 28 | DL19: 5 | DM19: 5 | DN19: 29 | DO19: 29 | DP19: 5 | DQ19: 175 | DR19: 5 | DS19: 178 | DT19: 182 | DU19: 182 | DV19: 182 | DW19: 1093 | DY19: 188 | DZ19: 34 | EA19: 34 | EB19: 34 | EC19: 34 | ED19: 34 | EE19: 196 | EF19: 1 | EG19: 1186 | EH19: 1 | EI19: 202 | EJ19: 1 | EK19: 1 | EL19: 206 | EM19: 206 | EN19: 40 | EO19: 214 | EP19: 214 | EQ19: 214 | ER19: 40 | ES19: 40 | ET19: 1 | EU19: 1 | EV19: 40 | EW19: 37 | EX19: 40 | EY19: 1336 | EZ19: 38 | FA19: 38 | FB19: 38 | FC19: 1367 | FE19: 233 | FF19: 40 | FG19: 40 | FH19: 242 | FI19: 242 | FJ19: 242 | FK19: 1438 | FM19: 1457 | FO19: 41 | FP19: 7 | FQ19: 7 | FR19: 7 | FS19: 251 | FT19: 8 | FU19: 44 | FV19: 44 | FW19: 44 | FX19: 8 | FY19: 8 | FZ19: 263 | GA19: 263 | GB19: 8 | GC19: 268 | GD19: 8 | GE19: 269 | GF19: 274 | GG19: 274 | GH19: 274 | GI19: 1640 | GK19: 47 | GL19: 47 | GM19: 47 | GN19: 52 | GO19: 52 | GP19: 52 | GQ19: 286 | GR19: 52 | GS19: 8 | GT19: 52 | GU19: 49 | GV19: 52 | GW19: 52 | GX19: 1780 | GY19: 1780 | HA19: 304 | HB19: 304 | HC19: 304 | HF19: 310 | HG19: 310 | HH19: 322 | HI19: 53 | HJ19: 322 | HK19: 314 | HL19: 322 | HM19: 322 | HN19: 319 | HO19: 319 | HP19: 10 | HQ19: 1942 | HT19: 56 | HU19: 56 | HV19: 56 | HW19: 1984 | HX19: 10 | HY19: 334 | HZ19: 10 | IA19: 337 | IB19: 58 | IC19: 58 | ID19: 58 | IE19: 2051 | IF19: 10 | IG19: 10 | IH19: 350 | II19: 350 | IJ19: 10 | IK19: 10 | IL19: 59 | IM19: 59 | IN19: 364 | IO19: 358 | IP19: 364 | IQ19: 2158 | IR19: 364 | IS19: 364 | IT19: 2186 | IU19: 13120
G20: 1 | I20: 8 | N20: 2 | O20: 2 | R20: 16 | S20: 16 | Y20: 20 | AA20: 121 | AB20: 4 | AC20: 4 | AD20: 4 | AE20: 137 | AG20: 26 | AJ20: 5 | AK20: 5 | AL20: 5 | AM20: 29 | AO20: 182 | AQ20: 34 | AR20: 1 | AS20: 1 | AT20: 1 | AU20: 206 | AW20: 40 | AX20: 40 | AY20: 40 | BB20: 242 | BC20: 242 | BD20: 8 | BE20: 7 | BF20: 8 | BG20: 44 | BH20: 8 | BI20: 8 | BJ20: 274 | BK20: 274 | BM20: 52 | BN20: 52 | BO20: 52 | BS20: 310 | BT20: 10 | BU20: 322 | BV20: 10 | BX20: 10 | BY20: 10 | BZ20: 58 | CA20: 58 | CC20: 10 | CD20: =IF(AND(CD19<>1,CD19<>""),IF(INT(CD19/2)=CD19/2,CD19/2,3*CD19+1),"") -> 364 | CE20: 364 | CH20: 11 | CI20: 11 | CJ20: 2 | CK20: 11 | CL20: 2 | CM20: 395 | CN20: 2 | CO20: 2 | CP20: 412 | CQ20: 412 | CS20: 71 | CT20: =IF(AND(CT19<>1,CT19<>""),IF(INT(CT19/2)=CT19/2,CT19/2,3*CT19+1),"") -> 13 | CU20: 13 | CV20: 13 | CW20: 13 | CX20: 13 | CY20: 445 | DA20: 76 | DC20: 466 | DD20: 484 | DE20: 484 | DF20: 484 | DG20: 479 | DH20: 16 | DJ20: =IF(AND(DJ19<>1,DJ19<>""),IF(INT(DJ19/2)=DJ19/2,DJ19/2,3*DJ19+1),"") -> 14 | DK20: 14 | DL20: 16 | DM20: 16 | DN20: 88 | DO20: 88 | DP20: 16 | DQ20: 526 | DR20: 16 | DS20: 89 | DT20: 91 | DU20: 91 | DV20: 91 | DW20: 3280 | DY20: 94 | DZ20: =IF(AND(DZ19<>1,DZ19<>""),IF(INT(DZ19/2)=DZ19/2,DZ19/2,3*DZ19+1),"") -> 17 | EA20: 17 | EB20: 17 | EC20: 17 | ED20: 17 | EE20: 98 | EG20: 593 | EI20: 101 | EL20: 103 | EM20: 103 | EN20: 20 | EO20: 107 | EP20: =IF(AND(EP19<>1,EP19<>""),IF(INT(EP19/2)=EP19/2,EP19/2,3*EP19+1),"") -> 107 | EQ20: 107 | ER20: 20 | ES20: 20 | EV20: 20 | EW20: 112 | EX20: 20 | EY20: 668 | EZ20: 19 | FA20: 19 | FB20: 19 | FC20: 4102 | FE20: 700 | FF20: =IF(AND(FF19<>1,FF19<>""),IF(INT(FF19/2)=FF19/2,FF19/2,3*FF19+1),"") -> 20 | FG20: 20 | FH20: 121 | FI20: 121 | FJ20: 121 | FK20: 719 | FM20: 4372 | FO20: 124 | FP20: 22 | FQ20: 22 | FR20: 22 | FS20: 754 | FT20: 4 | FU20: 22 | FV20: =IF(AND(FV19<>1,FV19<>""),IF(INT(FV19/2)=FV19/2,FV19/2,3*FV19+1),"") -> 22 | FW20: 22 | FX20: 4 | FY20: 4 | FZ20: 790 | GA20: 790 | GB20: 4 | GC20: 134 | GD20: 4 | GE20: 808 | GF20: 137 | GG20: 137 | GH20: 137 | GI20: 820 | GK20: 142 | GL20: =IF(AND(GL19<>1,GL19<>""),IF(INT(GL19/2)=GL19/2,GL19/2,3*GL19+1),"") -> 142 | GM20: 142 | GN20: 26 | GO20: 26 | GP20: 26 | GQ20: 143 | GR20: 26 | GS20: 4 | GT20: 26 | GU20: 148 | GV20: 26 | GW20: 26 | GX20: 890 | GY20: 890 | HA20: 152 | HB20: =IF(AND(HB19<>1,HB19<>""),IF(INT(HB19/2)=HB19/2,HB19/2,3*HB19+1),"") -> 152 | HC20: 152 | HF20: 155 | HG20: 155 | HH20: 161 | HI20: 160 | HJ20: 161 | HK20: 157 | HL20: 161 | HM20: 161 | HN20: 958 | HO20: 958 | HP20: 5 | HQ20: 971 | HR20: =IF(AND(HR19<>1,HR19<>""),IF(INT(HR19/2)=HR19/2,HR19/2,3*HR19+1),"") ->  | HT20: 28 | HU20: 28 | HV20: 28 | HW20: 992 | HX20: 5 | HY20: 167 | HZ20: 5 | IA20: 1012 | IB20: 29 | IC20: 29 | ID20: 29 | IE20: 6154 | IF20: 5 | IG20: 5 | IH20: =IF(AND(IH19<>1,IH19<>""),IF(INT(IH19/2)=IH19/2,IH19/2,3*IH19+1),"") -> 175 | II20: 175 | IJ20: 5 | IK20: 5 | IL20: 178 | IM20: 178 | IN20: 182 | IO20: 179 | IP20: 182 | IQ20: 1079 | IR20: 182 | IS20: 182 | IT20: 1093 | IU20: 6560
I21: 4 | N21: 1 | O21: 1 | R21: 8 | S21: 8 | Y21: 10 | AA21: 364 | AB21: 2 | AC21: 2 | AD21: 2 | AE21: 412 | AG21: 13 | AJ21: 16 | AK21: 16 | AL21: 16 | AM21: 88 | AO21: 91 | AQ21: 17 | AU21: 103 | AW21: 20 | AX21: 20 | AY21: 20 | BB21: 121 | BC21: 121 | BD21: 4 | BE21: 22 | BF21: 4 | BG21: 22 | BH21: 4 | BI21: 4 | BJ21: 137 | BK21: 137 | BM21: 26 | BN21: 26 | BO21: =IF(AND(BO20<>1,BO20<>""),IF(INT(BO20/2)=BO20/2,BO20/2,3*BO20+1),"") -> 26 | BS21: 155 | BT21: 5 | BU21: 161 | BV21: 5 | BX21: 5 | BY21: 5 | BZ21: 29 | CA21: 29 | CC21: 5 | CD21: 182 | CE21: 182 | CH21: 34 | CI21: 34 | CJ21: 1 | CK21: 34 | CL21: 1 | CM21: 1186 | CN21: 1 | CO21: 1 | CP21: 206 | CQ21: 206 | CS21: 214 | CT21: 40 | CU21: 40 | CV21: 40 | CW21: 40 | CX21: 40 | CY21: 1336 | DA21: 38 | DC21: 233 | DD21: 242 | DE21: 242 | DF21: 242 | DG21: 1438 | DH21: 8 | DJ21: 7 | DK21: 7 | DL21: 8 | DM21: 8 | DN21: 44 | DO21: 44 | DP21: 8 | DQ21: 263 | DR21: 8 | DS21: 268 | DT21: 274 | DU21: 274 | DV21: 274 | DW21: 1640 | DY21: 47 | DZ21: 52 | EA21: 52 | EB21: 52 | EC21: 52 | ED21: 52 | EE21: 49 | EG21: 1780 | EI21: 304 | EL21: 310 | EM21: 310 | EN21: 10 | EO21: 322 | EP21: 322 | EQ21: 322 | ER21: 10 | ES21: 10 | EV21: 10 | EW21: 56 | EX21: 10 | EY21: 334 | EZ21: 58 | FA21: 58 | FB21: 58 | FC21: 2051 | FE21: 350 | FF21: 10 | FG21: 10 | FH21: 364 | FI21: 364 | FJ21: 364 | FK21: 2158 | FM21: 2186 | FO21: 62 | FP21: 11 | FQ21: 11 | FR21: 11 | FS21: 377 | FT21: 2 | FU21: 11 | FV21: 11 | FW21: 11 | FX21: 2 | FY21: 2 | FZ21: 395 | GA21: 395 | GB21: 2 | GC21: 67 | GD21: 2 | GE21: 404 | GF21: 412 | GG21: 412 | GH21: 412 | GI21: 410 | GK21: 71 | GL21: 71 | GM21: 71 | GN21: 13 | GO21: 13 | GP21: 13 | GQ21: 430 | GR21: 13 | GS21: 2 | GT21: 13 | GU21: 74 | GV21: 13 | GW21: 13 | GX21: 445 | GY21: 445 | HA21: 76 | HB21: 76 | HC21: 76 | HF21: 466 | HG21: 466 | HH21: 484 | HI21: 80 | HJ21: 484 | HK21: 472 | HL21: 484 | HM21: 484 | HN21: 479 | HO21: 479 | HP21: 16 | HQ21: 2914 | HT21: 14 | HU21: 14 | HV21: 14 | HW21: 496 | HX21: 16 | HY21: 502 | HZ21: 16 | IA21: 506 | IB21: 88 | IC21: 88 | ID21: 88 | IE21: 3077 | IF21: 16 | IG21: 16 | IH21: 526 | II21: 526 | IJ21: 16 | IK21: 16 | IL21: 89 | IM21: 89 | IN21: 91 | IO21: 538 | IP21: 91 | IQ21: 3238 | IR21: 91 | IS21: 91 | IT21: 3280 | IU21: 3280
I22: 2 | R22: 4 | S22: 4 | Y22: 5 | AA22: 182 | AB22: 1 | AC22: 1 | AD22: 1 | AE22: 206 | AG22: 40 | AJ22: 8 | AK22: 8 | AL22: 8 | AM22: 44 | AO22: 274 | AQ22: 52 | AU22: 310 | AW22: 10 | AX22: 10 | AY22: 10 | BB22: 364 | BC22: 364 | BD22: 2 | BE22: 11 | BF22: 2 | BG22: 11 | BH22: 2 | BI22: 2 | BJ22: 412 | BK22: 412 | BM22: 13 | BN22: 13 | BO22: 13 | BS22: 466 | BT22: 16 | BU22: 484 | BV22: 16 | BX22: 16 | BY22: 16 | BZ22: 88 | CA22: 88 | CC22: 16 | CD22: 91 | CE22: 91 | CH22: 17 | CI22: 17 | CK22: 17 | CM22: 593 | CP22: 103 | CQ22: 103 | CS22: 107 | CT22: 20 | CU22: 20 | CV22: 20 | CW22: 20 | CX22: 20 | CY22: 668 | DA22: 19 | DC22: 700 | DD22: 121 | DE22: 121 | DF22: 121 | DG22: 719 | DH22: 4 | DJ22: 22 | DK22: 22 | DL22: 4 | DM22: 4 | DN22: 22 | DO22: 22 | DP22: 4 | DQ22: 790 | DR22: 4 | DS22: 134 | DT22: 137 | DU22: 137 | DV22: 137 | DW22: 820 | DY22: 142 | DZ22: 26 | EA22: 26 | EB22: 26 | EC22: 26 | ED22: 26 | EE22: 148 | EG22: 890 | EI22: 152 | EL22: 155 | EM22: 155 | EN22: 5 | EO22: 161 | EP22: 161 | EQ22: 161 | ER22: 5 | ES22: 5 | EV22: 5 | EW22: 28 | EX22: 5 | EY22: 167 | EZ22: 29 | FA22: 29 | FB22: 29 | FC22: 6154 | FE22: 175 | FF22: 5 | FG22: 5 | FH22: 182 | FI22: 182 | FJ22: 182 | FK22: 1079 | FM22: 1093 | FO22: 31 | FP22: 34 | FQ22: 34 | FR22: 34 | FS22: 1132 | FT22: 1 | FU22: 34 | FV22: 34 | FW22: 34 | FX22: 1 | FY22: 1 | FZ22: 1186 | GA22: 1186 | GB22: 1 | GC22: 202 | GD22: 1 | GE22: 202 | GF22: 206 | GG22: 206 | GH22: 206 | GI22: 205 | GK22: 214 | GL22: 214 | GM22: 214 | GN22: 40 | GO22: 40 | GP22: 40 | GQ22: 215 | GR22: 40 | GS22: 1 | GT22: 40 | GU22: 37 | GV22: 40 | GW22: 40 | GX22: 1336 | GY22: 1336 | HA22: 38 | HB22: 38 | HC22: 38 | HF22: 233 | HG22: 233 | HH22: 242 | HI22: 40 | HJ22: 242 | HK22: 236 | HL22: 242 | HM22: 242 | HN22: 1438 | HO22: 1438 | HP22: 8 | HQ22: 1457 | HT22: 7 | HU22: 7 | HV22: 7 | HW22: 248 | HX22: 8 | HY22: 251 | HZ22: 8 | IA22: 253 | IB22: 44 | IC22: 44 | ID22: 44 | IE22: 9232 | IF22: 8 | IG22: 8 | IH22: 263 | II22: 263 | IJ22: 8 | IK22: 8 | IL22: 268 | IM22: 268 | IN22: 274 | IO22: 269 | IP22: 274 | IQ22: 1619 | IR22: 274 | IS22: 274 | IT22: 1640 | IU22: 1640
I23: 1 | R23: 2 | S23: 2 | Y23: 16 | AA23: 91 | AE23: 103 | AG23: 20 | AJ23: 4 | AK23: 4 | AL23: 4 | AM23: 22 | AO23: 137 | AQ23: 26 | AU23: 155 | AW23: 5 | AX23: 5 | AY23: 5 | BB23: 182 | BC23: 182 | BD23: 1 | BE23: 34 | BF23: 1 | BG23: 34 | BH23: 1 | BI23: 1 | BJ23: 206 | BK23: 206 | BM23: 40 | BN23: 40 | BO23: 40 | BS23: 233 | BT23: 8 | BU23: 242 | BV23: 8 | BX23: 8 | BY23: 8 | BZ23: 44 | CA23: 44 | CC23: 8 | CD23: 274 | CE23: 274 | CH23: 52 | CI23: 52 | CK23: 52 | CM23: 1780 | CP23: 310 | CQ23: 310 | CS23: 322 | CT23: 10 | CU23: 10 | CV23: 10 | CW23: 10 | CX23: 10 | CY23: 334 | DA23: 58 | DC23: 350 | DD23: 364 | DE23: 364 | DF23: 364 | DG23: 2158 | DH23: 2 | DJ23: 11 | DK23: 11 | DL23: 2 | DM23: 2 | DN23: 11 | DO23: 11 | DP23: 2 | DQ23: 395 | DR23: 2 | DS23: 67 | DT23: 412 | DU23: 412 | DV23: 412 | DW23: 410 | DY23: 71 | DZ23: 13 | EA23: 13 | EB23: 13 | EC23: 13 | ED23: 13 | EE23: 74 | EG23: 445 | EI23: 76 | EL23: 466 | EM23: 466 | EN23: 16 | EO23: 484 | EP23: 484 | EQ23: 484 | ER23: 16 | ES23: 16 | EV23: 16 | EW23: 14 | EX23: 16 | EY23: 502 | EZ23: 88 | FA23: 88 | FB23: 88 | FC23: 3077 | FE23: 526 | FF23: 16 | FG23: 16 | FH23: 91 | FI23: 91 | FJ23: 91 | FK23: 3238 | FM23: 3280 | FO23: 94 | FP23: 17 | FQ23: 17 | FR23: 17 | FS23: 566 | FU23: 17 | FV23: 17 | FW23: 17 | FZ23: 593 | GA23: 593 | GC23: 101 | GE23: 101 | GF23: 103 | GG23: 103 | GH23: 103 | GI23: 616 | GK23: 107 | GL23: 107 | GM23: 107 | GN23: 20 | GO23: 20 | GP23: 20 | GQ23: 646 | GR23: 20 | GT23: 20 | GU23: 112 | GV23: 20 | GW23: 20 | GX23: 668 | GY23: 668 | HA23: 19 | HB23: 19 | HC23: 19 | HF23: 700 | HG23: 700 | HH23: 121 | HI23: 20 | HJ23: 121 | HK23: 118 | HL23: 121 | HM23: 121 | HN23: 719 | HO23: 719 | HP23: 4 | HQ23: 4372 | HT23: 22 | HU23: 22 | HV23: 22 | HW23: 124 | HX23: 4 | HY23: 754 | HZ23: 4 | IA23: 760 | IB23: 22 | IC23: 22 | ID23: 22 | IE23: 4616 | IF23: 4 | IG23: 4 | IH23: 790 | II23: 790 | IJ23: 4 | IK23: 4 | IL23: =IF(AND(IL22<>1,IL22<>""),IF(INT(IL22/2)=IL22/2,IL22/2,3*IL22+1),"") -> 134 | IM23: 134 | IN23: 137 | IO23: 808 | IP23: 137 | IQ23: 4858 | IR23: 137 | IS23: 137 | IT23: 820 | IU23: 820
N24: =IF(AND(N23<>1,N23<>""),IF(INT(N23/2)=N23/2,N23/2,3*N23+1),"") ->  | R24: 1 | S24: 1 | Y24: 8 | AA24: 274 | AE24: 310 | AG24: =IF(AND(AG23<>1,AG23<>""),IF(INT(AG23/2)=AG23/2,AG23/2,3*AG23+1),"") -> 10 | AJ24: 2 | AK24: 2 | AL24: 2 | AM24: 11 | AO24: 412 | AQ24: 13 | AU24: 466 | AW24: =IF(AND(AW23<>1,AW23<>""),IF(INT(AW23/2)=AW23/2,AW23/2,3*AW23+1),"") -> 16 | AX24: 16 | AY24: 16 | BB24: 91 | BC24: 91 | BE24: 17 | BG24: 17 | BJ24: 103 | BK24: 103 | BM24: =IF(AND(BM23<>1,BM23<>""),IF(INT(BM23/2)=BM23/2,BM23/2,3*BM23+1),"") -> 20 | BN24: 20 | BO24: 20 | BS24: 700 | BT24: 4 | BU24: 121 | BV24: 4 | BX24: 4 | BY24: 4 | BZ24: 22 | CA24: 22 | CC24: =IF(AND(CC23<>1,CC23<>""),IF(INT(CC23/2)=CC23/2,CC23/2,3*CC23+1),"") -> 4 | CD24: 137 | CE24: 137 | CH24: 26 | CI24: 26 | CK24: 26 | CM24: 890 | CP24: 155 | CQ24: 155 | CS24: 161 | CT24: 5 | CU24: 5 | CV24: 5 | CW24: 5 | CX24: 5 | CY24: 167 | DA24: 29 | DC24: 175 | DD24: 182 | DE24: 182 | DF24: 182 | DG24: 1079 | DH24: 1 | DJ24: 34 | DK24: 34 | DL24: 1 | DM24: 1 | DN24: 34 | DO24: 34 | DP24: 1 | DQ24: 1186 | DR24: 1 | DS24: 202 | DT24: 206 | DU24: 206 | DV24: 206 | DW24: 205 | DY24: 214 | DZ24: 40 | EA24: 40 | EB24: 40 | EC24: 40 | ED24: 40 | EE24: 37 | EG24: 1336 | EI24: 38 | EL24: 233 | EM24: 233 | EN24: 8 | EO24: 242 | EP24: 242 | EQ24: 242 | ER24: 8 | ES24: 8 | EV24: 8 | EW24: 7 | EX24: 8 | EY24: 251 | EZ24: 44 | FA24: 44 | FB24: 44 | FC24: 9232 | FE24: 263 | FF24: 8 | FG24: 8 | FH24: 274 | FI24: 274 | FJ24: 274 | FK24: 1619 | FM24: 1640 | FO24: 47 | FP24: 52 | FQ24: 52 | FR24: 52 | FS24: 283 | FU24: 52 | FV24: 52 | FW24: 52 | FZ24: 1780 | GA24: 1780 | GC24: 304 | GE24: 304 | GF24: 310 | GG24: 310 | GH24: 310 | GI24: 308 | GK24: 322 | GL24: 322 | GM24: 322 | GN24: 10 | GO24: 10 | GP24: 10 | GQ24: 323 | GR24: 10 | GT24: 10 | GU24: 56 | GV24: 10 | GW24: 10 | GX24: 334 | GY24: 334 | HA24: 58 | HB24: 58 | HC24: 58 | HF24: 350 | HG24: 350 | HH24: 364 | HI24: 10 | HJ24: 364 | HK24: 59 | HL24: 364 | HM24: 364 | HN24: 2158 | HO24: 2158 | HP24: 2 | HQ24: 2186 | HT24: 11 | HU24: 11 | HV24: 11 | HW24: 62 | HX24: 2 | HY24: 377 | HZ24: 2 | IA24: 380 | IB24: 11 | IC24: 11 | ID24: 11 | IE24: 2308 | IF24: 2 | IG24: 2 | IH24: 395 | II24: 395 | IJ24: 2 | IK24: 2 | IL24: 67 | IM24: 67 | IN24: 412 | IO24: 404 | IP24: 412 | IQ24: 2429 | IR24: 412 | IS24: 412 | IT24: 410 | IU24: 410
B25: =IF(AND(B24<>1,B24<>""),IF(INT(B24/2)=B24/2,B24/2,3*B24+1),"") ->  | Y25: 4 | AA25: 137 | AD25: =IF(AND(AD24<>1,AD24<>""),IF(INT(AD24/2)=AD24/2,AD24/2,3*AD24+1),"") ->  | AE25: 155 | AG25: 5 | AJ25: 1 | AK25: 1 | AL25: 1 | AM25: 34 | AO25: 206 | AQ25: 40 | AU25: 233 | AW25: 8 | AX25: 8 | AY25: 8 | BB25: 274 | BC25: 274 | BE25: 52 | BG25: 52 | BJ25: 310 | BK25: 310 | BM25: 10 | BN25: 10 | BO25: 10 | BS25: 350 | BT25: 2 | BU25: 364 | BV25: 2 | BX25: 2 | BY25: 2 | BZ25: 11 | CA25: 11 | CC25: 2 | CD25: 412 | CE25: 412 | CH25: 13 | CI25: 13 | CK25: 13 | CM25: 445 | CP25: 466 | CQ25: 466 | CS25: 484 | CT25: 16 | CU25: 16 | CV25: 16 | CW25: 16 | CX25: 16 | CY25: 502 | DA25: 88 | DC25: 526 | DD25: 91 | DE25: 91 | DF25: 91 | DG25: 3238 | DJ25: 17 | DK25: 17 | DN25: 17 | DO25: 17 | DQ25: 593 | DS25: 101 | DT25: 103 | DU25: 103 | DV25: 103 | DW25: 616 | DY25: 107 | DZ25: 20 | EA25: 20 | EB25: 20 | EC25: 20 | ED25: 20 | EE25: 112 | EG25: 668 | EI25: 19 | EL25: 700 | EM25: 700 | EN25: 4 | EO25: 121 | EP25: 121 | EQ25: 121 | ER25: 4 | ES25: 4 | EV25: 4 | EW25: 22 | EX25: 4 | EY25: 754 | EZ25: 22 | FA25: 22 | FB25: 22 | FC25: 4616 | FE25: 790 | FF25: 4 | FG25: 4 | FH25: 137 | FI25: 137 | FJ25: 137 | FK25: 4858 | FM25: 820 | FO25: 142 | FP25: 26 | FQ25: 26 | FR25: 26 | FS25: 850 | FU25: 26 | FV25: 26 | FW25: 26 | FZ25: 890 | GA25: 890 | GC25: 152 | GE25: 152 | GF25: 155 | GG25: 155 | GH25: 155 | GI25: 154 | GK25: 161 | GL25: 161 | GM25: 161 | GN25: 5 | GO25: 5 | GP25: 5 | GQ25: 970 | GR25: 5 | GT25: 5 | GU25: 28 | GV25: 5 | GW25: 5 | GX25: 167 | GY25: 167 | HA25: 29 | HB25: 29 | HC25: 29 | HF25: 175 | HG25: 175 | HH25: 182 | HI25: 5 | HJ25: 182 | HK25: 178 | HL25: 182 | HM25: 182 | HN25: 1079 | HO25: 1079 | HP25: 1 | HQ25: 1093 | HT25: 34 | HU25: 34 | HV25: 34 | HW25: 31 | HX25: 1 | HY25: 1132 | HZ25: 1 | IA25: 190 | IB25: 34 | IC25: 34 | ID25: 34 | IE25: 1154 | IF25: 1 | IG25: 1 | IH25: 1186 | II25: 1186 | IJ25: 1 | IK25: 1 | IL25: 202 | IM25: 202 | IN25: 206 | IO25: 202 | IP25: 206 | IQ25: 7288 | IR25: 206 | IS25: 206 | IT25: 205 | IU25: 205
Y26: 2 | AA26: 412 | AE26: 466 | AG26: 16 | AM26: 17 | AO26: 103 | AQ26: 20 | AU26: 700 | AW26: 4 | AX26: 4 | AY26: 4 | BB26: 137 | BC26: 137 | BE26: 26 | BG26: 26 | BJ26: 155 | BK26: 155 | BM26: 5 | BN26: 5 | BO26: 5 | BS26: 175 | BT26: 1 | BU26: 182 | BV26: 1 | BX26: 1 | BY26: 1 | BZ26: 34 | CA26: 34 | CC26: 1 | CD26: 206 | CE26: 206 | CH26: 40 | CI26: 40 | CK26: 40 | CM26: 1336 | CP26: 233 | CQ26: 233 | CS26: 242 | CT26: 8 | CU26: 8 | CV26: 8 | CW26: 8 | CX26: 8 | CY26: 251 | DA26: 44 | DC26: 263 | DD26: 274 | DE26: 274 | DF26: 274 | DG26: 1619 | DJ26: 52 | DK26: 52 | DN26: 52 | DO26: 52 | DQ26: 1780 | DS26: 304 | DT26: 310 | DU26: 310 | DV26: 310 | DW26: 308 | DY26: 322 | DZ26: 10 | EA26: 10 | EB26: 10 | EC26: 10 | ED26: 10 | EE26: 56 | EG26: 334 | EI26: 58 | EL26: 350 | EM26: 350 | EN26: 2 | EO26: 364 | EP26: 364 | EQ26: 364 | ER26: 2 | ES26: 2 | EV26: 2 | EW26: 11 | EX26: 2 | EY26: 377 | EZ26: 11 | FA26: 11 | FB26: 11 | FC26: 2308 | FE26: 395 | FF26: 2 | FG26: 2 | FH26: 412 | FI26: 412 | FJ26: 412 | FK26: 2429 | FM26: 410 | FO26: 71 | FP26: 13 | FQ26: 13 | FR26: 13 | FS26: 425 | FU26: 13 | FV26: 13 | FW26: 13 | FZ26: 445 | GA26: 445 | GC26: 76 | GE26: 76 | GF26: 466 | GG26: 466 | GH26: 466 | GI26: 77 | GK26: 484 | GL26: 484 | GM26: 484 | GN26: 16 | GO26: 16 | GP26: 16 | GQ26: 485 | GR26: 16 | GT26: 16 | GU26: 14 | GV26: 16 | GW26: 16 | GX26: 502 | GY26: 502 | HA26: 88 | HB26: 88 | HC26: 88 | HF26: 526 | HG26: 526 | HH26: 91 | HI26: 16 | HJ26: 91 | HK26: 89 | HL26: 91 | HM26: 91 | HN26: 3238 | HO26: 3238 | HQ26: 3280 | HT26: 17 | HU26: 17 | HV26: 17 | HW26: 94 | HY26: 566 | IA26: 95 | IB26: 17 | IC26: 17 | ID26: 17 | IE26: 577 | IH26: 593 | II26: 593 | IL26: 101 | IM26: 101 | IN26: 103 | IO26: 101 | IP26: 103 | IQ26: 3644 | IR26: 103 | IS26: 103 | IT26: 616 | IU26: 616
Y27: 1 | AA27: 206 | AE27: 233 | AG27: 8 | AM27: 52 | AO27: 310 | AQ27: 10 | AU27: 350 | AW27: 2 | AX27: 2 | AY27: 2 | BB27: 412 | BC27: 412 | BE27: 13 | BG27: 13 | BJ27: 466 | BK27: 466 | BM27: 16 | BN27: 16 | BO27: 16 | BS27: 526 | BU27: 91 | BZ27: 17 | CA27: 17 | CD27: 103 | CE27: 103 | CH27: 20 | CI27: 20 | CK27: 20 | CM27: 668 | CP27: 700 | CQ27: 700 | CS27: 121 | CT27: 4 | CU27: 4 | CV27: 4 | CW27: 4 | CX27: 4 | CY27: 754 | DA27: 22 | DC27: 790 | DD27: 137 | DE27: 137 | DF27: 137 | DG27: 4858 | DJ27: 26 | DK27: 26 | DN27: 26 | DO27: 26 | DQ27: 890 | DS27: 152 | DT27: 155 | DU27: 155 | DV27: 155 | DW27: 154 | DY27: 161 | DZ27: 5 | EA27: 5 | EB27: 5 | EC27: 5 | ED27: 5 | EE27: 28 | EG27: 167 | EI27: 29 | EL27: 175 | EM27: 175 | EN27: 1 | EO27: 182 | EP27: 182 | EQ27: 182 | ER27: 1 | ES27: 1 | EV27: 1 | EW27: 34 | EX27: 1 | EY27: 1132 | EZ27: 34 | FA27: 34 | FB27: 34 | FC27: 1154 | FE27: 1186 | FF27: 1 | FG27: 1 | FH27: 206 | FI27: 206 | FJ27: 206 | FK27: 7288 | FM27: 205 | FO27: 214 | FP27: 40 | FQ27: 40 | FR27: 40 | FS27: 1276 | FU27: 40 | FV27: 40 | FW27: 40 | FZ27: 1336 | GA27: 1336 | GC27: 38 | GE27: 38 | GF27: 233 | GG27: 233 | GH27: 233 | GI27: 232 | GK27: 242 | GL27: 242 | GM27: 242 | GN27: 8 | GO27: 8 | GP27: 8 | GQ27: 1456 | GR27: 8 | GT27: 8 | GU27: 7 | GV27: 8 | GW27: 8 | GX27: 251 | GY27: 251 | HA27: 44 | HB27: 44 | HC27: 44 | HF27: 263 | HG27: 263 | HH27: 274 | HI27: 8 | HJ27: 274 | HK27: 268 | HL27: 274 | HM27: 274 | HN27: 1619 | HO27: 1619 | HQ27: 1640 | HT27: 52 | HU27: 52 | HV27: 52 | HW27: 47 | HY27: 283 | IA27: 286 | IB27: 52 | IC27: 52 | ID27: 52 | IE27: 1732 | IH27: 1780 | II27: 1780 | IL27: 304 | IM27: 304 | IN27: 310 | IO27: 304 | IP27: 310 | IQ27: 1822 | IR27: 310 | IS27: 310 | IT27: 308 | IU27: 308
AA28: 103 | AE28: 700 | AG28: 4 | AM28: 26 | AO28: 155 | AQ28: 5 | AU28: 175 | AW28: 1 | AX28: 1 | AY28: 1 | BB28: 206 | BC28: 206 | BE28: 40 | BG28: 40 | BJ28: 233 | BK28: 233 | BM28: 8 | BN28: 8 | BO28: 8 | BS28: 263 | BU28: 274 | BZ28: 52 | CA28: 52 | CD28: 310 | CE28: 310 | CH28: 10 | CI28: 10 | CK28: 10 | CM28: 334 | CP28: 350 | CQ28: 350 | CS28: 364 | CT28: 2 | CU28: 2 | CV28: 2 | CW28: 2 | CX28: 2 | CY28: 377 | DA28: 11 | DC28: 395 | DD28: 412 | DE28: 412 | DF28: 412 | DG28: 2429 | DJ28: 13 | DK28: 13 | DN28: 13 | DO28: 13 | DQ28: 445 | DS28: 76 | DT28: 466 | DU28: 466 | DV28: 466 | DW28: 77 | DY28: 484 | DZ28: 16 | EA28: 16 | EB28: 16 | EC28: 16 | ED28: 16 | EE28: 14 | EG28: 502 | EI28: 88 | EL28: 526 | EM28: 526 | EO28: 91 | EP28: 91 | EQ28: 91 | EW28: 17 | EY28: 566 | EZ28: 17 | FA28: 17 | FB28: 17 | FC28: 577 | FE28: 593 | FH28: 103 | FI28: 103 | FJ28: 103 | FK28: 3644 | FM28: 616 | FO28: 107 | FP28: 20 | FQ28: 20 | FR28: 20 | FS28: 638 | FU28: 20 | FV28: 20 | FW28: 20 | FZ28: 668 | GA28: 668 | GC28: 19 | GE28: 19 | GF28: 700 | GG28: 700 | GH28: 700 | GI28: 116 | GK28: 121 | GL28: 121 | GM28: 121 | GN28: 4 | GO28: 4 | GP28: 4 | GQ28: 728 | GR28: 4 | GT28: 4 | GU28: 22 | GV28: 4 | GW28: 4 | GX28: 754 | GY28: 754 | HA28: 22 | HB28: 22 | HC28: 22 | HF28: 790 | HG28: 790 | HH28: 137 | HI28: 4 | HJ28: 137 | HK28: 134 | HL28: 137 | HM28: 137 | HN28: 4858 | HO28: 4858 | HQ28: 820 | HT28: 26 | HU28: 26 | HV28: 26 | HW28: 142 | HY28: 850 | IA28: 143 | IB28: 26 | IC28: 26 | ID28: 26 | IE28: 866 | IH28: 890 | II28: 890 | IL28: 152 | IM28: 152 | IN28: 155 | IO28: 152 | IP28: 155 | IQ28: 911 | IR28: 155 | IS28: 155 | IT28: 154 | IU28: 154
AA29: 310 | AE29: 350 | AG29: 2 | AM29: 13 | AO29: 466 | AQ29: 16 | AU29: 526 | BB29: 103 | BC29: 103 | BE29: 20 | BG29: 20 | BJ29: 700 | BK29: 700 | BM29: 4 | BN29: 4 | BO29: 4 | BS29: 790 | BU29: 137 | BZ29: 26 | CA29: 26 | CD29: 155 | CE29: 155 | CH29: 5 | CI29: 5 | CK29: 5 | CM29: 167 | CP29: 175 | CQ29: 175 | CS29: 182 | CT29: 1 | CU29: 1 | CV29: 1 | CW29: 1 | CX29: 1 | CY29: 1132 | DA29: 34 | DC29: 1186 | DD29: 206 | DE29: 206 | DF29: 206 | DG29: 7288 | DJ29: 40 | DK29: 40 | DN29: 40 | DO29: 40 | DQ29: 1336 | DS29: 38 | DT29: 233 | DU29: 233 | DV29: 233 | DW29: 232 | DY29: 242 | DZ29: 8 | EA29: 8 | EB29: 8 | EC29: 8 | ED29: 8 | EE29: 7 | EG29: 251 | EI29: 44 | EL29: 263 | EM29: 263 | EO29: 274 | EP29: 274 | EQ29: 274 | EW29: 52 | EY29: 283 | EZ29: 52 | FA29: 52 | FB29: 52 | FC29: 1732 | FE29: 1780 | FH29: 310 | FI29: 310 | FJ29: 310 | FK29: 1822 | FM29: 308 | FO29: 322 | FP29: 10 | FQ29: 10 | FR29: 10 | FS29: 319 | FU29: 10 | FV29: 10 | FW29: 10 | FZ29: 334 | GA29: 334 | GC29: 58 | GE29: 58 | GF29: 350 | GG29: 350 | GH29: 350 | GI29: 58 | GK29: 364 | GL29: 364 | GM29: 364 | GN29: 2 | GO29: 2 | GP29: 2 | GQ29: 364 | GR29: 2 | GT29: 2 | GU29: 11 | GV29: 2 | GW29: 2 | GX29: 377 | GY29: 377 | HA29: 11 | HB29: 11 | HC29: 11 | HF29: 395 | HG29: 395 | HH29: 412 | HI29: 2 | HJ29: 412 | HK29: 67 | HL29: 412 | HM29: 412 | HN29: 2429 | HO29: 2429 | HQ29: 410 | HT29: 13 | HU29: 13 | HV29: 13 | HW29: 71 | HY29: 425 | IA29: 430 | IB29: 13 | IC29: 13 | ID29: 13 | IE29: 433 | IH29: 445 | II29: 445 | IL29: 76 | IM29: 76 | IN29: 466 | IO29: 76 | IP29: 466 | IQ29: 2734 | IR29: 466 | IS29: 466 | IT29: 77 | IU29: 77
AA30: 155 | AE30: 175 | AG30: 1 | AM30: 40 | AO30: 233 | AQ30: 8 | AU30: 263 | BB30: 310 | BC30: 310 | BE30: 10 | BG30: 10 | BJ30: 350 | BK30: 350 | BM30: 2 | BN30: 2 | BO30: 2 | BS30: 395 | BU30: 412 | BZ30: 13 | CA30: 13 | CD30: 466 | CE30: 466 | CH30: 16 | CI30: 16 | CK30: 16 | CM30: 502 | CP30: 526 | CQ30: 526 | CS30: 91 | CY30: 566 | DA30: 17 | DC30: 593 | DD30: 103 | DE30: 103 | DF30: 103 | DG30: 3644 | DJ30: 20 | DK30: 20 | DN30: 20 | DO30: 20 | DQ30: 668 | DS30: 19 | DT30: 700 | DU30: 700 | DV30: 700 | DW30: 116 | DY30: 121 | DZ30: 4 | EA30: 4 | EB30: 4 | EC30: 4 | ED30: 4 | EE30: 22 | EG30: 754 | EI30: 22 | EL30: 790 | EM30: 790 | EO30: 137 | EP30: 137 | EQ30: 137 | EW30: 26 | EY30: 850 | EZ30: 26 | FA30: 26 | FB30: 26 | FC30: 866 | FE30: 890 | FH30: 155 | FI30: 155 | FJ30: 155 | FK30: 911 | FM30: 154 | FO30: 161 | FP30: 5 | FQ30: 5 | FR30: 5 | FS30: 958 | FU30: 5 | FV30: 5 | FW30: 5 | FZ30: 167 | GA30: 167 | GC30: 29 | GE30: 29 | GF30: 175 | GG30: 175 | GH30: 175 | GI30: 29 | GK30: 182 | GL30: 182 | GM30: 182 | GN30: 1 | GO30: 1 | GP30: 1 | GQ30: 182 | GR30: 1 | GT30: 1 | GU30: 34 | GV30: 1 | GW30: 1 | GX30: 1132 | GY30: 1132 | HA30: 34 | HB30: 34 | HC30: 34 | HF30: 1186 | HG30: 1186 | HH30: 206 | HI30: 1 | HJ30: 206 | HK30: 202 | HL30: 206 | HM30: 206 | HN30: 7288 | HO30: 7288 | HQ30: 205 | HT30: 40 | HU30: 40 | HV30: 40 | HW30: 214 | HY30: 1276 | IA30: 215 | IB30: 40 | IC30: 40 | ID30: 40 | IE30: 1300 | IH30: 1336 | II30: 1336 | IL30: 38 | IM30: 38 | IN30: 233 | IO30: 38 | IP30: 233 | IQ30: 1367 | IR30: 233 | IS30: 233 | IT30: 232 | IU30: 232
AA31: 466 | AE31: 526 | AM31: 20 | AO31: 700 | AQ31: 4 | AU31: 790 | BB31: 155 | BC31: 155 | BE31: 5 | BG31: 5 | BJ31: 175 | BK31: 175 | BM31: 1 | BN31: 1 | BO31: 1 | BS31: 1186 | BU31: 206 | BZ31: 40 | CA31: 40 | CD31: 233 | CE31: 233 | CH31: 8 | CI31: 8 | CK31: 8 | CM31: 251 | CP31: 263 | CQ31: 263 | CS31: 274 | CY31: 283 | DA31: 52 | DC31: 1780 | DD31: 310 | DE31: 310 | DF31: 310 | DG31: 1822 | DJ31: 10 | DK31: 10 | DN31: 10 | DO31: 10 | DQ31: 334 | DS31: 58 | DT31: 350 | DU31: 350 | DV31: 350 | DW31: 58 | DY31: 364 | DZ31: 2 | EA31: 2 | EB31: 2 | EC31: 2 | ED31: 2 | EE31: 11 | EG31: 377 | EI31: 11 | EL31: 395 | EM31: 395 | EO31: 412 | EP31: 412 | EQ31: 412 | EW31: 13 | EY31: 425 | EZ31: 13 | FA31: 13 | FB31: 13 | FC31: 433 | FE31: 445 | FH31: 466 | FI31: 466 | FJ31: 466 | FK31: 2734 | FM31: 77 | FO31: 484 | FP31: 16 | FQ31: 16 | FR31: 16 | FS31: 479 | FU31: 16 | FV31: 16 | FW31: 16 | FZ31: 502 | GA31: 502 | GC31: 88 | GE31: 88 | GF31: 526 | GG31: 526 | GH31: 526 | GI31: 88 | GK31: 91 | GL31: 91 | GM31: 91 | GQ31: 91 | GU31: 17 | GX31: 566 | GY31: 566 | HA31: 17 | HB31: 17 | HC31: 17 | HF31: 593 | HG31: 593 | HH31: 103 | HJ31: 103 | HK31: 101 | HL31: 103 | HM31: 103 | HN31: 3644 | HO31: 3644 | HQ31: 616 | HT31: 20 | HU31: 20 | HV31: 20 | HW31: 107 | HY31: 638 | IA31: 646 | IB31: 20 | IC31: 20 | ID31: 20 | IE31: 650 | IH31: 668 | II31: 668 | IL31: 19 | IM31: 19 | IN31: 700 | IO31: 19 | IP31: 700 | IQ31: 4102 | IR31: 700 | IS31: 700 | IT31: 116 | IU31: 116
AA32: 233 | AE32: 263 | AM32: 10 | AO32: 350 | AQ32: 2 | AU32: 395 | BB32: 466 | BC32: 466 | BE32: 16 | BG32: 16 | BJ32: 526 | BK32: 526 | BS32: 593 | BU32: 103 | BZ32: 20 | CA32: 20 | CD32: 700 | CE32: 700 | CH32: 4 | CI32: 4 | CK32: 4 | CM32: 754 | CP32: 790 | CQ32: 790 | CS32: 137 | CY32: 850 | DA32: 26 | DC32: 890 | DD32: 155 | DE32: 155 | DF32: 155 | DG32: 911 | DJ32: 5 | DK32: 5 | DN32: 5 | DO32: 5 | DQ32: 167 | DS32: 29 | DT32: 175 | DU32: 175 | DV32: 175 | DW32: 29 | DY32: 182 | DZ32: 1 | EA32: 1 | EB32: 1 | EC32: 1 | ED32: 1 | EE32: 34 | EG32: 1132 | EI32: 34 | EL32: 1186 | EM32: 1186 | EO32: 206 | EP32: 206 | EQ32: 206 | EW32: 40 | EY32: 1276 | EZ32: 40 | FA32: 40 | FB32: 40 | FC32: 1300 | FE32: 1336 | FH32: 233 | FI32: 233 | FJ32: 233 | FK32: 1367 | FM32: 232 | FO32: 242 | FP32: 8 | FQ32: 8 | FR32: 8 | FS32: 1438 | FU32: 8 | FV32: 8 | FW32: 8 | FZ32: 251 | GA32: 251 | GC32: 44 | GE32: 44 | GF32: 263 | GG32: 263 | GH32: 263 | GI32: 44 | GK32: 274 | GL32: 274 | GM32: 274 | GQ32: 274 | GU32: 52 | GX32: 283 | GY32: 283 | HA32: 52 | HB32: 52 | HC32: 52 | HF32: 1780 | HG32: 1780 | HH32: 310 | HJ32: 310 | HK32: 304 | HL32: 310 | HM32: 310 | HN32: 1822 | HO32: 1822 | HQ32: 308 | HT32: 10 | HU32: 10 | HV32: 10 | HW32: 322 | HY32: 319 | IA32: 323 | IB32: 10 | IC32: 10 | ID32: 10 | IE32: 325 | IH32: 334 | II32: 334 | IL32: 58 | IM32: 58 | IN32: 350 | IO32: 58 | IP32: 350 | IQ32: 2051 | IR32: 350 | IS32: 350 | IT32: 58 | IU32: 58
AA33: 700 | AE33: 790 | AM33: 5 | AO33: 175 | AQ33: 1 | AU33: 1186 | BB33: 233 | BC33: 233 | BE33: 8 | BG33: 8 | BJ33: 263 | BK33: 263 | BS33: 1780 | BU33: 310 | BZ33: 10 | CA33: 10 | CD33: 350 | CE33: 350 | CH33: 2 | CI33: 2 | CK33: 2 | CM33: 377 | CP33: 395 | CQ33: 395 | CS33: 412 | CY33: 425 | DA33: 13 | DC33: 445 | DD33: 466 | DE33: 466 | DF33: 466 | DG33: 2734 | DJ33: 16 | DK33: 16 | DN33: 16 | DO33: 16 | DQ33: 502 | DS33: 88 | DT33: 526 | DU33: 526 | DV33: 526 | DW33: 88 | DY33: 91 | EE33: 17 | EG33: 566 | EI33: 17 | EL33: 593 | EM33: 593 | EO33: 103 | EP33: 103 | EQ33: 103 | EW33: 20 | EY33: 638 | EZ33: 20 | FA33: 20 | FB33: 20 | FC33: 650 | FE33: 668 | FH33: 700 | FI33: 700 | FJ33: 700 | FK33: 4102 | FM33: 116 | FO33: 121 | FP33: 4 | FQ33: 4 | FR33: 4 | FS33: 719 | FU33: 4 | FV33: 4 | FW33: 4 | FZ33: 754 | GA33: 754 | GC33: 22 | GE33: 22 | GF33: 790 | GG33: 790 | GH33: 790 | GI33: 22 | GK33: 137 | GL33: 137 | GM33: 137 | GQ33: 137 | GU33: 26 | GX33: 850 | GY33: 850 | HA33: 26 | HB33: 26 | HC33: 26 | HF33: 890 | HG33: 890 | HH33: 155 | HJ33: 155 | HK33: 152 | HL33: 155 | HM33: 155 | HN33: 911 | HO33: 911 | HQ33: 154 | HT33: 5 | HU33: 5 | HV33: 5 | HW33: 161 | HY33: 958 | IA33: 970 | IB33: 5 | IC33: 5 | ID33: 5 | IE33: 976 | IH33: 167 | II33: 167 | IL33: 29 | IM33: 29 | IN33: 175 | IO33: 29 | IP33: 175 | IQ33: 6154 | IR33: 175 | IS33: 175 | IT33: 29 | IU33: 29
AA34: 350 | AE34: 395 | AM34: 16 | AO34: 526 | AU34: 593 | BB34: 700 | BC34: 700 | BE34: 4 | BG34: 4 | BJ34: 790 | BK34: 790 | BS34: 890 | BU34: 155 | BZ34: 5 | CA34: 5 | CD34: 175 | CE34: 175 | CH34: 1 | CI34: 1 | CK34: 1 | CM34: 1132 | CP34: 1186 | CQ34: 1186 | CS34: 206 | CY34: 1276 | DA34: 40 | DC34: 1336 | DD34: 233 | DE34: 233 | DF34: 233 | DG34: 1367 | DJ34: 8 | DK34: 8 | DN34: 8 | DO34: 8 | DQ34: 251 | DS34: 44 | DT34: 263 | DU34: 263 | DV34: 263 | DW34: 44 | DY34: 274 | EE34: 52 | EG34: 283 | EI34: 52 | EL34: 1780 | EM34: 1780 | EO34: 310 | EP34: 310 | EQ34: 310 | EW34: 10 | EY34: 319 | EZ34: 10 | FA34: 10 | FB34: 10 | FC34: 325 | FE34: 334 | FH34: 350 | FI34: 350 | FJ34: 350 | FK34: 2051 | FM34: 58 | FO34: 364 | FP34: 2 | FQ34: 2 | FR34: 2 | FS34: 2158 | FU34: 2 | FV34: 2 | FW34: 2 | FZ34: 377 | GA34: 377 | GC34: 11 | GE34: 11 | GF34: 395 | GG34: 395 | GH34: 395 | GI34: 11 | GK34: 412 | GL34: 412 | GM34: 412 | GQ34: 412 | GU34: 13 | GX34: 425 | GY34: 425 | HA34: 13 | HB34: 13 | HC34: 13 | HF34: 445 | HG34: 445 | HH34: 466 | HJ34: 466 | HK34: 76 | HL34: 466 | HM34: 466 | HN34: 2734 | HO34: 2734 | HQ34: 77 | HT34: 16 | HU34: 16 | HV34: 16 | HW34: 484 | HY34: 479 | IA34: 485 | IB34: 16 | IC34: 16 | ID34: 16 | IE34: 488 | IH34: 502 | II34: 502 | IL34: 88 | IM34: 88 | IN34: 526 | IO34: 88 | IP34: 526 | IQ34: 3077 | IR34: 526 | IS34: 526 | IT34: 88 | IU34: 88
AA35: 175 | AE35: 1186 | AM35: 8 | AO35: 263 | AU35: 1780 | BB35: 350 | BC35: 350 | BE35: 2 | BG35: 2 | BJ35: 395 | BK35: 395 | BS35: 445 | BU35: 466 | BZ35: 16 | CA35: 16 | CD35: 526 | CE35: 526 | CM35: 566 | CP35: 593 | CQ35: 593 | CS35: 103 | CY35: 638 | DA35: 20 | DC35: 668 | DD35: 700 | DE35: 700 | DF35: 700 | DG35: 4102 | DJ35: 4 | DK35: 4 | DN35: 4 | DO35: 4 | DQ35: 754 | DS35: 22 | DT35: 790 | DU35: 790 | DV35: 790 | DW35: 22 | DY35: 137 | EE35: 26 | EG35: 850 | EI35: 26 | EL35: 890 | EM35: 890 | EO35: 155 | EP35: 155 | EQ35: 155 | EW35: 5 | EY35: 958 | EZ35: 5 | FA35: 5 | FB35: 5 | FC35: 976 | FE35: 167 | FH35: 175 | FI35: 175 | FJ35: 175 | FK35: 6154 | FM35: 29 | FO35: 182 | FP35: 1 | FQ35: 1 | FR35: 1 | FS35: 1079 | FU35: 1 | FV35: 1 | FW35: 1 | FZ35: 1132 | GA35: 1132 | GC35: 34 | GE35: 34 | GF35: 1186 | GG35: 1186 | GH35: 1186 | GI35: 34 | GK35: 206 | GL35: 206 | GM35: 206 | GQ35: 206 | GU35: 40 | GX35: 1276 | GY35: 1276 | HA35: 40 | HB35: 40 | HC35: 40 | HF35: 1336 | HG35: 1336 | HH35: 233 | HJ35: 233 | HK35: 38 | HL35: 233 | HM35: 233 | HN35: 1367 | HO35: 1367 | HQ35: 232 | HT35: 8 | HU35: 8 | HV35: 8 | HW35: 242 | HY35: 1438 | IA35: 1456 | IB35: 8 | IC35: 8 | ID35: 8 | IE35: 244 | IH35: 251 | II35: 251 | IL35: 44 | IM35: 44 | IN35: 263 | IO35: 44 | IP35: 263 | IQ35: 9232 | IR35: 263 | IS35: 263 | IT35: 44 | IU35: 44
AA36: 526 | AE36: 593 | AM36: 4 | AO36: 790 | AU36: 890 | BB36: 175 | BC36: 175 | BE36: 1 | BG36: 1 | BJ36: 1186 | BK36: 1186 | BS36: 1336 | BU36: 233 | BZ36: 8 | CA36: 8 | CD36: 263 | CE36: 263 | CM36: 283 | CP36: 1780 | CQ36: 1780 | CS36: =IF(AND(CS35<>1,CS35<>""),IF(INT(CS35/2)=CS35/2,CS35/2,3*CS35+1),"") -> 310 | CY36: 319 | DA36: 10 | DC36: 334 | DD36: 350 | DE36: 350 | DF36: 350 | DG36: 2051 | DI36: =IF(AND(DI35<>1,DI35<>""),IF(INT(DI35/2)=DI35/2,DI35/2,3*DI35+1),"") ->  | DJ36: 2 | DK36: 2 | DN36: 2 | DO36: 2 | DQ36: 377 | DS36: 11 | DT36: 395 | DU36: 395 | DV36: 395 | DW36: 11 | DY36: =IF(AND(DY35<>1,DY35<>""),IF(INT(DY35/2)=DY35/2,DY35/2,3*DY35+1),"") -> 412 | EE36: 13 | EG36: 425 | EI36: 13 | EL36: 445 | EM36: 445 | EO36: =IF(AND(EO35<>1,EO35<>""),IF(INT(EO35/2)=EO35/2,EO35/2,3*EO35+1),"") -> 466 | EP36: 466 | EQ36: 466 | EW36: 16 | EY36: 479 | EZ36: 16 | FA36: 16 | FB36: 16 | FC36: 488 | FE36: =IF(AND(FE35<>1,FE35<>""),IF(INT(FE35/2)=FE35/2,FE35/2,3*FE35+1),"") -> 502 | FH36: 526 | FI36: 526 | FJ36: 526 | FK36: 3077 | FM36: 88 | FO36: 91 | FS36: 3238 | FU36: =IF(AND(FU35<>1,FU35<>""),IF(INT(FU35/2)=FU35/2,FU35/2,3*FU35+1),"") ->  | FZ36: 566 | GA36: 566 | GC36: 17 | GE36: 17 | GF36: 593 | GG36: 593 | GH36: 593 | GI36: 17 | GK36: =IF(AND(GK35<>1,GK35<>""),IF(INT(GK35/2)=GK35/2,GK35/2,3*GK35+1),"") -> 103 | GL36: 103 | GM36: 103 | GQ36: 103 | GU36: 20 | GX36: 638 | GY36: 638 | HA36: =IF(AND(HA35<>1,HA35<>""),IF(INT(HA35/2)=HA35/2,HA35/2,3*HA35+1),"") -> 20 | HB36: 20 | HC36: 20 | HF36: 668 | HG36: 668 | HH36: 700 | HJ36: 700 | HK36: 19 | HL36: 700 | HM36: 700 | HN36: 4102 | HO36: 4102 | HQ36: =IF(AND(HQ35<>1,HQ35<>""),IF(INT(HQ35/2)=HQ35/2,HQ35/2,3*HQ35+1),"") -> 116 | HT36: 4 | HU36: 4 | HV36: 4 | HW36: 121 | HY36: 719 | IA36: 728 | IB36: 4 | IC36: 4 | ID36: 4 | IE36: 122 | IG36: =IF(AND(IG35<>1,IG35<>""),IF(INT(IG35/2)=IG35/2,IG35/2,3*IG35+1),"") ->  | IH36: 754 | II36: 754 | IL36: 22 | IM36: 22 | IN36: 790 | IO36: 22 | IP36: 790 | IQ36: 4616 | IR36: 790 | IS36: 790 | IT36: 22 | IU36: 22
AA37: 263 | AE37: 1780 | AM37: 2 | AO37: 395 | AU37: 445 | BB37: 526 | BC37: 526 | BJ37: 593 | BK37: 593 | BS37: 668 | BU37: 700 | BZ37: 4 | CA37: 4 | CD37: 790 | CE37: 790 | CM37: 850 | CP37: 890 | CQ37: 890 | CS37: 155 | CY37: 958 | DA37: 5 | DC37: 167 | DD37: 175 | DE37: 175 | DF37: 175 | DG37: 6154 | DJ37: 1 | DK37: 1 | DN37: 1 | DO37: 1 | DQ37: 1132 | DS37: 34 | DT37: 1186 | DU37: 1186 | DV37: 1186 | DW37: 34 | DY37: 206 | EE37: 40 | EG37: 1276 | EI37: 40 | EL37: 1336 | EM37: 1336 | EO37: 233 | EP37: 233 | EQ37: 233 | EW37: 8 | EY37: 1438 | EZ37: 8 | FA37: 8 | FB37: 8 | FC37: 244 | FE37: 251 | FH37: 263 | FI37: 263 | FJ37: 263 | FK37: 9232 | FM37: 44 | FO37: 274 | FS37: 1619 | FZ37: 283 | GA37: 283 | GC37: 52 | GE37: 52 | GF37: 1780 | GG37: 1780 | GH37: 1780 | GI37: 52 | GK37: 310 | GL37: 310 | GM37: 310 | GQ37: 310 | GU37: 10 | GX37: 319 | GY37: 319 | HA37: 10 | HB37: 10 | HC37: 10 | HF37: 334 | HG37: 334 | HH37: 350 | HJ37: 350 | HK37: 58 | HL37: 350 | HM37: 350 | HN37: 2051 | HO37: 2051 | HQ37: 58 | HT37: 2 | HU37: 2 | HV37: 2 | HW37: 364 | HY37: 2158 | IA37: 364 | IB37: 2 | IC37: 2 | ID37: 2 | IE37: 61 | IH37: 377 | II37: 377 | IL37: 11 | IM37: 11 | IN37: 395 | IO37: 11 | IP37: 395 | IQ37: 2308 | IR37: 395 | IS37: 395 | IT37: 11 | IU37: 11
AA38: 790 | AE38: 890 | AM38: 1 | AO38: 1186 | AU38: 1336 | BB38: 263 | BC38: 263 | BJ38: 1780 | BK38: 1780 | BS38: 334 | BU38: 350 | BZ38: 2 | CA38: 2 | CD38: 395 | CE38: 395 | CM38: 425 | CP38: 445 | CQ38: 445 | CS38: 466 | CY38: 479 | DA38: 16 | DC38: 502 | DD38: 526 | DE38: 526 | DF38: 526 | DG38: 3077 | DQ38: 566 | DS38: 17 | DT38: 593 | DU38: 593 | DV38: 593 | DW38: 17 | DY38: 103 | EE38: 20 | EG38: 638 | EI38: 20 | EL38: 668 | EM38: 668 | EO38: 700 | EP38: 700 | EQ38: 700 | EW38: 4 | EY38: 719 | EZ38: 4 | FA38: 4 | FB38: 4 | FC38: 122 | FE38: 754 | FH38: 790 | FI38: 790 | FJ38: 790 | FK38: 4616 | FM38: 22 | FO38: 137 | FS38: 4858 | FZ38: 850 | GA38: 850 | GC38: 26 | GE38: 26 | GF38: 890 | GG38: 890 | GH38: 890 | GI38: 26 | GK38: 155 | GL38: 155 | GM38: 155 | GQ38: 155 | GU38: 5 | GX38: 958 | GY38: 958 | HA38: 5 | HB38: 5 | HC38: 5 | HF38: 167 | HG38: 167 | HH38: 175 | HJ38: 175 | HK38: 29 | HL38: 175 | HM38: 175 | HN38: 6154 | HO38: 6154 | HQ38: 29 | HT38: 1 | HU38: 1 | HV38: 1 | HW38: 182 | HY38: 1079 | IA38: 182 | IB38: 1 | IC38: 1 | ID38: 1 | IE38: 184 | IH38: 1132 | II38: 1132 | IL38: 34 | IM38: 34 | IN38: 1186 | IO38: 34 | IP38: 1186 | IQ38: 1154 | IR38: 1186 | IS38: 1186 | IT38: 34 | IU38: 34
AA39: 395 | AE39: 445 | AO39: 593 | AU39: 668 | BB39: 790 | BC39: 790 | BJ39: 890 | BK39: 890 | BS39: 167 | BU39: 175 | BZ39: 1 | CA39: 1 | CB39: =IF(AND(CB38<>1,CB38<>""),IF(INT(CB38/2)=CB38/2,CB38/2,3*CB38+1),"") ->  | CD39: 1186 | CE39: 1186 | CM39: 1276 | CP39: 1336 | CQ39: 1336 | CS39: 233 | CY39: 1438 | DA39: 8 | DC39: 251 | DD39: 263 | DE39: 263 | DF39: 263 | DG39: 9232 | DQ39: 283 | DS39: 52 | DT39: 1780 | DU39: 1780 | DV39: 1780 | DW39: 52 | DY39: 310 | EE39: 10 | EG39: 319 | EI39: 10 | EL39: 334 | EM39: 334 | EO39: 350 | EP39: 350 | EQ39: 350 | EW39: 2 | EY39: 2158 | EZ39: 2 | FA39: 2 | FB39: 2 | FC39: 61 | FE39: 377 | FH39: 395 | FI39: 395 | FJ39: 395 | FK39: 2308 | FM39: 11 | FO39: 412 | FS39: 2429 | FZ39: 425 | GA39: 425 | GC39: 13 | GE39: 13 | GF39: 445 | GG39: 445 | GH39: 445 | GI39: 13 | GK39: 466 | GL39: 466 | GM39: 466 | GQ39: 466 | GU39: 16 | GX39: 479 | GY39: 479 | HA39: 16 | HB39: 16 | HC39: 16 | HF39: 502 | HG39: 502 | HH39: 526 | HJ39: 526 | HK39: 88 | HL39: 526 | HM39: 526 | HN39: 3077 | HO39: 3077 | HQ39: 88 | HW39: 91 | HY39: 3238 | IA39: 91 | IE39: 92 | IH39: 566 | II39: 566 | IL39: 17 | IM39: 17 | IN39: 593 | IO39: 17 | IP39: 593 | IQ39: 577 | IR39: 593 | IS39: 593 | IT39: 17 | IU39: 17
Y40: =IF(AND(Y39<>1,Y39<>""),IF(INT(Y39/2)=Y39/2,Y39/2,3*Y39+1),"") ->  | AA40: 1186 | AE40: 1336 | AO40: 1780 | AU40: =IF(AND(AU39<>1,AU39<>""),IF(INT(AU39/2)=AU39/2,AU39/2,3*AU39+1),"") -> 334 | BB40: 395 | BC40: 395 | BJ40: 445 | BK40: =IF(AND(BK39<>1,BK39<>""),IF(INT(BK39/2)=BK39/2,BK39/2,3*BK39+1),"") -> 445 | BS40: 502 | BU40: 526 | CA40: =IF(AND(CA39<>1,CA39<>""),IF(INT(CA39/2)=CA39/2,CA39/2,3*CA39+1),"") ->  | CD40: 593 | CE40: 593 | CM40: 638 | CP40: 668 | CQ40: 668 | CS40: 700 | CY40: 719 | DA40: 4 | DC40: 754 | DD40: 790 | DE40: 790 | DF40: 790 | DG40: 4616 | DQ40: 850 | DS40: 26 | DT40: 890 | DU40: 890 | DV40: 890 | DW40: 26 | DY40: 155 | EE40: 5 | EG40: 958 | EI40: 5 | EL40: 167 | EM40: 167 | EO40: 175 | EP40: 175 | EQ40: 175 | EW40: 1 | EY40: 1079 | EZ40: 1 | FA40: 1 | FB40: 1 | FC40: 184 | FE40: 1132 | FH40: 1186 | FI40: 1186 | FJ40: 1186 | FK40: 1154 | FM40: 34 | FO40: 206 | FS40: 7288 | FZ40: 1276 | GA40: 1276 | GC40: 40 | GE40: 40 | GF40: 1336 | GG40: 1336 | GH40: 1336 | GI40: 40 | GK40: 233 | GL40: 233 | GM40: 233 | GQ40: 233 | GU40: 8 | GX40: 1438 | GY40: 1438 | HA40: 8 | HB40: 8 | HC40: 8 | HF40: 251 | HG40: 251 | HH40: 263 | HJ40: 263 | HK40: 44 | HL40: 263 | HM40: 263 | HN40: 9232 | HO40: 9232 | HQ40: 44 | HW40: 274 | HY40: 1619 | IA40: 274 | IE40: 46 | IH40: 283 | II40: 283 | IL40: 52 | IM40: 52 | IN40: 1780 | IO40: 52 | IP40: 1780 | IQ40: 1732 | IR40: 1780 | IS40: 1780 | IT40: 52 | IU40: 52
R41: =IF(AND(R40<>1,R40<>""),IF(INT(R40/2)=R40/2,R40/2,3*R40+1),"") ->  | AA41: 593 | AE41: 668 | AO41: 890 | AT41: =IF(AND(AT40<>1,AT40<>""),IF(INT(AT40/2)=AT40/2,AT40/2,3*AT40+1),"") ->  | AU41: 167 | BB41: 1186 | BC41: 1186 | BJ41: 1336 | BK41: 1336 | BS41: 251 | BU41: 263 | CD41: 1780 | CE41: 1780 | CM41: 319 | CP41: 334 | CQ41: 334 | CS41: 350 | CY41: 2158 | DA41: 2 | DC41: 377 | DD41: 395 | DE41: 395 | DF41: 395 | DG41: 2308 | DQ41: 425 | DS41: 13 | DT41: 445 | DU41: 445 | DV41: 445 | DW41: 13 | DY41: 466 | EE41: 16 | EG41: 479 | EI41: 16 | EL41: 502 | EM41: 502 | EO41: 526 | EP41: 526 | EQ41: 526 | EY41: 3238 | FC41: 92 | FE41: 566 | FH41: 593 | FI41: 593 | FJ41: 593 | FK41: 577 | FM41: 17 | FO41: 103 | FS41: 3644 | FZ41: 638 | GA41: 638 | GC41: 20 | GE41: 20 | GF41: 668 | GG41: 668 | GH41: 668 | GI41: 20 | GK41: 700 | GL41: 700 | GM41: 700 | GQ41: 700 | GU41: 4 | GX41: 719 | GY41: 719 | HA41: 4 | HB41: 4 | HC41: 4 | HF41: 754 | HG41: 754 | HH41: 790 | HJ41: 790 | HK41: 22 | HL41: 790 | HM41: 790 | HN41: 4616 | HO41: 4616 | HQ41: 22 | HW41: 137 | HY41: 4858 | IA41: 137 | IE41: 23 | IH41: 850 | II41: 850 | IL41: 26 | IM41: 26 | IN41: 890 | IO41: 26 | IP41: 890 | IQ41: 866 | IR41: 890 | IS41: 890 | IT41: 26 | IU41: 26
AA42: 1780 | AE42: 334 | AO42: 445 | AU42: 502 | BB42: 593 | BC42: 593 | BJ42: 668 | BK42: 668 | BS42: 754 | BU42: 790 | CD42: 890 | CE42: 890 | CM42: 958 | CP42: 167 | CQ42: 167 | CS42: 175 | CY42: 1079 | DA42: 1 | DC42: 1132 | DD42: 1186 | DE42: 1186 | DF42: 1186 | DG42: 1154 | DQ42: 1276 | DS42: 40 | DT42: 1336 | DU42: 1336 | DV42: 1336 | DW42: 40 | DY42: 233 | EE42: 8 | EG42: 1438 | EI42: 8 | EL42: 251 | EM42: 251 | EO42: 263 | EP42: 263 | EQ42: 263 | EY42: 1619 | FC42: 46 | FE42: 283 | FH42: 1780 | FI42: 1780 | FJ42: 1780 | FK42: 1732 | FM42: 52 | FO42: 310 | FS42: 1822 | FZ42: 319 | GA42: 319 | GC42: 10 | GE42: 10 | GF42: 334 | GG42: 334 | GH42: 334 | GI42: 10 | GK42: 350 | GL42: 350 | GM42: 350 | GQ42: 350 | GU42: 2 | GX42: 2158 | GY42: 2158 | HA42: 2 | HB42: 2 | HC42: 2 | HF42: 377 | HG42: 377 | HH42: 395 | HJ42: 395 | HK42: 11 | HL42: 395 | HM42: 395 | HN42: 2308 | HO42: 2308 | HQ42: 11 | HW42: 412 | HY42: 2429 | IA42: 412 | IE42: 70 | IH42: 425 | II42: 425 | IL42: 13 | IM42: 13 | IN42: 445 | IO42: 13 | IP42: 445 | IQ42: 433 | IR42: 445 | IS42: 445 | IT42: 13 | IU42: 13
AA43: 890 | AE43: 167 | AO43: 1336 | AU43: 251 | BB43: 1780 | BC43: 1780 | BJ43: 334 | BK43: 334 | BS43: 377 | BU43: 395 | CD43: 445 | CE43: 445 | CM43: 479 | CP43: 502 | CQ43: 502 | CS43: 526 | CY43: 3238 | DC43: 566 | DD43: 593 | DE43: 593 | DF43: 593 | DG43: 577 | DQ43: 638 | DS43: 20 | DT43: 668 | DU43: 668 | DV43: 668 | DW43: 20 | DY43: 700 | EE43: 4 | EG43: 719 | EI43: 4 | EL43: 754 | EM43: 754 | EO43: 790 | EP43: 790 | EQ43: 790 | EY43: 4858 | FC43: 23 | FE43: 850 | FH43: 890 | FI43: 890 | FJ43: 890 | FK43: 866 | FM43: 26 | FO43: 155 | FS43: 911 | FZ43: 958 | GA43: 958 | GC43: 5 | GE43: 5 | GF43: 167 | GG43: 167 | GH43: 167 | GI43: 5 | GK43: 175 | GL43: 175 | GM43: 175 | GQ43: 175 | GU43: 1 | GX43: 1079 | GY43: 1079 | HA43: 1 | HB43: 1 | HC43: 1 | HF43: 1132 | HG43: 1132 | HH43: 1186 | HJ43: 1186 | HK43: 34 | HL43: 1186 | HM43: 1186 | HN43: 1154 | HO43: 1154 | HQ43: 34 | HW43: 206 | HY43: 7288 | IA43: 206 | IE43: 35 | IH43: 1276 | II43: 1276 | IL43: 40 | IM43: 40 | IN43: 1336 | IO43: 40 | IP43: 1336 | IQ43: 1300 | IR43: 1336 | IS43: 1336 | IT43: 40 | IU43: 40
Q44: =IF(AND(Q43<>1,Q43<>""),IF(INT(Q43/2)=Q43/2,Q43/2,3*Q43+1),"") ->  | AA44: 445 | AE44: 502 | AO44: 668 | AU44: 754 | BB44: 890 | BC44: 890 | BJ44: 167 | BK44: 167 | BS44: 1132 | BU44: 1186 | CD44: 1336 | CE44: 1336 | CM44: 1438 | CP44: 251 | CQ44: 251 | CS44: 263 | CY44: 1619 | DC44: 283 | DD44: 1780 | DE44: 1780 | DF44: 1780 | DG44: 1732 | DQ44: 319 | DS44: 10 | DT44: 334 | DU44: 334 | DV44: 334 | DW44: 10 | DY44: 350 | EE44: 2 | EG44: 2158 | EI44: 2 | EL44: 377 | EM44: 377 | EO44: 395 | EP44: 395 | EQ44: 395 | EY44: 2429 | FC44: 70 | FE44: 425 | FH44: 445 | FI44: 445 | FJ44: 445 | FK44: 433 | FM44: 13 | FO44: 466 | FS44: 2734 | FZ44: 479 | GA44: 479 | GC44: 16 | GE44: 16 | GF44: 502 | GG44: 502 | GH44: 502 | GI44: 16 | GK44: 526 | GL44: 526 | GM44: 526 | GQ44: 526 | GX44: 3238 | GY44: 3238 | HF44: 566 | HG44: 566 | HH44: 593 | HJ44: 593 | HK44: 17 | HL44: 593 | HM44: 593 | HN44: 577 | HO44: 577 | HQ44: 17 | HW44: 103 | HY44: 3644 | IA44: 103 | IE44: 106 | IH44: 638 | II44: 638 | IL44: 20 | IM44: 20 | IN44: 668 | IO44: 20 | IP44: 668 | IQ44: 650 | IR44: 668 | IS44: 668 | IT44: 20 | IU44: 20
B45: =IF(AND(B44<>1,B44<>""),IF(INT(B44/2)=B44/2,B44/2,3*B44+1),"") ->  | AA45: 1336 | AE45: 251 | AO45: 334 | AU45: 377 | BB45: 445 | BC45: 445 | BJ45: 502 | BK45: 502 | BS45: 566 | BU45: 593 | CD45: 668 | CE45: 668 | CM45: 719 | CP45: 754 | CQ45: 754 | CS45: 790 | CY45: 4858 | DC45: 850 | DD45: 890 | DE45: 890 | DF45: 890 | DG45: 866 | DQ45: 958 | DS45: 5 | DT45: 167 | DU45: 167 | DV45: 167 | DW45: 5 | DY45: 175 | EE45: 1 | EG45: 1079 | EI45: 1 | EL45: 1132 | EM45: 1132 | EO45: 1186 | EP45: 1186 | EQ45: 1186 | EY45: 7288 | FC45: 35 | FE45: 1276 | FH45: 1336 | FI45: 1336 | FJ45: 1336 | FK45: 1300 | FM45: 40 | FO45: 233 | FS45: 1367 | FZ45: 1438 | GA45: 1438 | GC45: 8 | GE45: 8 | GF45: 251 | GG45: 251 | GH45: 251 | GI45: 8 | GK45: 263 | GL45: 263 | GM45: 263 | GQ45: 263 | GX45: 1619 | GY45: 1619 | HF45: 283 | HG45: 283 | HH45: 1780 | HJ45: 1780 | HK45: 52 | HL45: 1780 | HM45: 1780 | HN45: 1732 | HO45: 1732 | HQ45: 52 | HW45: 310 | HY45: 1822 | IA45: 310 | IE45: 53 | IH45: 319 | II45: 319 | IL45: 10 | IM45: 10 | IN45: 334 | IO45: 10 | IP45: 334 | IQ45: 325 | IR45: 334 | IS45: 334 | IT45: 10 | IU45: 10
AA46: 668 | AE46: 754 | AO46: 167 | AU46: 1132 | BB46: 1336 | BC46: 1336 | BJ46: 251 | BK46: 251 | BS46: 283 | BU46: 1780 | CD46: 334 | CE46: 334 | CM46: 2158 | CP46: 377 | CQ46: 377 | CS46: 395 | CY46: 2429 | DC46: 425 | DD46: 445 | DE46: 445 | DF46: 445 | DG46: 433 | DQ46: 479 | DS46: 16 | DT46: 502 | DU46: 502 | DV46: 502 | DW46: 16 | DY46: 526 | EG46: 3238 | EL46: 566 | EM46: 566 | EO46: 593 | EP46: 593 | EQ46: 593 | EY46: 3644 | FC46: 106 | FE46: 638 | FH46: 668 | FI46: 668 | FJ46: 668 | FK46: 650 | FM46: 20 | FO46: 700 | FS46: 4102 | FZ46: 719 | GA46: 719 | GC46: 4 | GE46: 4 | GF46: 754 | GG46: 754 | GH46: 754 | GI46: 4 | GK46: 790 | GL46: 790 | GM46: 790 | GQ46: 790 | GX46: 4858 | GY46: 4858 | HF46: 850 | HG46: 850 | HH46: 890 | HJ46: 890 | HK46: 26 | HL46: 890 | HM46: 890 | HN46: 866 | HO46: 866 | HQ46: 26 | HW46: 155 | HY46: 911 | IA46: 155 | IE46: 160 | IH46: 958 | II46: 958 | IL46: 5 | IM46: 5 | IN46: =IF(AND(IN45<>1,IN45<>""),IF(INT(IN45/2)=IN45/2,IN45/2,3*IN45+1),"") -> 167 | IO46: 5 | IP46: 167 | IQ46: 976 | IR46: 167 | IS46: 167 | IT46: 5 | IU46: 5
AA47: 334 | AE47: 377 | AO47: 502 | AU47: 566 | BB47: 668 | BC47: 668 | BJ47: 754 | BK47: 754 | BS47: 850 | BU47: 890 | CD47: 167 | CE47: 167 | CM47: 1079 | CP47: 1132 | CQ47: 1132 | CS47: 1186 | CY47: 7288 | DC47: 1276 | DD47: 1336 | DE47: 1336 | DF47: 1336 | DG47: 1300 | DQ47: 1438 | DS47: 8 | DT47: 251 | DU47: 251 | DV47: 251 | DW47: 8 | DY47: 263 | EG47: 1619 | EL47: 283 | EM47: 283 | EO47: 1780 | EP47: 1780 | EQ47: 1780 | EY47: 1822 | FC47: 53 | FE47: 319 | FH47: 334 | FI47: 334 | FJ47: 334 | FK47: 325 | FM47: 10 | FO47: 350 | FS47: 2051 | FZ47: 2158 | GA47: 2158 | GC47: 2 | GE47: 2 | GF47: 377 | GG47: 377 | GH47: 377 | GI47: 2 | GK47: 395 | GL47: 395 | GM47: 395 | GQ47: 395 | GX47: 2429 | GY47: 2429 | HF47: 425 | HG47: 425 | HH47: 445 | HJ47: 445 | HK47: 13 | HL47: 445 | HM47: 445 | HN47: 433 | HO47: 433 | HQ47: 13 | HW47: 466 | HY47: 2734 | IA47: 466 | IE47: 80 | IH47: 479 | II47: 479 | IL47: 16 | IM47: 16 | IN47: 502 | IO47: 16 | IP47: 502 | IQ47: 488 | IR47: 502 | IS47: 502 | IT47: 16 | IU47: 16
AA48: 167 | AE48: 1132 | AO48: 251 | AU48: 283 | BB48: 334 | BC48: 334 | BJ48: 377 | BK48: 377 | BS48: 425 | BU48: 445 | CD48: 502 | CE48: 502 | CM48: 3238 | CP48: 566 | CQ48: 566 | CS48: 593 | CY48: 3644 | DC48: 638 | DD48: 668 | DE48: 668 | DF48: 668 | DG48: 650 | DQ48: 719 | DS48: 4 | DT48: 754 | DU48: 754 | DV48: 754 | DW48: 4 | DY48: 790 | EG48: 4858 | EL48: 850 | EM48: 850 | EO48: 890 | EP48: 890 | EQ48: 890 | EY48: 911 | FC48: 160 | FE48: 958 | FH48: 167 | FI48: 167 | FJ48: 167 | FK48: 976 | FM48: 5 | FO48: 175 | FS48: 6154 | FZ48: 1079 | GA48: 1079 | GC48: 1 | GE48: 1 | GF48: 1132 | GG48: 1132 | GH48: 1132 | GI48: 1 | GK48: 1186 | GL48: 1186 | GM48: 1186 | GQ48: 1186 | GX48: 7288 | GY48: 7288 | HF48: 1276 | HG48: 1276 | HH48: 1336 | HJ48: 1336 | HK48: 40 | HL48: 1336 | HM48: 1336 | HN48: 1300 | HO48: 1300 | HQ48: 40 | HW48: 233 | HY48: 1367 | IA48: 233 | IE48: 40 | IH48: 1438 | II48: 1438 | IL48: 8 | IM48: 8 | IN48: 251 | IO48: 8 | IP48: 251 | IQ48: 244 | IR48: 251 | IS48: 251 | IT48: 8 | IU48: 8
AA49: 502 | AE49: 566 | AO49: 754 | AU49: 850 | BB49: 167 | BC49: 167 | BJ49: 1132 | BK49: 1132 | BS49: 1276 | BU49: 1336 | CD49: 251 | CE49: 251 | CM49: 1619 | CP49: 283 | CQ49: 283 | CS49: 1780 | CY49: 1822 | DC49: 319 | DD49: 334 | DE49: 334 | DF49: 334 | DG49: 325 | DQ49: 2158 | DS49: 2 | DT49: 377 | DU49: 377 | DV49: 377 | DW49: 2 | DY49: 395 | EG49: 2429 | EL49: 425 | EM49: 425 | EO49: 445 | EP49: 445 | EQ49: 445 | EY49: 2734 | FC49: 80 | FE49: 479 | FH49: 502 | FI49: 502 | FJ49: 502 | FK49: 488 | FM49: 16 | FO49: 526 | FS49: 3077 | FZ49: 3238 | GA49: 3238 | GF49: 566 | GG49: 566 | GH49: 566 | GK49: 593 | GL49: 593 | GM49: 593 | GQ49: 593 | GX49: 3644 | GY49: 3644 | HF49: 638 | HG49: 638 | HH49: 668 | HJ49: 668 | HK49: 20 | HL49: 668 | HM49: 668 | HN49: 650 | HO49: 650 | HQ49: 20 | HW49: 700 | HY49: 4102 | IA49: 700 | IE49: 20 | IH49: 719 | II49: 719 | IL49: 4 | IM49: 4 | IN49: 754 | IO49: 4 | IP49: 754 | IQ49: 122 | IR49: 754 | IS49: 754 | IT49: 4 | IU49: 4
AA50: 251 | AE50: 283 | AO50: 377 | AU50: 425 | BB50: 502 | BC50: 502 | BJ50: 566 | BK50: 566 | BS50: 638 | BU50: 668 | CD50: 754 | CE50: 754 | CM50: 4858 | CP50: 850 | CQ50: 850 | CS50: 890 | CY50: 911 | DC50: 958 | DD50: 167 | DE50: 167 | DF50: 167 | DG50: 976 | DQ50: 1079 | DS50: 1 | DT50: 1132 | DU50: 1132 | DV50: 1132 | DW50: 1 | DY50: 1186 | EG50: 7288 | EL50: 1276 | EM50: 1276 | EO50: 1336 | EP50: 1336 | EQ50: 1336 | EY50: 1367 | FC50: 40 | FE50: 1438 | FH50: 251 | FI50: 251 | FJ50: 251 | FK50: 244 | FM50: 8 | FO50: 263 | FS50: 9232 | FZ50: 1619 | GA50: 1619 | GF50: 283 | GG50: 283 | GH50: 283 | GK50: 1780 | GL50: 1780 | GM50: 1780 | GQ50: 1780 | GX50: 1822 | GY50: 1822 | HF50: 319 | HG50: 319 | HH50: 334 | HJ50: 334 | HK50: 10 | HL50: 334 | HM50: 334 | HN50: 325 | HO50: 325 | HQ50: 10 | HW50: 350 | HY50: 2051 | IA50: 350 | IE50: 10 | IH50: 2158 | II50: 2158 | IL50: 2 | IM50: 2 | IN50: 377 | IO50: 2 | IP50: 377 | IQ50: 61 | IR50: 377 | IS50: 377 | IT50: 2 | IU50: 2
AA51: 754 | AE51: 850 | AO51: 1132 | AU51: 1276 | BB51: 251 | BC51: 251 | BJ51: 283 | BK51: 283 | BS51: 319 | BU51: 334 | CD51: 377 | CE51: 377 | CF51: =IF(AND(CF50<>1,CF50<>""),IF(INT(CF50/2)=CF50/2,CF50/2,3*CF50+1),"") ->  | CM51: 2429 | CP51: 425 | CQ51: 425 | CS51: 445 | CY51: 2734 | DC51: 479 | DD51: 502 | DE51: 502 | DF51: 502 | DG51: 488 | DH51: =IF(AND(DH50<>1,DH50<>""),IF(INT(DH50/2)=DH50/2,DH50/2,3*DH50+1),"") ->  | DQ51: 3238 | DT51: 566 | DU51: 566 | DV51: 566 | DX51: =IF(AND(DX50<>1,DX50<>""),IF(INT(DX50/2)=DX50/2,DX50/2,3*DX50+1),"") ->  | DY51: 593 | EG51: 3644 | EL51: 638 | EM51: 638 | EN51: =IF(AND(EN50<>1,EN50<>""),IF(INT(EN50/2)=EN50/2,EN50/2,3*EN50+1),"") ->  | EO51: 668 | EP51: 668 | EQ51: 668 | EY51: 4102 | FC51: 20 | FD51: =IF(AND(FD50<>1,FD50<>""),IF(INT(FD50/2)=FD50/2,FD50/2,3*FD50+1),"") ->  | FE51: 719 | FH51: 754 | FI51: 754 | FJ51: 754 | FK51: 122 | FM51: 4 | FO51: 790 | FS51: 4616 | FT51: =IF(AND(FT50<>1,FT50<>""),IF(INT(FT50/2)=FT50/2,FT50/2,3*FT50+1),"") ->  | FZ51: 4858 | GA51: 4858 | GF51: 850 | GG51: 850 | GH51: 850 | GJ51: =IF(AND(GJ50<>1,GJ50<>""),IF(INT(GJ50/2)=GJ50/2,GJ50/2,3*GJ50+1),"") ->  | GK51: 890 | GL51: 890 | GM51: 890 | GQ51: 890 | GX51: 911 | GY51: 911 | GZ51: =IF(AND(GZ50<>1,GZ50<>""),IF(INT(GZ50/2)=GZ50/2,GZ50/2,3*GZ50+1),"") ->  | HF51: 958 | HG51: 958 | HH51: 167 | HJ51: 167 | HK51: 5 | HL51: 167 | HM51: 167 | HN51: 976 | HO51: 976 | HP51: =IF(AND(HP50<>1,HP50<>""),IF(INT(HP50/2)=HP50/2,HP50/2,3*HP50+1),"") ->  | HQ51: 5 | HW51: 175 | HY51: 6154 | IA51: 175 | IE51: 5 | IF51: =IF(AND(IF50<>1,IF50<>""),IF(INT(IF50/2)=IF50/2,IF50/2,3*IF50+1),"") ->  | IH51: 1079 | II51: 1079 | IL51: 1 | IM51: 1 | IN51: 1132 | IO51: 1 | IP51: 1132 | IQ51: 184 | IR51: 1132 | IS51: 1132 | IT51: 1 | IU51: 1
AA52: 377 | AE52: 425 | AO52: 566 | AU52: 638 | BB52: 754 | BC52: 754 | BJ52: 850 | BK52: 850 | BS52: 958 | BU52: 167 | CC52: =IF(AND(CC51<>1,CC51<>""),IF(INT(CC51/2)=CC51/2,CC51/2,3*CC51+1),"") ->  | CD52: =IF(AND(CD51<>1,CD51<>""),IF(INT(CD51/2)=CD51/2,CD51/2,3*CD51+1),"") -> 1132 | CE52: =IF(AND(CE51<>1,CE51<>""),IF(INT(CE51/2)=CE51/2,CE51/2,3*CE51+1),"") -> 1132 | CM52: 7288 | CP52: 1276 | CQ52: 1276 | CS52: 1336 | CV52: =IF(AND(CV51<>1,CV51<>""),IF(INT(CV51/2)=CV51/2,CV51/2,3*CV51+1),"") ->  | CY52: 1367 | DC52: 1438 | DD52: 251 | DE52: 251 | DF52: 251 | DG52: 244 | DQ52: 1619 | DT52: 283 | DU52: 283 | DV52: 283 | DY52: 1780 | EG52: 1822 | EL52: 319 | EM52: 319 | EO52: 334 | EP52: 334 | EQ52: 334 | EY52: 2051 | FC52: 10 | FE52: 2158 | FH52: 377 | FI52: 377 | FJ52: 377 | FK52: 61 | FM52: 2 | FO52: 395 | FS52: 2308 | FZ52: 2429 | GA52: 2429 | GF52: 425 | GG52: 425 | GH52: 425 | GK52: 445 | GL52: 445 | GM52: 445 | GQ52: 445 | GX52: 2734 | GY52: 2734 | HF52: 479 | HG52: 479 | HH52: 502 | HJ52: 502 | HK52: 16 | HL52: 502 | HM52: 502 | HN52: 488 | HO52: 488 | HQ52: 16 | HW52: 526 | HY52: 3077 | IA52: 526 | IE52: 16 | IH52: 3238 | II52: 3238 | IN52: 566 | IP52: 566 | IQ52: 92 | IR52: 566 | IS52: 566
AA53: 1132 | AE53: 1276 | AO53: 283 | AS53: =IF(AND(AS52<>1,AS52<>""),IF(INT(AS52/2)=AS52/2,AS52/2,3*AS52+1),"") ->  | AU53: 319 | BB53: 377 | BC53: 377 | BJ53: 425 | BK53: 425 | BS53: 479 | BU53: 502 | CD53: 566 | CE53: 566 | CM53: 3644 | CP53: 638 | CQ53: 638 | CS53: 668 | CY53: 4102 | DC53: 719 | DD53: 754 | DE53: 754 | DF53: 754 | DG53: 122 | DQ53: 4858 | DT53: 850 | DU53: 850 | DV53: 850 | DY53: 890 | EG53: 911 | EL53: 958 | EM53: 958 | EO53: 167 | EP53: 167 | EQ53: 167 | EY53: 6154 | FC53: 5 | FE53: 1079 | FH53: 1132 | FI53: 1132 | FJ53: 1132 | FK53: 184 | FM53: 1 | FO53: 1186 | FS53: 1154 | FZ53: 7288 | GA53: 7288 | GF53: 1276 | GG53: 1276 | GH53: 1276 | GK53: 1336 | GL53: 1336 | GM53: 1336 | GQ53: 1336 | GX53: 1367 | GY53: 1367 | HF53: 1438 | HG53: 1438 | HH53: 251 | HJ53: 251 | HK53: 8 | HL53: 251 | HM53: 251 | HN53: 244 | HO53: 244 | HQ53: 8 | HW53: 263 | HY53: 9232 | IA53: 263 | IE53: 8 | IH53: 1619 | II53: 1619 | IN53: 283 | IP53: 283 | IQ53: 46 | IR53: 283 | IS53: 283
AA54: 566 | AE54: 638 | AO54: =IF(AND(AO53<>1,AO53<>""),IF(INT(AO53/2)=AO53/2,AO53/2,3*AO53+1),"") -> 850 | AP54: =IF(AND(AP53<>1,AP53<>""),IF(INT(AP53/2)=AP53/2,AP53/2,3*AP53+1),"") ->  | AQ54: =IF(AND(AQ53<>1,AQ53<>""),IF(INT(AQ53/2)=AQ53/2,AQ53/2,3*AQ53+1),"") ->  | AR54: =IF(AND(AR53<>1,AR53<>""),IF(INT(AR53/2)=AR53/2,AR53/2,3*AR53+1),"") ->  | AU54: 958 | BB54: 1132 | BC54: 1132 | BJ54: 1276 | BK54: 1276 | BS54: 1438 | BU54: 251 | CD54: 283 | CE54: 283 | CM54: 1822 | CP54: 319 | CQ54: 319 | CS54: 334 | CY54: 2051 | DC54: 2158 | DD54: 377 | DE54: 377 | DF54: 377 | DG54: 61 | DQ54: 2429 | DT54: 425 | DU54: 425 | DV54: 425 | DY54: 445 | EG54: 2734 | EL54: 479 | EM54: 479 | EO54: 502 | EP54: 502 | EQ54: 502 | EY54: 3077 | FC54: 16 | FE54: 3238 | FH54: 566 | FI54: 566 | FJ54: 566 | FK54: 92 | FO54: 593 | FS54: 577 | FZ54: 3644 | GA54: 3644 | GF54: 638 | GG54: 638 | GH54: 638 | GK54: 668 | GL54: 668 | GM54: 668 | GQ54: 668 | GX54: 4102 | GY54: 4102 | HF54: 719 | HG54: 719 | HH54: 754 | HJ54: 754 | HK54: 4 | HL54: 754 | HM54: 754 | HN54: 122 | HO54: 122 | HQ54: 4 | HW54: 790 | HY54: 4616 | IA54: 790 | IE54: 4 | IH54: 4858 | II54: 4858 | IN54: 850 | IP54: 850 | IQ54: 23 | IR54: 850 | IS54: 850
AA55: 283 | AE55: 319 | AO55: 425 | AU55: 479 | BB55: 566 | BC55: 566 | BJ55: 638 | BK55: 638 | BS55: 719 | BU55: 754 | BZ55: =IF(AND(BZ54<>1,BZ54<>""),IF(INT(BZ54/2)=BZ54/2,BZ54/2,3*BZ54+1),"") ->  | CD55: 850 | CE55: 850 | CM55: 911 | CP55: 958 | CQ55: 958 | CS55: 167 | CY55: 6154 | DC55: 1079 | DD55: 1132 | DE55: 1132 | DF55: 1132 | DG55: 184 | DQ55: 7288 | DT55: 1276 | DU55: 1276 | DV55: 1276 | DY55: 1336 | EG55: 1367 | EL55: 1438 | EM55: 1438 | EO55: 251 | EP55: 251 | EQ55: 251 | EY55: 9232 | FC55: 8 | FE55: 1619 | FH55: 283 | FI55: 283 | FJ55: 283 | FK55: 46 | FO55: 1780 | FS55: 1732 | FZ55: 1822 | GA55: 1822 | GF55: 319 | GG55: 319 | GH55: 319 | GK55: 334 | GL55: 334 | GM55: 334 | GQ55: 334 | GX55: 2051 | GY55: 2051 | HF55: 2158 | HG55: 2158 | HH55: 377 | HJ55: 377 | HK55: 2 | HL55: 377 | HM55: 377 | HN55: 61 | HO55: 61 | HQ55: 2 | HW55: 395 | HY55: 2308 | IA55: 395 | IE55: 2 | IH55: 2429 | II55: 2429 | IN55: 425 | IP55: 425 | IQ55: 70 | IR55: 425 | IS55: 425
AA56: 850 | AE56: 958 | AO56: 1276 | AU56: 1438 | BB56: 283 | BC56: 283 | BH56: =IF(AND(BH55<>1,BH55<>""),IF(INT(BH55/2)=BH55/2,BH55/2,3*BH55+1),"") ->  | BJ56: 319 | BK56: 319 | BS56: 2158 | BU56: 377 | BX56: =IF(AND(BX55<>1,BX55<>""),IF(INT(BX55/2)=BX55/2,BX55/2,3*BX55+1),"") ->  | BY56: =IF(AND(BY55<>1,BY55<>""),IF(INT(BY55/2)=BY55/2,BY55/2,3*BY55+1),"") ->  | CD56: 425 | CE56: 425 | CM56: 2734 | CP56: 479 | CQ56: 479 | CS56: 502 | CY56: 3077 | DC56: 3238 | DD56: 566 | DE56: 566 | DF56: 566 | DG56: 92 | DQ56: 3644 | DT56: 638 | DU56: 638 | DV56: 638 | DY56: 668 | EG56: 4102 | EL56: 719 | EM56: 719 | EO56: 754 | EP56: 754 | EQ56: 754 | EY56: 4616 | FC56: 4 | FE56: 4858 | FH56: 850 | FI56: 850 | FJ56: 850 | FK56: 23 | FO56: 890 | FS56: 866 | FZ56: 911 | GA56: 911 | GF56: 958 | GG56: 958 | GH56: 958 | GK56: 167 | GL56: 167 | GM56: 167 | GQ56: 167 | GX56: 6154 | GY56: 6154 | HF56: 1079 | HG56: 1079 | HH56: 1132 | HJ56: 1132 | HK56: 1 | HL56: 1132 | HM56: 1132 | HN56: 184 | HO56: 184 | HQ56: 1 | HW56: 1186 | HY56: 1154 | IA56: 1186 | IE56: 1 | IH56: 7288 | II56: 7288 | IN56: 1276 | IP56: 1276 | IQ56: 35 | IR56: 1276 | IS56: 1276
AA57: 425 | AE57: 479 | AO57: 638 | AU57: =IF(AND(AU56<>1,AU56<>""),IF(INT(AU56/2)=AU56/2,AU56/2,3*AU56+1),"") -> 719 | AV57: =IF(AND(AV56<>1,AV56<>""),IF(INT(AV56/2)=AV56/2,AV56/2,3*AV56+1),"") ->  | AW57: =IF(AND(AW56<>1,AW56<>""),IF(INT(AW56/2)=AW56/2,AW56/2,3*AW56+1),"") ->  | AX57: =IF(AND(AX56<>1,AX56<>""),IF(INT(AX56/2)=AX56/2,AX56/2,3*AX56+1),"") ->  | AY57: =IF(AND(AY56<>1,AY56<>""),IF(INT(AY56/2)=AY56/2,AY56/2,3*AY56+1),"") ->  | AZ57: =IF(AND(AZ56<>1,AZ56<>""),IF(INT(AZ56/2)=AZ56/2,AZ56/2,3*AZ56+1),"") ->  | BA57: =IF(AND(BA56<>1,BA56<>""),IF(INT(BA56/2)=BA56/2,BA56/2,3*BA56+1),"") ->  | BB57: =IF(AND(BB56<>1,BB56<>""),IF(INT(BB56/2)=BB56/2,BB56/2,3*BB56+1),"") -> 850 | BC57: =IF(AND(BC56<>1,BC56<>""),IF(INT(BC56/2)=BC56/2,BC56/2,3*BC56+1),"") -> 850 | BD57: =IF(AND(BD56<>1,BD56<>""),IF(INT(BD56/2)=BD56/2,BD56/2,3*BD56+1),"") ->  | BE57: =IF(AND(BE56<>1,BE56<>""),IF(INT(BE56/2)=BE56/2,BE56/2,3*BE56+1),"") ->  | BF57: =IF(AND(BF56<>1,BF56<>""),IF(INT(BF56/2)=BF56/2,BF56/2,3*BF56+1),"") ->  | BG57: =IF(AND(BG56<>1,BG56<>""),IF(INT(BG56/2)=BG56/2,BG56/2,3*BG56+1),"") ->  | BJ57: 958 | BK57: 958 | BS57: 1079 | BU57: 1132 | CD57: 1276 | CE57: 1276 | CM57: 1367 | CP57: 1438 | CQ57: 1438 | CS57: 251 | CY57: 9232 | DC57: 1619 | DD57: 283 | DE57: 283 | DF57: 283 | DG57: 46 | DQ57: 1822 | DT57: 319 | DU57: 319 | DV57: 319 | DY57: 334 | EG57: 2051 | EL57: 2158 | EM57: 2158 | EO57: 377 | EP57: 377 | EQ57: 377 | EY57: 2308 | FC57: 2 | FE57: 2429 | FH57: 425 | FI57: 425 | FJ57: 425 | FK57: 70 | FO57: 445 | FS57: 433 | FZ57: 2734 | GA57: 2734 | GF57: 479 | GG57: 479 | GH57: 479 | GK57: 502 | GL57: 502 | GM57: 502 | GQ57: 502 | GX57: 3077 | GY57: 3077 | HF57: 3238 | HG57: 3238 | HH57: 566 | HJ57: 566 | HL57: 566 | HM57: 566 | HN57: 92 | HO57: 92 | HW57: 593 | HY57: 577 | IA57: 593 | IH57: 3644 | II57: 3644 | IN57: 638 | IP57: 638 | IQ57: 106 | IR57: 638 | IS57: 638
AA58: 1276 | AE58: 1438 | AO58: 319 | AU58: 2158 | BB58: 425 | BC58: 425 | BJ58: 479 | BK58: 479 | BS58: 3238 | BU58: 566 | CD58: 638 | CE58: 638 | CM58: 4102 | CP58: 719 | CQ58: 719 | CS58: 754 | CY58: 4616 | DC58: 4858 | DD58: 850 | DE58: 850 | DF58: 850 | DG58: 23 | DQ58: 911 | DT58: 958 | DU58: 958 | DV58: 958 | DY58: 167 | EG58: 6154 | EL58: 1079 | EM58: 1079 | EO58: 1132 | EP58: 1132 | EQ58: 1132 | EY58: 1154 | FC58: 1 | FE58: 7288 | FH58: 1276 | FI58: 1276 | FJ58: 1276 | FK58: 35 | FO58: 1336 | FS58: 1300 | FZ58: 1367 | GA58: 1367 | GF58: 1438 | GG58: 1438 | GH58: 1438 | GK58: 251 | GL58: 251 | GM58: 251 | GQ58: 251 | GX58: 9232 | GY58: 9232 | HF58: 1619 | HG58: 1619 | HH58: 283 | HJ58: 283 | HL58: 283 | HM58: 283 | HN58: 46 | HO58: 46 | HW58: 1780 | HY58: 1732 | IA58: 1780 | IH58: 1822 | II58: 1822 | IN58: 319 | IP58: 319 | IQ58: 53 | IR58: 319 | IS58: 319
AA59: 638 | AE59: 719 | AO59: 958 | AU59: 1079 | BB59: 1276 | BC59: 1276 | BJ59: 1438 | BK59: 1438 | BS59: 1619 | BU59: 283 | CD59: 319 | CE59: 319 | CM59: 2051 | CP59: 2158 | CQ59: 2158 | CS59: 377 | CY59: 2308 | DC59: 2429 | DD59: 425 | DE59: 425 | DF59: 425 | DG59: 70 | DQ59: 2734 | DT59: 479 | DU59: 479 | DV59: 479 | DY59: 502 | EG59: 3077 | EL59: 3238 | EM59: 3238 | EO59: 566 | EP59: 566 | EQ59: 566 | EY59: 577 | FE59: 3644 | FH59: 638 | FI59: 638 | FJ59: 638 | FK59: 106 | FO59: 668 | FS59: 650 | FZ59: 4102 | GA59: 4102 | GF59: 719 | GG59: 719 | GH59: 719 | GK59: 754 | GL59: 754 | GM59: 754 | GQ59: 754 | GX59: 4616 | GY59: 4616 | HF59: 4858 | HG59: 4858 | HH59: 850 | HJ59: 850 | HL59: 850 | HM59: 850 | HN59: 23 | HO59: 23 | HW59: 890 | HY59: 866 | IA59: 890 | IH59: 911 | II59: 911 | IN59: 958 | IP59: 958 | IQ59: 160 | IR59: 958 | IS59: 958
AA60: 319 | AE60: 2158 | AO60: 479 | AU60: 3238 | BB60: 638 | BC60: 638 | BJ60: 719 | BK60: 719 | BS60: 4858 | BU60: 850 | CD60: 958 | CE60: 958 | CM60: 6154 | CP60: 1079 | CQ60: 1079 | CS60: 1132 | CY60: 1154 | DC60: 7288 | DD60: 1276 | DE60: 1276 | DF60: 1276 | DG60: 35 | DQ60: 1367 | DT60: 1438 | DU60: 1438 | DV60: 1438 | DY60: 251 | EG60: 9232 | EL60: 1619 | EM60: 1619 | EO60: 283 | EP60: 283 | EQ60: 283 | EY60: 1732 | FE60: 1822 | FH60: 319 | FI60: 319 | FJ60: 319 | FK60: 53 | FO60: 334 | FS60: 325 | FZ60: 2051 | GA60: 2051 | GF60: 2158 | GG60: 2158 | GH60: 2158 | GK60: 377 | GL60: 377 | GM60: 377 | GQ60: 377 | GX60: 2308 | GY60: 2308 | HF60: 2429 | HG60: 2429 | HH60: 425 | HJ60: 425 | HL60: 425 | HM60: 425 | HN60: 70 | HO60: 70 | HW60: 445 | HY60: 433 | IA60: 445 | IH60: 2734 | II60: 2734 | IN60: 479 | IP60: 479 | IQ60: 80 | IR60: 479 | IS60: 479
AA61: 958 | AE61: 1079 | AO61: 1438 | AU61: 1619 | BB61: 319 | BC61: 319 | BJ61: 2158 | BK61: 2158 | BS61: 2429 | BU61: 425 | CD61: 479 | CE61: 479 | CM61: 3077 | CP61: 3238 | CQ61: 3238 | CS61: 566 | CY61: 577 | DC61: 3644 | DD61: 638 | DE61: 638 | DF61: 638 | DG61: 106 | DQ61: 4102 | DT61: 719 | DU61: 719 | DV61: 719 | DY61: 754 | EG61: 4616 | EL61: 4858 | EM61: 4858 | EO61: 850 | EP61: 850 | EQ61: 850 | EY61: 866 | FE61: 911 | FH61: 958 | FI61: 958 | FJ61: 958 | FK61: 160 | FO61: 167 | FS61: 976 | FZ61: 6154 | GA61: 6154 | GF61: 1079 | GG61: 1079 | GH61: 1079 | GK61: 1132 | GL61: 1132 | GM61: 1132 | GQ61: 1132 | GX61: 1154 | GY61: 1154 | HF61: 7288 | HG61: 7288 | HH61: 1276 | HJ61: 1276 | HL61: 1276 | HM61: 1276 | HN61: 35 | HO61: 35 | HW61: 1336 | HY61: 1300 | IA61: 1336 | IH61: 1367 | II61: 1367 | IN61: 1438 | IP61: 1438 | IQ61: 40 | IR61: 1438 | IS61: 1438
B62: =IF(AND(B61<>1,B61<>""),IF(INT(B61/2)=B61/2,B61/2,3*B61+1),"") ->  | AA62: 479 | AE62: 3238 | AO62: 719 | AU62: 4858 | BB62: 958 | BC62: 958 | BJ62: 1079 | BK62: 1079 | BS62: 7288 | BU62: 1276 | CD62: 1438 | CE62: 1438 | CM62: 9232 | CP62: 1619 | CQ62: 1619 | CS62: 283 | CY62: 1732 | DC62: 1822 | DD62: 319 | DE62: 319 | DF62: 319 | DG62: 53 | DQ62: 2051 | DT62: 2158 | DU62: 2158 | DV62: 2158 | DY62: 377 | EG62: 2308 | EL62: 2429 | EM62: 2429 | EO62: 425 | EP62: 425 | EQ62: 425 | EY62: 433 | FE62: 2734 | FH62: 479 | FI62: 479 | FJ62: 479 | FK62: 80 | FO62: 502 | FS62: 488 | FZ62: 3077 | GA62: 3077 | GF62: 3238 | GG62: 3238 | GH62: 3238 | GK62: 566 | GL62: 566 | GM62: 566 | GQ62: 566 | GX62: 577 | GY62: 577 | HF62: 3644 | HG62: 3644 | HH62: 638 | HJ62: 638 | HL62: 638 | HM62: 638 | HN62: 106 | HO62: 106 | HW62: 668 | HY62: 650 | IA62: 668 | IH62: 4102 | II62: 4102 | IN62: 719 | IP62: 719 | IQ62: 20 | IR62: 719 | IS62: 719
AA63: 1438 | AE63: 1619 | AO63: 2158 | AU63: 2429 | BB63: 479 | BC63: 479 | BJ63: 3238 | BK63: 3238 | BS63: 3644 | BU63: 638 | CD63: 719 | CE63: 719 | CM63: 4616 | CP63: 4858 | CQ63: 4858 | CS63: 850 | CY63: 866 | DC63: 911 | DD63: 958 | DE63: 958 | DF63: 958 | DG63: 160 | DQ63: 6154 | DT63: 1079 | DU63: 1079 | DV63: 1079 | DY63: 1132 | EG63: 1154 | EL63: 7288 | EM63: 7288 | EO63: 1276 | EP63: 1276 | EQ63: 1276 | EY63: 1300 | FE63: 1367 | FH63: 1438 | FI63: 1438 | FJ63: 1438 | FK63: 40 | FO63: 251 | FS63: 244 | FZ63: 9232 | GA63: 9232 | GF63: 1619 | GG63: 1619 | GH63: 1619 | GK63: 283 | GL63: 283 | GM63: 283 | GQ63: 283 | GX63: 1732 | GY63: 1732 | HF63: 1822 | HG63: 1822 | HH63: 319 | HJ63: 319 | HL63: 319 | HM63: 319 | HN63: 53 | HO63: 53 | HW63: 334 | HY63: 325 | IA63: 334 | IH63: 2051 | II63: 2051 | IN63: 2158 | IP63: 2158 | IQ63: 10 | IR63: 2158 | IS63: 2158
AA64: 719 | AE64: 4858 | AO64: 1079 | AU64: 7288 | BB64: 1438 | BC64: 1438 | BJ64: 1619 | BK64: 1619 | BS64: 1822 | BU64: 319 | CD64: 2158 | CE64: 2158 | CM64: 2308 | CP64: 2429 | CQ64: 2429 | CS64: 425 | CY64: 433 | DC64: 2734 | DD64: 479 | DE64: 479 | DF64: 479 | DG64: 80 | DQ64: 3077 | DT64: 3238 | DU64: 3238 | DV64: 3238 | DY64: 566 | EG64: 577 | EL64: 3644 | EM64: 3644 | EO64: 638 | EP64: 638 | EQ64: 638 | EY64: 650 | FE64: 4102 | FH64: 719 | FI64: 719 | FJ64: 719 | FK64: 20 | FO64: 754 | FS64: 122 | FZ64: 4616 | GA64: 4616 | GF64: 4858 | GG64: 4858 | GH64: 4858 | GK64: 850 | GL64: 850 | GM64: 850 | GQ64: 850 | GX64: 866 | GY64: 866 | HF64: 911 | HG64: 911 | HH64: 958 | HJ64: 958 | HL64: 958 | HM64: 958 | HN64: 160 | HO64: 160 | HW64: 167 | HY64: 976 | IA64: 167 | IH64: 6154 | II64: 6154 | IN64: 1079 | IP64: 1079 | IQ64: 5 | IR64: 1079 | IS64: 1079
AA65: 2158 | AE65: 2429 | AH65: =IF(AND(AH64<>1,AH64<>""),IF(INT(AH64/2)=AH64/2,AH64/2,3*AH64+1),"") ->  | AI65: =IF(AND(AI64<>1,AI64<>""),IF(INT(AI64/2)=AI64/2,AI64/2,3*AI64+1),"") ->  | AJ65: =IF(AND(AJ64<>1,AJ64<>""),IF(INT(AJ64/2)=AJ64/2,AJ64/2,3*AJ64+1),"") ->  | AK65: =IF(AND(AK64<>1,AK64<>""),IF(INT(AK64/2)=AK64/2,AK64/2,3*AK64+1),"") ->  | AL65: =IF(AND(AL64<>1,AL64<>""),IF(INT(AL64/2)=AL64/2,AL64/2,3*AL64+1),"") ->  | AM65: =IF(AND(AM64<>1,AM64<>""),IF(INT(AM64/2)=AM64/2,AM64/2,3*AM64+1),"") ->  | AN65: =IF(AND(AN64<>1,AN64<>""),IF(INT(AN64/2)=AN64/2,AN64/2,3*AN64+1),"") ->  | AO65: 3238 | AU65: 3644 | BB65: 719 | BC65: 719 | BJ65: 4858 | BK65: 4858 | BS65: 911 | BU65: 958 | CD65: 1079 | CE65: 1079 | CM65: 1154 | CP65: 7288 | CQ65: 7288 | CS65: 1276 | CY65: 1300 | DC65: 1367 | DD65: 1438 | DE65: 1438 | DF65: 1438 | DG65: 40 | DQ65: 9232 | DT65: 1619 | DU65: 1619 | DV65: 1619 | DY65: 283 | EG65: 1732 | EL65: 1822 | EM65: 1822 | EO65: 319 | EP65: 319 | EQ65: 319 | EY65: 325 | FE65: 2051 | FH65: 2158 | FI65: 2158 | FJ65: 2158 | FK65: 10 | FO65: 377 | FS65: 61 | FZ65: 2308 | GA65: 2308 | GF65: 2429 | GG65: 2429 | GH65: 2429 | GK65: 425 | GL65: 425 | GM65: 425 | GQ65: 425 | GX65: 433 | GY65: 433 | HF65: 2734 | HG65: 2734 | HH65: 479 | HJ65: 479 | HL65: 479 | HM65: 479 | HN65: 80 | HO65: 80 | HW65: 502 | HY65: 488 | IA65: 502 | IH65: 3077 | II65: 3077 | IN65: 3238 | IP65: 3238 | IQ65: 16 | IR65: 3238 | IS65: 3238
AA66: 1079 | AE66: 7288 | AO66: 1619 | AU66: 1822 | BB66: 2158 | BC66: 2158 | BJ66: 2429 | BK66: 2429 | BS66: 2734 | BU66: 479 | CD66: 3238 | CE66: 3238 | CM66: 577 | CP66: 3644 | CQ66: 3644 | CS66: 638 | CY66: 650 | DC66: 4102 | DD66: 719 | DE66: 719 | DF66: 719 | DG66: 20 | DQ66: 4616 | DT66: 4858 | DU66: 4858 | DV66: 4858 | DY66: 850 | EG66: 866 | EL66: 911 | EM66: 911 | EO66: 958 | EP66: 958 | EQ66: 958 | EY66: 976 | FE66: 6154 | FH66: 1079 | FI66: 1079 | FJ66: 1079 | FK66: 5 | FO66: 1132 | FS66: 184 | FZ66: 1154 | GA66: 1154 | GF66: 7288 | GG66: 7288 | GH66: 7288 | GK66: 1276 | GL66: 1276 | GM66: 1276 | GQ66: 1276 | GX66: 1300 | GY66: 1300 | HF66: 1367 | HG66: 1367 | HH66: 1438 | HJ66: 1438 | HL66: 1438 | HM66: 1438 | HN66: 40 | HO66: 40 | HW66: 251 | HY66: 244 | IA66: 251 | IH66: 9232 | II66: 9232 | IN66: 1619 | IP66: 1619 | IQ66: 8 | IR66: 1619 | IS66: 1619
AA67: 3238 | AE67: 3644 | AO67: 4858 | AU67: 911 | BB67: 1079 | BC67: 1079 | BJ67: 7288 | BK67: 7288 | BS67: 1367 | BU67: 1438 | CD67: 1619 | CE67: 1619 | CH67: =IF(AND(CH66<>1,CH66<>""),IF(INT(CH66/2)=CH66/2,CH66/2,3*CH66+1),"") ->  | CM67: 1732 | CP67: 1822 | CQ67: 1822 | CS67: 319 | CY67: 325 | DC67: 2051 | DD67: 2158 | DE67: 2158 | DF67: 2158 | DG67: 10 | DQ67: 2308 | DT67: 2429 | DU67: 2429 | DV67: =IF(AND(DV66<>1,DV66<>""),IF(INT(DV66/2)=DV66/2,DV66/2,3*DV66+1),"") -> 2429 | DY67: 425 | EG67: 433 | EL67: =IF(AND(EL66<>1,EL66<>""),IF(INT(EL66/2)=EL66/2,EL66/2,3*EL66+1),"") -> 2734 | EM67: 2734 | EO67: 479 | EP67: 479 | EQ67: 479 | EY67: 488 | FB67: =IF(AND(FB66<>1,FB66<>""),IF(INT(FB66/2)=FB66/2,FB66/2,3*FB66+1),"") ->  | FE67: 3077 | FH67: 3238 | FI67: 3238 | FJ67: 3238 | FK67: 16 | FO67: 566 | FR67: =IF(AND(FR66<>1,FR66<>""),IF(INT(FR66/2)=FR66/2,FR66/2,3*FR66+1),"") ->  | FS67: 92 | FZ67: 577 | GA67: 577 | GF67: 3644 | GG67: 3644 | GH67: =IF(AND(GH66<>1,GH66<>""),IF(INT(GH66/2)=GH66/2,GH66/2,3*GH66+1),"") -> 3644 | GK67: 638 | GL67: 638 | GM67: 638 | GQ67: 638 | GX67: =IF(AND(GX66<>1,GX66<>""),IF(INT(GX66/2)=GX66/2,GX66/2,3*GX66+1),"") -> 650 | GY67: 650 | HF67: 4102 | HG67: 4102 | HH67: 719 | HJ67: 719 | HL67: 719 | HM67: 719 | HN67: =IF(AND(HN66<>1,HN66<>""),IF(INT(HN66/2)=HN66/2,HN66/2,3*HN66+1),"") -> 20 | HO67: 20 | HW67: 754 | HY67: 122 | IA67: 754 | ID67: =IF(AND(ID66<>1,ID66<>""),IF(INT(ID66/2)=ID66/2,ID66/2,3*ID66+1),"") ->  | IE67: =IF(AND(IE66<>1,IE66<>""),IF(INT(IE66/2)=IE66/2,IE66/2,3*IE66+1),"") ->  | IH67: 4616 | II67: 4616 | IN67: 4858 | IP67: 4858 | IQ67: 4 | IR67: 4858 | IS67: 4858
AA68: 1619 | AE68: 1822 | AO68: 2429 | AU68: 2734 | BB68: 3238 | BC68: 3238 | BJ68: 3644 | BK68: 3644 | BS68: 4102 | BU68: 719 | CD68: 4858 | CE68: 4858 | CF68: =IF(AND(CF67<>1,CF67<>""),IF(INT(CF67/2)=CF67/2,CF67/2,3*CF67+1),"") ->  | CG68: =IF(AND(CG67<>1,CG67<>""),IF(INT(CG67/2)=CG67/2,CG67/2,3*CG67+1),"") ->  | CM68: 866 | CP68: 911 | CQ68: 911 | CS68: 958 | CY68: 976 | DC68: 6154 | DD68: 1079 | DE68: 1079 | DF68: 1079 | DG68: 5 | DL68: =IF(AND(DL67<>1,DL67<>""),IF(INT(DL67/2)=DL67/2,DL67/2,3*DL67+1),"") ->  | DQ68: 1154 | DT68: 7288 | DU68: 7288 | DV68: 7288 | DY68: 1276 | EG68: 1300 | EL68: 1367 | EM68: 1367 | EO68: 1438 | EP68: 1438 | EQ68: 1438 | EY68: 244 | FE68: 9232 | FH68: 1619 | FI68: 1619 | FJ68: 1619 | FK68: 8 | FO68: 283 | FS68: 46 | FZ68: 1732 | GA68: 1732 | GF68: 1822 | GG68: 1822 | GH68: 1822 | GK68: 319 | GL68: 319 | GM68: 319 | GQ68: 319 | GX68: 325 | GY68: 325 | HF68: 2051 | HG68: 2051 | HH68: 2158 | HJ68: 2158 | HL68: 2158 | HM68: 2158 | HN68: 10 | HO68: 10 | HW68: 377 | HY68: 61 | IA68: 377 | IH68: 2308 | II68: 2308 | IN68: 2429 | IP68: 2429 | IQ68: 2 | IR68: 2429 | IS68: 2429
AA69: 4858 | AE69: 911 | AO69: 7288 | AU69: 1367 | BB69: 1619 | BC69: 1619 | BJ69: 1822 | BK69: 1822 | BS69: 2051 | BU69: 2158 | CD69: 2429 | CE69: 2429 | CM69: 433 | CP69: 2734 | CQ69: 2734 | CS69: 479 | CY69: 488 | DC69: 3077 | DD69: 3238 | DE69: 3238 | DF69: 3238 | DG69: 16 | DQ69: 577 | DT69: 3644 | DU69: 3644 | DV69: 3644 | DY69: 638 | EG69: 650 | EL69: 4102 | EM69: 4102 | EO69: 719 | EP69: 719 | EQ69: 719 | EY69: 122 | FE69: 4616 | FH69: 4858 | FI69: 4858 | FJ69: 4858 | FK69: 4 | FO69: 850 | FS69: 23 | FZ69: 866 | GA69: 866 | GF69: 911 | GG69: 911 | GH69: 911 | GK69: 958 | GL69: 958 | GM69: 958 | GQ69: 958 | GX69: 976 | GY69: 976 | HF69: 6154 | HG69: 6154 | HH69: 1079 | HJ69: 1079 | HL69: 1079 | HM69: 1079 | HN69: 5 | HO69: 5 | HW69: 1132 | HY69: 184 | IA69: 1132 | IH69: 1154 | II69: 1154 | IN69: 7288 | IP69: 7288 | IQ69: 1 | IR69: 7288 | IS69: 7288
AA70: 2429 | AE70: 2734 | AO70: 3644 | AU70: 4102 | BB70: 4858 | BC70: 4858 | BJ70: 911 | BK70: 911 | BS70: 6154 | BU70: 1079 | CD70: 7288 | CE70: 7288 | CM70: 1300 | CP70: 1367 | CQ70: 1367 | CS70: 1438 | CY70: 244 | DC70: 9232 | DD70: 1619 | DE70: 1619 | DF70: 1619 | DG70: 8 | DQ70: 1732 | DT70: 1822 | DU70: 1822 | DV70: 1822 | DY70: 319 | EG70: 325 | EL70: 2051 | EM70: 2051 | EO70: 2158 | EP70: 2158 | EQ70: 2158 | EY70: 61 | FE70: 2308 | FH70: 2429 | FI70: 2429 | FJ70: 2429 | FK70: 2 | FO70: 425 | FS70: 70 | FZ70: 433 | GA70: 433 | GF70: 2734 | GG70: 2734 | GH70: 2734 | GK70: 479 | GL70: 479 | GM70: 479 | GQ70: 479 | GX70: 488 | GY70: 488 | HF70: 3077 | HG70: 3077 | HH70: 3238 | HJ70: 3238 | HL70: 3238 | HM70: 3238 | HN70: 16 | HO70: 16 | HW70: 566 | HY70: 92 | IA70: 566 | IH70: 577 | II70: 577 | IN70: 3644 | IP70: 3644 | IR70: 3644 | IS70: 3644
R71: =IF(AND(R70<>1,R70<>""),IF(INT(R70/2)=R70/2,R70/2,3*R70+1),"") ->  | S71: =IF(AND(S70<>1,S70<>""),IF(INT(S70/2)=S70/2,S70/2,3*S70+1),"") ->  | T71: =IF(AND(T70<>1,T70<>""),IF(INT(T70/2)=T70/2,T70/2,3*T70+1),"") ->  | U71: =IF(AND(U70<>1,U70<>""),IF(INT(U70/2)=U70/2,U70/2,3*U70+1),"") ->  | V71: =IF(AND(V70<>1,V70<>""),IF(INT(V70/2)=V70/2,V70/2,3*V70+1),"") ->  | W71: =IF(AND(W70<>1,W70<>""),IF(INT(W70/2)=W70/2,W70/2,3*W70+1),"") ->  | X71: =IF(AND(X70<>1,X70<>""),IF(INT(X70/2)=X70/2,X70/2,3*X70+1),"") ->  | Y71: =IF(AND(Y70<>1,Y70<>""),IF(INT(Y70/2)=Y70/2,Y70/2,3*Y70+1),"") ->  | Z71: =IF(AND(Z70<>1,Z70<>""),IF(INT(Z70/2)=Z70/2,Z70/2,3*Z70+1),"") ->  | AA71: =IF(AND(AA70<>1,AA70<>""),IF(INT(AA70/2)=AA70/2,AA70/2,3*AA70+1),"") -> 7288 | AB71: =IF(AND(AB70<>1,AB70<>""),IF(INT(AB70/2)=AB70/2,AB70/2,3*AB70+1),"") ->  | AC71: =IF(AND(AC70<>1,AC70<>""),IF(INT(AC70/2)=AC70/2,AC70/2,3*AC70+1),"") ->  | AD71: =IF(AND(AD70<>1,AD70<>""),IF(INT(AD70/2)=AD70/2,AD70/2,3*AD70+1),"") ->  | AE71: =IF(AND(AE70<>1,AE70<>""),IF(INT(AE70/2)=AE70/2,AE70/2,3*AE70+1),"") -> 1367 | AF71: =IF(AND(AF70<>1,AF70<>""),IF(INT(AF70/2)=AF70/2,AF70/2,3*AF70+1),"") ->  | AG71: =IF(AND(AG70<>1,AG70<>""),IF(INT(AG70/2)=AG70/2,AG70/2,3*AG70+1),"") ->  | AO71: 1822 | AU71: 2051 | BB71: 2429 | BC71: 2429 | BJ71: 2734 | BK71: 2734 | BS71: 3077 | BU71: 3238 | BW71: =IF(AND(BW70<>1,BW70<>""),IF(INT(BW70/2)=BW70/2,BW70/2,3*BW70+1),"") ->  | CB71: =IF(AND(CB70<>1,CB70<>""),IF(INT(CB70/2)=CB70/2,CB70/2,3*CB70+1),"") ->  | CD71: 3644 | CE71: 3644 | CM71: 650 | CP71: 4102 | CQ71: 4102 | CS71: 719 | CY71: 122 | DC71: 4616 | DD71: 4858 | DE71: 4858 | DF71: 4858 | DG71: 4 | DK71: =IF(AND(DK70<>1,DK70<>""),IF(INT(DK70/2)=DK70/2,DK70/2,3*DK70+1),"") ->  | DQ71: 866 | DT71: 911 | DU71: 911 | DV71: 911 | DY71: 958 | EG71: 976 | EL71: 6154 | EM71: 6154 | EO71: 1079 | EP71: 1079 | EQ71: 1079 | EY71: 184 | FE71: 1154 | FH71: 7288 | FI71: 7288 | FJ71: 7288 | FK71: 1 | FO71: 1276 | FS71: 35 | FZ71: 1300 | GA71: 1300 | GF71: 1367 | GG71: 1367 | GH71: 1367 | GK71: 1438 | GL71: 1438 | GM71: 1438 | GQ71: 1438 | GX71: 244 | GY71: 244 | HF71: 9232 | HG71: 9232 | HH71: 1619 | HJ71: 1619 | HL71: 1619 | HM71: 1619 | HN71: 8 | HO71: 8 | HW71: 283 | HY71: 46 | IA71: 283 | IH71: 1732 | II71: 1732 | IN71: 1822 | IP71: 1822 | IR71: 1822 | IS71: 1822
AA72: 3644 | AE72: 4102 | AO72: 911 | AU72: 6154 | BB72: 7288 | BC72: 7288 | BH72: =IF(AND(BH71<>1,BH71<>""),IF(INT(BH71/2)=BH71/2,BH71/2,3*BH71+1),"") ->  | BI72: =IF(AND(BI71<>1,BI71<>""),IF(INT(BI71/2)=BI71/2,BI71/2,3*BI71+1),"") ->  | BJ72: =IF(AND(BJ71<>1,BJ71<>""),IF(INT(BJ71/2)=BJ71/2,BJ71/2,3*BJ71+1),"") -> 1367 | BK72: 1367 | BS72: 9232 | BU72: 1619 | CA72: =IF(AND(CA71<>1,CA71<>""),IF(INT(CA71/2)=CA71/2,CA71/2,3*CA71+1),"") ->  | CD72: 1822 | CE72: 1822 | CM72: 325 | CP72: 2051 | CQ72: 2051 | CS72: 2158 | CX72: =IF(AND(CX71<>1,CX71<>""),IF(INT(CX71/2)=CX71/2,CX71/2,3*CX71+1),"") ->  | CY72: 61 | DC72: 2308 | DD72: 2429 | DE72: 2429 | DF72: 2429 | DG72: 2 | DQ72: 433 | DT72: 2734 | DU72: 2734 | DV72: 2734 | DY72: 479 | EG72: 488 | EL72: 3077 | EM72: 3077 | EO72: 3238 | EP72: 3238 | EQ72: 3238 | EY72: 92 | FE72: 577 | FH72: 3644 | FI72: 3644 | FJ72: 3644 | FO72: 638 | FS72: 106 | FZ72: 650 | GA72: 650 | GF72: 4102 | GG72: 4102 | GH72: 4102 | GK72: 719 | GL72: 719 | GM72: 719 | GQ72: 719 | GX72: 122 | GY72: 122 | HF72: 4616 | HG72: 4616 | HH72: 4858 | HJ72: 4858 | HL72: 4858 | HM72: 4858 | HN72: 4 | HO72: 4 | HW72: 850 | HY72: 23 | IA72: 850 | IH72: 866 | II72: 866 | IN72: 911 | IP72: 911 | IR72: 911 | IS72: 911
AA73: 1822 | AE73: 2051 | AO73: 2734 | AT73: =IF(AND(AT72<>1,AT72<>""),IF(INT(AT72/2)=AT72/2,AT72/2,3*AT72+1),"") ->  | AU73: =IF(AND(AU72<>1,AU72<>""),IF(INT(AU72/2)=AU72/2,AU72/2,3*AU72+1),"") -> 3077 | AV73: =IF(AND(AV72<>1,AV72<>""),IF(INT(AV72/2)=AV72/2,AV72/2,3*AV72+1),"") ->  | AW73: =IF(AND(AW72<>1,AW72<>""),IF(INT(AW72/2)=AW72/2,AW72/2,3*AW72+1),"") ->  | AX73: =IF(AND(AX72<>1,AX72<>""),IF(INT(AX72/2)=AX72/2,AX72/2,3*AX72+1),"") ->  | AY73: =IF(AND(AY72<>1,AY72<>""),IF(INT(AY72/2)=AY72/2,AY72/2,3*AY72+1),"") ->  | AZ73: =IF(AND(AZ72<>1,AZ72<>""),IF(INT(AZ72/2)=AZ72/2,AZ72/2,3*AZ72+1),"") ->  | BA73: =IF(AND(BA72<>1,BA72<>""),IF(INT(BA72/2)=BA72/2,BA72/2,3*BA72+1),"") ->  | BB73: =IF(AND(BB72<>1,BB72<>""),IF(INT(BB72/2)=BB72/2,BB72/2,3*BB72+1),"") -> 3644 | BC73: =IF(AND(BC72<>1,BC72<>""),IF(INT(BC72/2)=BC72/2,BC72/2,3*BC72+1),"") -> 3644 | BD73: =IF(AND(BD72<>1,BD72<>""),IF(INT(BD72/2)=BD72/2,BD72/2,3*BD72+1),"") ->  | BE73: =IF(AND(BE72<>1,BE72<>""),IF(INT(BE72/2)=BE72/2,BE72/2,3*BE72+1),"") ->  | BF73: =IF(AND(BF72<>1,BF72<>""),IF(INT(BF72/2)=BF72/2,BF72/2,3*BF72+1),"") ->  | BG73: =IF(AND(BG72<>1,BG72<>""),IF(INT(BG72/2)=BG72/2,BG72/2,3*BG72+1),"") ->  | BJ73: 4102 | BK73: 4102 | BS73: 4616 | BU73: 4858 | CD73: 911 | CE73: 911 | CM73: 976 | CP73: 6154 | CQ73: 6154 | CS73: 1079 | CY73: 184 | DC73: 1154 | DD73: 7288 | DE73: 7288 | DF73: 7288 | DG73: 1 | DQ73: 1300 | DT73: 1367 | DU73: 1367 | DV73: 1367 | DY73: 1438 | EG73: 244 | EL73: 9232 | EM73: 9232 | EO73: 1619 | EP73: 1619 | EQ73: 1619 | EY73: 46 | FE73: 1732 | FH73: 1822 | FI73: 1822 | FJ73: 1822 | FO73: 319 | FS73: 53 | FZ73: 325 | GA73: 325 | GF73: 2051 | GG73: 2051 | GH73: 2051 | GK73: 2158 | GL73: 2158 | GM73: 2158 | GQ73: 2158 | GX73: 61 | GY73: 61 | HF73: 2308 | HG73: 2308 | HH73: 2429 | HJ73: 2429 | HL73: 2429 | HM73: 2429 | HN73: 2 | HO73: 2 | HW73: 425 | HY73: 70 | IA73: 425 | IH73: 433 | II73: 433 | IN73: 2734 | IP73: 2734 | IR73: 2734 | IS73: 2734
AA74: 911 | AE74: 6154 | AO74: 1367 | AU74: 9232 | BB74: 1822 | BC74: 1822 | BJ74: 2051 | BK74: 2051 | BS74: 2308 | BU74: 2429 | CD74: 2734 | CE74: 2734 | CM74: 488 | CP74: 3077 | CQ74: 3077 | CS74: 3238 | CY74: 92 | DC74: 577 | DD74: 3644 | DE74: 3644 | DF74: 3644 | DQ74: 650 | DT74: 4102 | DU74: 4102 | DV74: 4102 | DY74: 719 | EG74: 122 | EL74: 4616 | EM74: 4616 | EO74: 4858 | EP74: 4858 | EQ74: 4858 | EY74: 23 | FE74: 866 | FH74: 911 | FI74: 911 | FJ74: 911 | FO74: 958 | FS74: 160 | FZ74: 976 | GA74: 976 | GF74: 6154 | GG74: 6154 | GH74: 6154 | GK74: 1079 | GL74: 1079 | GM74: 1079 | GQ74: 1079 | GX74: 184 | GY74: 184 | HF74: 1154 | HG74: 1154 | HH74: 7288 | HJ74: 7288 | HL74: 7288 | HM74: 7288 | HN74: 1 | HO74: 1 | HW74: 1276 | HY74: 35 | IA74: 1276 | IH74: 1300 | II74: 1300 | IN74: 1367 | IP74: 1367 | IQ74: =IF(AND(IQ73<>1,IQ73<>""),IF(INT(IQ73/2)=IQ73/2,IQ73/2,3*IQ73+1),"") ->  | IR74: 1367 | IS74: 1367
AA75: 2734 | AE75: 3077 | AO75: 4102 | AU75: 4616 | BB75: 911 | BC75: 911 | BJ75: 6154 | BK75: 6154 | BS75: 1154 | BU75: 7288 | CD75: 1367 | CE75: 1367 | CM75: 244 | CP75: 9232 | CQ75: 9232 | CS75: 1619 | CY75: 46 | DC75: 1732 | DD75: 1822 | DE75: 1822 | DF75: 1822 | DQ75: 325 | DT75: 2051 | DU75: 2051 | DV75: 2051 | DY75: 2158 | EG75: 61 | EL75: 2308 | EM75: 2308 | EO75: 2429 | EP75: 2429 | EQ75: 2429 | EY75: 70 | FE75: 433 | FH75: 2734 | FI75: 2734 | FJ75: 2734 | FO75: 479 | FS75: 80 | FZ75: 488 | GA75: 488 | GF75: 3077 | GG75: 3077 | GH75: 3077 | GK75: 3238 | GL75: 3238 | GM75: 3238 | GQ75: 3238 | GX75: 92 | GY75: 92 | HF75: 577 | HG75: 577 | HH75: 3644 | HJ75: 3644 | HL75: 3644 | HM75: 3644 | HW75: 638 | HY75: 106 | IA75: 638 | IH75: 650 | II75: 650 | IK75: =IF(AND(IK74<>1,IK74<>""),IF(INT(IK74/2)=IK74/2,IK74/2,3*IK74+1),"") ->  | IN75: 4102 | IP75: 4102 | IR75: 4102 | IS75: 4102
AA76: 1367 | AE76: 9232 | AO76: 2051 | AU76: 2308 | BB76: 2734 | BC76: 2734 | BJ76: 3077 | BK76: 3077 | BS76: 577 | BU76: 3644 | CD76: 4102 | CE76: 4102 | CM76: 122 | CP76: 4616 | CQ76: 4616 | CS76: 4858 | CY76: 23 | DC76: 866 | DD76: 911 | DE76: 911 | DF76: 911 | DQ76: 976 | DT76: 6154 | DU76: 6154 | DV76: 6154 | DY76: 1079 | EG76: 184 | EL76: 1154 | EM76: 1154 | EO76: 7288 | EP76: 7288 | EQ76: 7288 | EY76: 35 | FE76: 1300 | FH76: 1367 | FI76: 1367 | FJ76: 1367 | FO76: 1438 | FS76: 40 | FZ76: 244 | GA76: 244 | GF76: 9232 | GG76: 9232 | GH76: 9232 | GK76: 1619 | GL76: 1619 | GM76: 1619 | GQ76: 1619 | GX76: 46 | GY76: 46 | HF76: 1732 | HG76: 1732 | HH76: 1822 | HJ76: 1822 | HL76: 1822 | HM76: 1822 | HW76: 319 | HY76: 53 | IA76: 319 | IH76: 325 | II76: 325 | IN76: 2051 | IP76: 2051 | IR76: 2051 | IS76: 2051
AA77: 4102 | AE77: 4616 | AO77: 6154 | AU77: 1154 | BB77: 1367 | BC77: 1367 | BJ77: 9232 | BK77: 9232 | BS77: 1732 | BU77: 1822 | CD77: 2051 | CE77: 2051 | CM77: 61 | CP77: 2308 | CQ77: 2308 | CS77: 2429 | CY77: 70 | DC77: 433 | DD77: 2734 | DE77: 2734 | DF77: 2734 | DQ77: 488 | DT77: 3077 | DU77: 3077 | DV77: 3077 | DY77: 3238 | EG77: 92 | EL77: 577 | EM77: 577 | EO77: 3644 | EP77: 3644 | EQ77: 3644 | EY77: 106 | FE77: 650 | FH77: 4102 | FI77: 4102 | FJ77: 4102 | FO77: 719 | FS77: 20 | FZ77: 122 | GA77: 122 | GF77: 4616 | GG77: 4616 | GH77: 4616 | GK77: 4858 | GL77: 4858 | GM77: 4858 | GQ77: 4858 | GX77: 23 | GY77: 23 | HF77: 866 | HG77: 866 | HH77: 911 | HJ77: 911 | HL77: 911 | HM77: 911 | HW77: 958 | HY77: 160 | IA77: 958 | IH77: 976 | II77: 976 | IN77: 6154 | IP77: 6154 | IR77: 6154 | IS77: 6154
AA78: 2051 | AE78: 2308 | AO78: 3077 | AU78: 577 | BB78: 4102 | BC78: 4102 | BJ78: 4616 | BK78: 4616 | BS78: 866 | BU78: 911 | CD78: 6154 | CE78: 6154 | CM78: 184 | CP78: 1154 | CQ78: 1154 | CS78: 7288 | CY78: 35 | DC78: 1300 | DD78: 1367 | DE78: 1367 | DF78: 1367 | DQ78: 244 | DT78: 9232 | DU78: 9232 | DV78: 9232 | DY78: 1619 | EG78: 46 | EL78: 1732 | EM78: 1732 | EO78: 1822 | EP78: 1822 | EQ78: 1822 | EY78: 53 | FE78: 325 | FH78: 2051 | FI78: 2051 | FJ78: 2051 | FO78: 2158 | FS78: 10 | FZ78: 61 | GA78: 61 | GF78: 2308 | GG78: 2308 | GH78: 2308 | GK78: 2429 | GL78: 2429 | GM78: 2429 | GQ78: 2429 | GX78: 70 | GY78: 70 | HF78: 433 | HG78: 433 | HH78: 2734 | HJ78: 2734 | HL78: 2734 | HM78: 2734 | HW78: 479 | HY78: 80 | IA78: 479 | IH78: 488 | II78: 488 | IN78: 3077 | IP78: 3077 | IR78: 3077 | IS78: 3077
B79: =IF(AND(B78<>1,B78<>""),IF(INT(B78/2)=B78/2,B78/2,3*B78+1),"") ->  | AA79: 6154 | AE79: 1154 | AO79: 9232 | AU79: 1732 | BB79: 2051 | BC79: 2051 | BJ79: 2308 | BK79: 2308 | BS79: 433 | BU79: 2734 | CD79: 3077 | CE79: 3077 | CM79: 92 | CP79: 577 | CQ79: 577 | CS79: 3644 | CY79: 106 | DC79: 650 | DD79: 4102 | DE79: 4102 | DF79: 4102 | DQ79: 122 | DT79: 4616 | DU79: 4616 | DV79: 4616 | DY79: 4858 | EG79: 23 | EL79: 866 | EM79: 866 | EO79: 911 | EP79: 911 | EQ79: 911 | EY79: 160 | FE79: 976 | FH79: 6154 | FI79: 6154 | FJ79: 6154 | FO79: 1079 | FS79: 5 | FZ79: 184 | GA79: 184 | GF79: 1154 | GG79: 1154 | GH79: 1154 | GK79: 7288 | GL79: 7288 | GM79: 7288 | GQ79: 7288 | GX79: 35 | GY79: 35 | HF79: 1300 | HG79: 1300 | HH79: 1367 | HJ79: 1367 | HL79: 1367 | HM79: 1367 | HW79: 1438 | HY79: 40 | IA79: 1438 | IH79: 244 | II79: 244 | IN79: 9232 | IP79: 9232 | IR79: 9232 | IS79: 9232
AA80: 3077 | AE80: 577 | AO80: 4616 | AU80: 866 | BB80: 6154 | BC80: 6154 | BJ80: 1154 | BK80: 1154 | BS80: 1300 | BU80: 1367 | CD80: 9232 | CE80: 9232 | CM80: 46 | CP80: 1732 | CQ80: 1732 | CS80: 1822 | CY80: 53 | DC80: 325 | DD80: 2051 | DE80: 2051 | DF80: 2051 | DQ80: 61 | DT80: 2308 | DU80: 2308 | DV80: 2308 | DY80: 2429 | EG80: 70 | EL80: 433 | EM80: 433 | EO80: 2734 | EP80: 2734 | EQ80: 2734 | EY80: 80 | FE80: 488 | FH80: 3077 | FI80: 3077 | FJ80: 3077 | FO80: 3238 | FS80: 16 | FZ80: 92 | GA80: 92 | GF80: 577 | GG80: 577 | GH80: 577 | GK80: 3644 | GL80: 3644 | GM80: 3644 | GQ80: 3644 | GX80: 106 | GY80: 106 | HF80: 650 | HG80: 650 | HH80: 4102 | HJ80: 4102 | HL80: 4102 | HM80: 4102 | HW80: 719 | HY80: 20 | IA80: 719 | IH80: 122 | II80: 122 | IN80: 4616 | IP80: 4616 | IR80: 4616 | IS80: 4616
AA81: 9232 | AE81: 1732 | AO81: 2308 | AU81: 433 | BB81: 3077 | BC81: 3077 | BJ81: 577 | BK81: 577 | BS81: 650 | BU81: 4102 | CD81: 4616 | CE81: 4616 | CM81: 23 | CP81: 866 | CQ81: 866 | CS81: 911 | CY81: 160 | DC81: 976 | DD81: 6154 | DE81: 6154 | DF81: 6154 | DQ81: 184 | DT81: 1154 | DU81: 1154 | DV81: 1154 | DY81: 7288 | EG81: 35 | EL81: 1300 | EM81: 1300 | EO81: 1367 | EP81: 1367 | EQ81: 1367 | EY81: 40 | FE81: 244 | FH81: 9232 | FI81: 9232 | FJ81: 9232 | FO81: 1619 | FS81: 8 | FZ81: 46 | GA81: 46 | GF81: 1732 | GG81: 1732 | GH81: 1732 | GK81: 1822 | GL81: 1822 | GM81: 1822 | GQ81: 1822 | GX81: 53 | GY81: 53 | HF81: 325 | HG81: 325 | HH81: 2051 | HJ81: 2051 | HL81: 2051 | HM81: 2051 | HW81: 2158 | HY81: 10 | IA81: 2158 | IH81: 61 | II81: 61 | IN81: 2308 | IP81: 2308 | IR81: 2308 | IS81: 2308
AA82: 4616 | AE82: 866 | AO82: 1154 | AU82: 1300 | BB82: 9232 | BC82: 9232 | BJ82: 1732 | BK82: 1732 | BS82: 325 | BU82: 2051 | CD82: 2308 | CE82: 2308 | CM82: 70 | CP82: 433 | CQ82: 433 | CS82: 2734 | CY82: 80 | DC82: 488 | DD82: 3077 | DE82: 3077 | DF82: 3077 | DQ82: 92 | DT82: 577 | DU82: 577 | DV82: 577 | DY82: 3644 | EG82: 106 | EL82: 650 | EM82: 650 | EO82: 4102 | EP82: 4102 | EQ82: 4102 | EY82: 20 | FE82: 122 | FH82: 4616 | FI82: 4616 | FJ82: 4616 | FO82: 4858 | FS82: 4 | FZ82: 23 | GA82: 23 | GF82: 866 | GG82: 866 | GH82: 866 | GK82: 911 | GL82: 911 | GM82: 911 | GQ82: 911 | GX82: 160 | GY82: 160 | HF82: 976 | HG82: 976 | HH82: 6154 | HJ82: 6154 | HL82: 6154 | HM82: 6154 | HW82: 1079 | HY82: 5 | IA82: 1079 | IH82: 184 | II82: 184 | IN82: 1154 | IP82: 1154 | IR82: 1154 | IS82: 1154
AA83: 2308 | AE83: 433 | AO83: 577 | AU83: 650 | BB83: 4616 | BC83: 4616 | BJ83: 866 | BK83: 866 | BS83: 976 | BU83: 6154 | CD83: 1154 | CE83: 1154 | CM83: 35 | CP83: 1300 | CQ83: =IF(AND(CQ82<>1,CQ82<>""),IF(INT(CQ82/2)=CQ82/2,CQ82/2,3*CQ82+1),"") -> 1300 | CS83: 1367 | CY83: 40 | DC83: 244 | DD83: 9232 | DE83: 9232 | DF83: 9232 | DQ83: 46 | DT83: 1732 | DU83: 1732 | DV83: 1732 | DY83: 1822 | EG83: 53 | EI83: =IF(AND(EI82<>1,EI82<>""),IF(INT(EI82/2)=EI82/2,EI82/2,3*EI82+1),"") ->  | EL83: 325 | EM83: 325 | EO83: 2051 | EP83: 2051 | EQ83: 2051 | EY83: =IF(AND(EY82<>1,EY82<>""),IF(INT(EY82/2)=EY82/2,EY82/2,3*EY82+1),"") -> 10 | FE83: 61 | FH83: 2308 | FI83: 2308 | FJ83: 2308 | FO83: =IF(AND(FO82<>1,FO82<>""),IF(INT(FO82/2)=FO82/2,FO82/2,3*FO82+1),"") -> 2429 | FS83: 2 | FZ83: 70 | GA83: 70 | GE83: =IF(AND(GE82<>1,GE82<>""),IF(INT(GE82/2)=GE82/2,GE82/2,3*GE82+1),"") ->  | GF83: 433 | GG83: 433 | GH83: 433 | GK83: 2734 | GL83: 2734 | GM83: 2734 | GQ83: 2734 | GU83: =IF(AND(GU82<>1,GU82<>""),IF(INT(GU82/2)=GU82/2,GU82/2,3*GU82+1),"") ->  | GX83: 80 | GY83: 80 | HF83: 488 | HG83: 488 | HH83: 3077 | HJ83: 3077 | HK83: =IF(AND(HK82<>1,HK82<>""),IF(INT(HK82/2)=HK82/2,HK82/2,3*HK82+1),"") ->  | HL83: 3077 | HM83: 3077 | HW83: 3238 | HY83: 16 | IA83: =IF(AND(IA82<>1,IA82<>""),IF(INT(IA82/2)=IA82/2,IA82/2,3*IA82+1),"") -> 3238 | IB83: =IF(AND(IB82<>1,IB82<>""),IF(INT(IB82/2)=IB82/2,IB82/2,3*IB82+1),"") ->  | IC83: =IF(AND(IC82<>1,IC82<>""),IF(INT(IC82/2)=IC82/2,IC82/2,3*IC82+1),"") ->  | IH83: 92 | II83: 92 | IN83: 577 | IP83: 577 | IR83: 577 | IS83: 577
AA84: 1154 | AE84: 1300 | AO84: 1732 | AU84: 325 | BB84: 2308 | BC84: 2308 | BJ84: 433 | BK84: 433 | BS84: 488 | BU84: 3077 | CC84: =IF(AND(CC83<>1,CC83<>""),IF(INT(CC83/2)=CC83/2,CC83/2,3*CC83+1),"") ->  | CD84: =IF(AND(CD83<>1,CD83<>""),IF(INT(CD83/2)=CD83/2,CD83/2,3*CD83+1),"") -> 577 | CE84: =IF(AND(CE83<>1,CE83<>""),IF(INT(CE83/2)=CE83/2,CE83/2,3*CE83+1),"") -> 577 | CH84: =IF(AND(CH83<>1,CH83<>""),IF(INT(CH83/2)=CH83/2,CH83/2,3*CH83+1),"") ->  | CM84: 106 | CP84: 650 | CQ84: 650 | CS84: 4102 | CY84: 20 | DC84: 122 | DD84: 4616 | DE84: 4616 | DF84: 4616 | DQ84: 23 | DT84: 866 | DU84: 866 | DV84: 866 | DY84: 911 | EB84: =IF(AND(EB83<>1,EB83<>""),IF(INT(EB83/2)=EB83/2,EB83/2,3*EB83+1),"") ->  | EG84: 160 | EL84: 976 | EM84: 976 | EO84: 6154 | EP84: 6154 | EQ84: 6154 | EY84: 5 | FE84: 184 | FH84: 1154 | FI84: 1154 | FJ84: 1154 | FO84: 7288 | FS84: 1 | FZ84: 35 | GA84: 35 | GF84: 1300 | GG84: 1300 | GH84: 1300 | GK84: 1367 | GL84: 1367 | GM84: 1367 | GQ84: 1367 | GX84: 40 | GY84: 40 | HF84: 244 | HG84: 244 | HH84: 9232 | HJ84: 9232 | HL84: 9232 | HM84: 9232 | HW84: 1619 | HY84: 8 | IA84: 1619 | IH84: 46 | II84: 46 | IN84: 1732 | IP84: 1732 | IR84: 1732 | IS84: 1732
R85: =IF(AND(R84<>1,R84<>""),IF(INT(R84/2)=R84/2,R84/2,3*R84+1),"") ->  | S85: =IF(AND(S84<>1,S84<>""),IF(INT(S84/2)=S84/2,S84/2,3*S84+1),"") ->  | T85: =IF(AND(T84<>1,T84<>""),IF(INT(T84/2)=T84/2,T84/2,3*T84+1),"") ->  | U85: =IF(AND(U84<>1,U84<>""),IF(INT(U84/2)=U84/2,U84/2,3*U84+1),"") ->  | AA85: 577 | AE85: 650 | AG85: =IF(AND(AG84<>1,AG84<>""),IF(INT(AG84/2)=AG84/2,AG84/2,3*AG84+1),"") ->  | AO85: 866 | AU85: 976 | BB85: 1154 | BC85: 1154 | BJ85: 1300 | BK85: 1300 | BS85: 244 | BU85: 9232 | CD85: 1732 | CE85: 1732 | CM85: 53 | CP85: 325 | CQ85: 325 | CS85: 2051 | CY85: 10 | DC85: 61 | DD85: 2308 | DE85: 2308 | DF85: 2308 | DQ85: 70 | DT85: 433 | DU85: 433 | DV85: 433 | DY85: 2734 | EG85: 80 | EL85: 488 | EM85: 488 | EO85: 3077 | EP85: 3077 | EQ85: 3077 | EY85: 16 | FE85: 92 | FH85: 577 | FI85: 577 | FJ85: 577 | FO85: 3644 | FZ85: 106 | GA85: 106 | GF85: 650 | GG85: 650 | GH85: 650 | GK85: 4102 | GL85: 4102 | GM85: 4102 | GQ85: 4102 | GX85: 20 | GY85: 20 | HF85: 122 | HG85: 122 | HH85: 4616 | HJ85: 4616 | HL85: 4616 | HM85: 4616 | HW85: 4858 | HY85: 4 | IA85: 4858 | IH85: 23 | II85: 23 | IN85: 866 | IP85: 866 | IR85: 866 | IS85: 866
R86: =IF(AND(R85<>1,R85<>""),IF(INT(R85/2)=R85/2,R85/2,3*R85+1),"") ->  | AA86: 1732 | AE86: 325 | AO86: 433 | AU86: 488 | BB86: 577 | BC86: 577 | BJ86: 650 | BK86: 650 | BS86: 122 | BU86: 4616 | CD86: 866 | CE86: 866 | CM86: 160 | CP86: 976 | CQ86: 976 | CS86: 6154 | CY86: 5 | DC86: 184 | DD86: 1154 | DE86: 1154 | DF86: 1154 | DQ86: 35 | DT86: 1300 | DU86: 1300 | DV86: 1300 | DY86: 1367 | EG86: 40 | EL86: 244 | EM86: 244 | EO86: 9232 | EP86: 9232 | EQ86: 9232 | EY86: 8 | FE86: 46 | FH86: 1732 | FI86: 1732 | FJ86: 1732 | FO86: 1822 | FZ86: 53 | GA86: 53 | GF86: 325 | GG86: 325 | GH86: 325 | GK86: 2051 | GL86: 2051 | GM86: 2051 | GQ86: 2051 | GX86: 10 | GY86: 10 | HF86: 61 | HG86: 61 | HH86: 2308 | HJ86: 2308 | HL86: 2308 | HM86: 2308 | HW86: 2429 | HY86: 2 | IA86: 2429 | IH86: 70 | II86: 70 | IN86: 433 | IP86: 433 | IR86: 433 | IS86: 433
AA87: 866 | AE87: 976 | AO87: 1300 | AU87: 244 | BB87: 1732 | BC87: 1732 | BJ87: 325 | BK87: 325 | BS87: 61 | BU87: 2308 | BZ87: =IF(AND(BZ86<>1,BZ86<>""),IF(INT(BZ86/2)=BZ86/2,BZ86/2,3*BZ86+1),"") ->  | CD87: 433 | CE87: 433 | CM87: 80 | CP87: 488 | CQ87: 488 | CS87: 3077 | CY87: 16 | DC87: 92 | DD87: 577 | DE87: 577 | DF87: 577 | DQ87: 106 | DT87: 650 | DU87: 650 | DV87: 650 | DY87: 4102 | EG87: 20 | EL87: 122 | EM87: 122 | EO87: 4616 | EP87: 4616 | EQ87: 4616 | EY87: 4 | FE87: 23 | FH87: 866 | FI87: 866 | FJ87: 866 | FO87: 911 | FZ87: 160 | GA87: 160 | GF87: 976 | GG87: 976 | GH87: 976 | GK87: 6154 | GL87: 6154 | GM87: 6154 | GQ87: 6154 | GX87: 5 | GY87: 5 | HF87: 184 | HG87: 184 | HH87: 1154 | HJ87: 1154 | HL87: 1154 | HM87: 1154 | HW87: 7288 | HY87: 1 | IA87: 7288 | IH87: 35 | II87: 35 | IN87: 1300 | IP87: 1300 | IR87: 1300 | IS87: 1300
AA88: 433 | AE88: 488 | AO88: 650 | AU88: 122 | BB88: 866 | BC88: 866 | BJ88: 976 | BK88: 976 | BS88: 184 | BU88: 1154 | BX88: =IF(AND(BX87<>1,BX87<>""),IF(INT(BX87/2)=BX87/2,BX87/2,3*BX87+1),"") ->  | BY88: =IF(AND(BY87<>1,BY87<>""),IF(INT(BY87/2)=BY87/2,BY87/2,3*BY87+1),"") ->  | CD88: 1300 | CE88: 1300 | CM88: 40 | CP88: 244 | CQ88: 244 | CS88: 9232 | CY88: 8 | DC88: 46 | DD88: 1732 | DE88: 1732 | DF88: 1732 | DQ88: 53 | DT88: 325 | DU88: 325 | DV88: 325 | DY88: 2051 | EG88: 10 | EL88: 61 | EM88: 61 | EO88: 2308 | EP88: 2308 | EQ88: 2308 | EY88: 2 | FE88: 70 | FH88: 433 | FI88: 433 | FJ88: 433 | FO88: 2734 | FZ88: 80 | GA88: 80 | GF88: 488 | GG88: 488 | GH88: 488 | GK88: 3077 | GL88: 3077 | GM88: 3077 | GQ88: 3077 | GX88: 16 | GY88: 16 | HF88: 92 | HG88: 92 | HH88: 577 | HJ88: 577 | HL88: 577 | HM88: 577 | HW88: 3644 | IA88: 3644 | IH88: 106 | II88: 106 | IN88: 650 | IP88: 650 | IR88: 650 | IS88: 650
AA89: 1300 | AE89: 244 | AO89: 325 | AU89: 61 | BB89: 433 | BC89: 433 | BJ89: 488 | BK89: 488 | BS89: 92 | BU89: 577 | CD89: 650 | CE89: 650 | CH89: =IF(AND(CH88<>1,CH88<>""),IF(INT(CH88/2)=CH88/2,CH88/2,3*CH88+1),"") ->  | CI89: =IF(AND(CI88<>1,CI88<>""),IF(INT(CI88/2)=CI88/2,CI88/2,3*CI88+1),"") ->  | CM89: 20 | CP89: 122 | CQ89: 122 | CS89: 4616 | CY89: 4 | DC89: 23 | DD89: 866 | DE89: 866 | DF89: 866 | DQ89: 160 | DT89: 976 | DU89: 976 | DV89: 976 | DY89: 6154 | EA89: =IF(AND(EA88<>1,EA88<>""),IF(INT(EA88/2)=EA88/2,EA88/2,3*EA88+1),"") ->  | EG89: 5 | EL89: 184 | EM89: 184 | EO89: 1154 | EP89: 1154 | EQ89: 1154 | EY89: 1 | FE89: 35 | FH89: 1300 | FI89: 1300 | FJ89: 1300 | FO89: 1367 | FZ89: 40 | GA89: 40 | GF89: 244 | GG89: 244 | GH89: 244 | GK89: 9232 | GL89: 9232 | GM89: 9232 | GQ89: 9232 | GX89: 8 | GY89: 8 | HF89: 46 | HG89: 46 | HH89: 1732 | HJ89: 1732 | HL89: 1732 | HM89: 1732 | HW89: 1822 | IA89: 1822 | IH89: 53 | II89: 53 | IN89: 325 | IP89: 325 | IR89: 325 | IS89: 325
AA90: 650 | AE90: 122 | AO90: 976 | AU90: =IF(AND(AU89<>1,AU89<>""),IF(INT(AU89/2)=AU89/2,AU89/2,3*AU89+1),"") -> 184 | BB90: 1300 | BC90: =IF(AND(BC89<>1,BC89<>""),IF(INT(BC89/2)=BC89/2,BC89/2,3*BC89+1),"") -> 1300 | BJ90: 244 | BK90: 244 | BS90: 46 | BU90: 1732 | CD90: 325 | CE90: 325 | CM90: 10 | CP90: 61 | CQ90: 61 | CS90: 2308 | CY90: 2 | DC90: 70 | DD90: 433 | DE90: 433 | DF90: 433 | DL90: =IF(AND(DL89<>1,DL89<>""),IF(INT(DL89/2)=DL89/2,DL89/2,3*DL89+1),"") ->  | DM90: =IF(AND(DM89<>1,DM89<>""),IF(INT(DM89/2)=DM89/2,DM89/2,3*DM89+1),"") ->  | DN90: =IF(AND(DN89<>1,DN89<>""),IF(INT(DN89/2)=DN89/2,DN89/2,3*DN89+1),"") ->  | DO90: =IF(AND(DO89<>1,DO89<>""),IF(INT(DO89/2)=DO89/2,DO89/2,3*DO89+1),"") ->  | DP90: =IF(AND(DP89<>1,DP89<>""),IF(INT(DP89/2)=DP89/2,DP89/2,3*DP89+1),"") ->  | DQ90: =IF(AND(DQ89<>1,DQ89<>""),IF(INT(DQ89/2)=DQ89/2,DQ89/2,3*DQ89+1),"") -> 80 | DR90: =IF(AND(DR89<>1,DR89<>""),IF(INT(DR89/2)=DR89/2,DR89/2,3*DR89+1),"") ->  | DS90: =IF(AND(DS89<>1,DS89<>""),IF(INT(DS89/2)=DS89/2,DS89/2,3*DS89+1),"") ->  | DT90: =IF(AND(DT89<>1,DT89<>""),IF(INT(DT89/2)=DT89/2,DT89/2,3*DT89+1),"") -> 488 | DU90: =IF(AND(DU89<>1,DU89<>""),IF(INT(DU89/2)=DU89/2,DU89/2,3*DU89+1),"") -> 488 | DV90: =IF(AND(DV89<>1,DV89<>""),IF(INT(DV89/2)=DV89/2,DV89/2,3*DV89+1),"") -> 488 | DW90: =IF(AND(DW89<>1,DW89<>""),IF(INT(DW89/2)=DW89/2,DW89/2,3*DW89+1),"") ->  | DX90: =IF(AND(DX89<>1,DX89<>""),IF(INT(DX89/2)=DX89/2,DX89/2,3*DX89+1),"") ->  | DY90: =IF(AND(DY89<>1,DY89<>""),IF(INT(DY89/2)=DY89/2,DY89/2,3*DY89+1),"") -> 3077 | DZ90: =IF(AND(DZ89<>1,DZ89<>""),IF(INT(DZ89/2)=DZ89/2,DZ89/2,3*DZ89+1),"") ->  | EG90: 16 | EL90: 92 | EM90: 92 | EO90: 577 | EP90: 577 | EQ90: 577 | FE90: 106 | FH90: 650 | FI90: 650 | FJ90: 650 | FO90: 4102 | FZ90: 20 | GA90: 20 | GF90: 122 | GG90: 122 | GH90: 122 | GK90: 4616 | GL90: 4616 | GM90: 4616 | GQ90: 4616 | GX90: 4 | GY90: 4 | HF90: 23 | HG90: 23 | HH90: 866 | HJ90: 866 | HL90: 866 | HM90: 866 | HW90: 911 | IA90: 911 | IH90: 160 | II90: 160 | IN90: 976 | IP90: 976 | IR90: 976 | IS90: 976
AA91: 325 | AE91: 61 | AO91: 488 | AU91: 92 | BB91: 650 | BC91: 650 | BJ91: 122 | BK91: 122 | BR91: =IF(AND(BR90<>1,BR90<>""),IF(INT(BR90/2)=BR90/2,BR90/2,3*BR90+1),"") ->  | BS91: =IF(AND(BS90<>1,BS90<>""),IF(INT(BS90/2)=BS90/2,BS90/2,3*BS90+1),"") -> 23 | BT91: =IF(AND(BT90<>1,BT90<>""),IF(INT(BT90/2)=BT90/2,BT90/2,3*BT90+1),"") ->  | BU91: =IF(AND(BU90<>1,BU90<>""),IF(INT(BU90/2)=BU90/2,BU90/2,3*BU90+1),"") -> 866 | BV91: =IF(AND(BV90<>1,BV90<>""),IF(INT(BV90/2)=BV90/2,BV90/2,3*BV90+1),"") ->  | CD91: 976 | CE91: 976 | CM91: 5 | CP91: 184 | CQ91: 184 | CS91: 1154 | CY91: 1 | DC91: 35 | DD91: 1300 | DE91: 1300 | DF91: =IF(AND(DF90<>1,DF90<>""),IF(INT(DF90/2)=DF90/2,DF90/2,3*DF90+1),"") -> 1300 | DQ91: 40 | DT91: 244 | DU91: 244 | DV91: 244 | DY91: 9232 | EG91: 8 | EL91: 46 | EM91: 46 | EO91: 1732 | EP91: 1732 | EQ91: 1732 | FE91: 53 | FH91: 325 | FI91: 325 | FJ91: 325 | FO91: 2051 | FZ91: 10 | GA91: 10 | GF91: 61 | GG91: 61 | GH91: 61 | GK91: 2308 | GL91: 2308 | GM91: 2308 | GQ91: 2308 | GX91: 2 | GY91: 2 | HF91: 70 | HG91: 70 | HH91: 433 | HJ91: 433 | HL91: 433 | HM91: 433 | HW91: 2734 | IA91: 2734 | IH91: 80 | II91: 80 | IN91: 488 | IP91: 488 | IR91: 488 | IS91: 488
AA92: 976 | AE92: 184 | AO92: 244 | AU92: 46 | BB92: 325 | BC92: 325 | BJ92: 61 | BK92: 61 | BS92: 70 | BU92: 433 | CD92: 488 | CE92: 488 | CM92: 16 | CP92: 92 | CQ92: 92 | CS92: 577 | DC92: 106 | DD92: 650 | DE92: 650 | DF92: 650 | DQ92: 20 | DT92: 122 | DU92: 122 | DV92: 122 | DY92: 4616 | EG92: 4 | EL92: 23 | EM92: 23 | EO92: 866 | EP92: 866 | EQ92: 866 | FE92: 160 | FH92: 976 | FI92: 976 | FJ92: 976 | FO92: 6154 | FZ92: 5 | GA92: 5 | GF92: 184 | GG92: 184 | GH92: 184 | GK92: 1154 | GL92: 1154 | GM92: 1154 | GQ92: 1154 | GX92: 1 | GY92: 1 | HF92: 35 | HG92: 35 | HH92: 1300 | HJ92: 1300 | HL92: 1300 | HM92: 1300 | HW92: 1367 | IA92: 1367 | IH92: 40 | II92: 40 | IN92: 244 | IP92: 244 | IR92: 244 | IS92: 244
AA93: 488 | AE93: 92 | AO93: 122 | AU93: 23 | BB93: 976 | BC93: 976 | BJ93: 184 | BK93: 184 | BS93: 35 | BU93: 1300 | CD93: 244 | CE93: 244 | CM93: 8 | CP93: 46 | CQ93: 46 | CS93: 1732 | DC93: 53 | DD93: 325 | DE93: 325 | DF93: 325 | DQ93: 10 | DT93: 61 | DU93: 61 | DV93: 61 | DY93: 2308 | EG93: 2 | EL93: 70 | EM93: 70 | EO93: 433 | EP93: 433 | EQ93: 433 | FE93: 80 | FH93: 488 | FI93: 488 | FJ93: 488 | FO93: 3077 | FZ93: 16 | GA93: 16 | GF93: 92 | GG93: 92 | GH93: 92 | GK93: 577 | GL93: 577 | GM93: 577 | GQ93: 577 | HF93: 106 | HG93: 106 | HH93: 650 | HJ93: 650 | HL93: 650 | HM93: 650 | HW93: 4102 | IA93: 4102 | IH93: 20 | II93: 20 | IN93: 122 | IP93: 122 | IR93: 122 | IS93: 122
AA94: 244 | AE94: 46 | AO94: 61 | AU94: 70 | BB94: 488 | BC94: 488 | BJ94: 92 | BK94: 92 | BS94: 106 | BU94: 650 | CD94: 122 | CE94: 122 | CM94: 4 | CP94: 23 | CQ94: 23 | CS94: 866 | DC94: 160 | DD94: 976 | DE94: 976 | DF94: 976 | DQ94: 5 | DT94: 184 | DU94: 184 | DV94: 184 | DY94: 1154 | EG94: 1 | EL94: 35 | EM94: 35 | EO94: 1300 | EP94: 1300 | EQ94: 1300 | FE94: 40 | FH94: 244 | FI94: 244 | FJ94: 244 | FO94: 9232 | FZ94: 8 | GA94: 8 | GF94: 46 | GG94: 46 | GH94: 46 | GK94: 1732 | GL94: 1732 | GM94: 1732 | GQ94: 1732 | HF94: 53 | HG94: 53 | HH94: 325 | HJ94: 325 | HL94: 325 | HM94: 325 | HW94: 2051 | IA94: 2051 | IH94: 10 | II94: 10 | IN94: 61 | IP94: 61 | IR94: 61 | IS94: 61
H95: =IF(AND(H94<>1,H94<>""),IF(INT(H94/2)=H94/2,H94/2,3*H94+1),"") ->  | AA95: 122 | AE95: 23 | AO95: 184 | AU95: 35 | BB95: 244 | BC95: 244 | BJ95: 46 | BK95: 46 | BS95: 53 | BU95: 325 | CD95: 61 | CE95: 61 | CM95: 2 | CP95: 70 | CQ95: 70 | CS95: 433 | DC95: 80 | DD95: 488 | DE95: 488 | DF95: 488 | DQ95: 16 | DT95: 92 | DU95: 92 | DV95: 92 | DY95: 577 | EL95: 106 | EM95: 106 | EO95: 650 | EP95: 650 | EQ95: 650 | FE95: 20 | FH95: 122 | FI95: 122 | FJ95: 122 | FO95: 4616 | FZ95: 4 | GA95: 4 | GF95: 23 | GG95: 23 | GH95: 23 | GK95: 866 | GL95: 866 | GM95: 866 | GQ95: 866 | HF95: 160 | HG95: 160 | HH95: 976 | HJ95: 976 | HL95: 976 | HM95: 976 | HW95: 6154 | IA95: 6154 | IH95: 5 | II95: 5 | IN95: 184 | IP95: 184 | IR95: 184 | IS95: 184
B96: =IF(AND(B95<>1,B95<>""),IF(INT(B95/2)=B95/2,B95/2,3*B95+1),"") ->  | AA96: 61 | AE96: 70 | AO96: 92 | AU96: 106 | BB96: 122 | BC96: 122 | BJ96: 23 | BK96: 23 | BS96: 160 | BU96: 976 | CD96: 184 | CE96: 184 | CM96: 1 | CP96: 35 | CQ96: 35 | CS96: 1300 | DC96: 40 | DD96: 244 | DE96: 244 | DF96: 244 | DQ96: 8 | DT96: 46 | DU96: 46 | DV96: 46 | DY96: 1732 | EL96: 53 | EM96: 53 | EO96: 325 | EP96: 325 | EQ96: 325 | FE96: 10 | FH96: 61 | FI96: 61 | FJ96: 61 | FO96: 2308 | FZ96: 2 | GA96: 2 | GF96: 70 | GG96: 70 | GH96: 70 | GK96: 433 | GL96: 433 | GM96: 433 | GQ96: 433 | HF96: 80 | HG96: 80 | HH96: 488 | HJ96: 488 | HL96: 488 | HM96: 488 | HW96: 3077 | IA96: 3077 | IH96: 16 | II96: 16 | IN96: 92 | IP96: 92 | IR96: 92 | IS96: 92
AA97: 184 | AE97: 35 | AO97: 46 | AU97: 53 | BB97: 61 | BC97: 61 | BJ97: 70 | BK97: 70 | BS97: 80 | BU97: 488 | CD97: 92 | CE97: 92 | CP97: 106 | CQ97: 106 | CS97: 650 | DC97: 20 | DD97: 122 | DE97: 122 | DF97: 122 | DQ97: 4 | DT97: 23 | DU97: 23 | DV97: 23 | DY97: 866 | EL97: 160 | EM97: 160 | EO97: 976 | EP97: 976 | EQ97: 976 | FE97: 5 | FH97: 184 | FI97: 184 | FJ97: 184 | FO97: 1154 | FZ97: 1 | GA97: 1 | GF97: 35 | GG97: 35 | GH97: 35 | GK97: 1300 | GL97: 1300 | GM97: 1300 | GQ97: 1300 | HF97: 40 | HG97: 40 | HH97: 244 | HJ97: 244 | HL97: 244 | HM97: 244 | HW97: 9232 | IA97: 9232 | IH97: 8 | II97: 8 | IN97: 46 | IP97: 46 | IR97: 46 | IS97: 46
AA98: 92 | AE98: 106 | AO98: 23 | AU98: =IF(AND(AU97<>1,AU97<>""),IF(INT(AU97/2)=AU97/2,AU97/2,3*AU97+1),"") -> 160 | AX98: =IF(AND(AX97<>1,AX97<>""),IF(INT(AX97/2)=AX97/2,AX97/2,3*AX97+1),"") ->  | BB98: 184 | BC98: 184 | BJ98: 35 | BK98: 35 | BS98: 40 | BU98: 244 | CD98: 46 | CE98: 46 | CP98: 53 | CQ98: 53 | CS98: 325 | DC98: 10 | DD98: 61 | DE98: 61 | DF98: 61 | DQ98: 2 | DT98: 70 | DU98: 70 | DV98: 70 | DY98: 433 | EL98: 80 | EM98: 80 | EO98: 488 | EP98: 488 | EQ98: 488 | FE98: 16 | FH98: 92 | FI98: 92 | FJ98: 92 | FO98: 577 | GF98: 106 | GG98: 106 | GH98: 106 | GK98: 650 | GL98: 650 | GM98: 650 | GQ98: 650 | HF98: 20 | HG98: 20 | HH98: 122 | HJ98: 122 | HL98: 122 | HM98: 122 | HW98: 4616 | IA98: 4616 | IH98: 4 | II98: 4 | IN98: 23 | IP98: 23 | IR98: 23 | IS98: 23
AA99: 46 | AE99: 53 | AO99: 70 | AU99: 80 | BB99: 92 | BC99: 92 | BJ99: 106 | BK99: 106 | BS99: 20 | BU99: 122 | CD99: 23 | CE99: 23 | CP99: 160 | CQ99: 160 | CS99: 976 | DC99: 5 | DD99: 184 | DE99: 184 | DF99: 184 | DQ99: 1 | DT99: 35 | DU99: 35 | DV99: 35 | DY99: 1300 | EL99: 40 | EM99: 40 | EO99: 244 | EP99: 244 | EQ99: 244 | EU99: =IF(AND(EU98<>1,EU98<>""),IF(INT(EU98/2)=EU98/2,EU98/2,3*EU98+1),"") ->  | FE99: 8 | FH99: 46 | FI99: 46 | FJ99: 46 | FK99: =IF(AND(FK98<>1,FK98<>""),IF(INT(FK98/2)=FK98/2,FK98/2,3*FK98+1),"") ->  | FO99: 1732 | GA99: =IF(AND(GA98<>1,GA98<>""),IF(INT(GA98/2)=GA98/2,GA98/2,3*GA98+1),"") ->  | GF99: 53 | GG99: 53 | GH99: 53 | GK99: 325 | GL99: 325 | GM99: 325 | GQ99: =IF(AND(GQ98<>1,GQ98<>""),IF(INT(GQ98/2)=GQ98/2,GQ98/2,3*GQ98+1),"") -> 325 | HF99: 10 | HG99: =IF(AND(HG98<>1,HG98<>""),IF(INT(HG98/2)=HG98/2,HG98/2,3*HG98+1),"") -> 10 | HH99: 61 | HJ99: 61 | HL99: 61 | HM99: 61 | HW99: =IF(AND(HW98<>1,HW98<>""),IF(INT(HW98/2)=HW98/2,HW98/2,3*HW98+1),"") -> 2308 | IA99: 2308 | ID99: =IF(AND(ID98<>1,ID98<>""),IF(INT(ID98/2)=ID98/2,ID98/2,3*ID98+1),"") ->  | IE99: =IF(AND(IE98<>1,IE98<>""),IF(INT(IE98/2)=IE98/2,IE98/2,3*IE98+1),"") ->  | IH99: 2 | II99: 2 | IN99: 70 | IP99: 70 | IR99: 70 | IS99: 70
AA100: 23 | AE100: 160 | AH100: =IF(AND(AH99<>1,AH99<>""),IF(INT(AH99/2)=AH99/2,AH99/2,3*AH99+1),"") ->  | AI100: =IF(AND(AI99<>1,AI99<>""),IF(INT(AI99/2)=AI99/2,AI99/2,3*AI99+1),"") ->  | AO100: 35 | AU100: 40 | BB100: 46 | BC100: 46 | BJ100: 53 | BK100: 53 | BS100: 10 | BU100: 61 | CD100: 70 | CE100: 70 | CF100: =IF(AND(CF99<>1,CF99<>""),IF(INT(CF99/2)=CF99/2,CF99/2,3*CF99+1),"") ->  | CG100: =IF(AND(CG99<>1,CG99<>""),IF(INT(CG99/2)=CG99/2,CG99/2,3*CG99+1),"") ->  | CP100: 80 | CQ100: 80 | CS100: 488 | DC100: 16 | DD100: 92 | DE100: 92 | DF100: 92 | DT100: 106 | DU100: 106 | DV100: 106 | DY100: 650 | EL100: 20 | EM100: 20 | EO100: 122 | EP100: 122 | EQ100: 122 | ER100: =IF(AND(ER99<>1,ER99<>""),IF(INT(ER99/2)=ER99/2,ER99/2,3*ER99+1),"") ->  | FE100: 4 | FH100: 23 | FI100: 23 | FJ100: 23 | FO100: 866 | GF100: 160 | GG100: 160 | GH100: 160 | GK100: 976 | GL100: 976 | GM100: 976 | GQ100: 976 | HF100: 5 | HG100: 5 | HH100: 184 | HJ100: 184 | HL100: 184 | HM100: 184 | HW100: 1154 | IA100: 1154 | IH100: 1 | II100: 1 | IN100: 35 | IP100: 35 | IR100: 35 | IS100: 35
AA101: 70 | AE101: 80 | AO101: 106 | AU101: 20 | BB101: 23 | BC101: 23 | BJ101: 160 | BK101: 160 | BS101: 5 | BU101: 184 | CD101: 35 | CE101: 35 | CP101: 40 | CQ101: 40 | CS101: 244 | DC101: 8 | DD101: 46 | DE101: 46 | DF101: 46 | DT101: 53 | DU101: 53 | DV101: 53 | DY101: 325 | EL101: 10 | EM101: 10 | EO101: 61 | EP101: 61 | EQ101: 61 | FE101: 2 | FH101: 70 | FI101: 70 | FJ101: 70 | FO101: 433 | GF101: 80 | GG101: 80 | GH101: 80 | GK101: 488 | GL101: 488 | GM101: 488 | GQ101: 488 | HF101: 16 | HG101: 16 | HH101: 92 | HJ101: 92 | HL101: 92 | HM101: 92 | HW101: 577 | IA101: 577 | IN101: 106 | IP101: 106 | IR101: 106 | IS101: 106
AA102: 35 | AE102: 40 | AO102: 53 | AU102: 10 | BB102: 70 | BC102: 70 | BJ102: 80 | BK102: 80 | BS102: 16 | BU102: 92 | CD102: 106 | CE102: 106 | CP102: 20 | CQ102: 20 | CS102: 122 | DC102: 4 | DD102: 23 | DE102: 23 | DF102: 23 | DT102: 160 | DU102: 160 | DV102: 160 | DY102: 976 | EL102: 5 | EM102: 5 | EO102: 184 | EP102: 184 | EQ102: 184 | FE102: 1 | FH102: 35 | FI102: 35 | FJ102: 35 | FO102: 1300 | GF102: 40 | GG102: 40 | GH102: 40 | GK102: 244 | GL102: 244 | GM102: 244 | GQ102: 244 | HF102: 8 | HG102: 8 | HH102: 46 | HJ102: 46 | HL102: 46 | HM102: 46 | HW102: 1732 | IA102: 1732 | IN102: 53 | IP102: 53 | IR102: 53 | IS102: 53
AA103: 106 | AE103: 20 | AO103: 160 | AU103: 5 | BB103: 35 | BC103: 35 | BJ103: 40 | BK103: 40 | BS103: 8 | BU103: 46 | BW103: =IF(AND(BW102<>1,BW102<>""),IF(INT(BW102/2)=BW102/2,BW102/2,3*BW102+1),"") ->  | CB103: =IF(AND(CB102<>1,CB102<>""),IF(INT(CB102/2)=CB102/2,CB102/2,3*CB102+1),"") ->  | CD103: 53 | CE103: 53 | CP103: 10 | CQ103: 10 | CS103: 61 | DC103: 2 | DD103: 70 | DE103: 70 | DF103: 70 | DT103: 80 | DU103: 80 | DV103: 80 | DY103: 488 | EL103: 16 | EM103: 16 | EO103: 92 | EP103: 92 | EQ103: 92 | FH103: 106 | FI103: 106 | FJ103: 106 | FO103: 650 | GF103: 20 | GG103: 20 | GH103: 20 | GK103: 122 | GL103: 122 | GM103: 122 | GQ103: 122 | HF103: 4 | HG103: 4 | HH103: 23 | HJ103: 23 | HL103: 23 | HM103: 23 | HW103: 866 | IA103: 866 | IN103: 160 | IP103: 160 | IR103: 160 | IS103: 160
AA104: 53 | AE104: 10 | AO104: 80 | AU104: 16 | BB104: 106 | BC104: 106 | BJ104: 20 | BK104: 20 | BS104: 4 | BU104: 23 | CA104: =IF(AND(CA103<>1,CA103<>""),IF(INT(CA103/2)=CA103/2,CA103/2,3*CA103+1),"") ->  | CD104: 160 | CE104: 160 | CP104: 5 | CQ104: 5 | CS104: 184 | DC104: =IF(AND(DC103<>1,DC103<>""),IF(INT(DC103/2)=DC103/2,DC103/2,3*DC103+1),"") -> 1 | DD104: 35 | DE104: 35 | DF104: 35 | DT104: 40 | DU104: 40 | DV104: 40 | DY104: 244 | EL104: 8 | EM104: 8 | EO104: 46 | EP104: 46 | EQ104: 46 | FH104: 53 | FI104: 53 | FJ104: 53 | FO104: 325 | GF104: 10 | GG104: 10 | GH104: 10 | GK104: 61 | GL104: 61 | GM104: 61 | GQ104: 61 | HF104: 2 | HG104: 2 | HH104: 70 | HJ104: 70 | HL104: 70 | HM104: 70 | HW104: 433 | IA104: 433 | IN104: 80 | IP104: 80 | IR104: 80 | IS104: 80
AA105: 160 | AE105: 5 | AO105: 40 | AU105: 8 | BB105: 53 | BC105: 53 | BJ105: 10 | BK105: 10 | BS105: 2 | BU105: 70 | CD105: 80 | CE105: 80 | CP105: 16 | CQ105: 16 | CS105: 92 | CY105: =IF(AND(CY104<>1,CY104<>""),IF(INT(CY104/2)=CY104/2,CY104/2,3*CY104+1),"") ->  | CZ105: =IF(AND(CZ104<>1,CZ104<>""),IF(INT(CZ104/2)=CZ104/2,CZ104/2,3*CZ104+1),"") ->  | DA105: =IF(AND(DA104<>1,DA104<>""),IF(INT(DA104/2)=DA104/2,DA104/2,3*DA104+1),"") ->  | DB105: =IF(AND(DB104<>1,DB104<>""),IF(INT(DB104/2)=DB104/2,DB104/2,3*DB104+1),"") ->  | DD105: 106 | DE105: 106 | DF105: 106 | DT105: 20 | DU105: 20 | DV105: =IF(AND(DV104<>1,DV104<>""),IF(INT(DV104/2)=DV104/2,DV104/2,3*DV104+1),"") -> 20 | DW105: =IF(AND(DW104<>1,DW104<>""),IF(INT(DW104/2)=DW104/2,DW104/2,3*DW104+1),"") ->  | DX105: =IF(AND(DX104<>1,DX104<>""),IF(INT(DX104/2)=DX104/2,DX104/2,3*DX104+1),"") ->  | DY105: =IF(AND(DY104<>1,DY104<>""),IF(INT(DY104/2)=DY104/2,DY104/2,3*DY104+1),"") -> 122 | DZ105: =IF(AND(DZ104<>1,DZ104<>""),IF(INT(DZ104/2)=DZ104/2,DZ104/2,3*DZ104+1),"") ->  | EL105: 4 | EM105: 4 | EO105: 23 | EP105: 23 | EQ105: 23 | FH105: 160 | FI105: 160 | FJ105: 160 | FO105: 976 | GF105: 5 | GG105: 5 | GH105: 5 | GK105: 184 | GL105: 184 | GM105: 184 | GQ105: 184 | HF105: 1 | HG105: 1 | HH105: 35 | HJ105: 35 | HL105: 35 | HM105: 35 | HW105: 1300 | IA105: 1300 | IN105: 40 | IP105: 40 | IR105: 40 | IS105: 40
X106: =IF(AND(X105<>1,X105<>""),IF(INT(X105/2)=X105/2,X105/2,3*X105+1),"") ->  | AA106: 80 | AE106: 16 | AO106: 20 | AU106: 4 | BB106: 160 | BC106: 160 | BJ106: 5 | BK106: 5 | BS106: 1 | BU106: 35 | CD106: 40 | CE106: 40 | CP106: 8 | CQ106: 8 | CS106: 46 | DD106: 53 | DE106: 53 | DF106: 53 | DT106: 10 | DU106: 10 | DV106: 10 | DY106: 61 | EL106: 2 | EM106: 2 | EO106: 70 | EP106: 70 | EQ106: 70 | FH106: 80 | FI106: 80 | FJ106: 80 | FO106: 488 | GF106: 16 | GG106: 16 | GH106: 16 | GK106: 92 | GL106: 92 | GM106: 92 | GQ106: 92 | HH106: 106 | HJ106: 106 | HL106: 106 | HM106: 106 | HW106: 650 | IA106: 650 | IN106: 20 | IP106: 20 | IR106: 20 | IS106: 20
AA107: 40 | AE107: 8 | AO107: 10 | AU107: 2 | BB107: 80 | BC107: 80 | BJ107: 16 | BK107: 16 | BU107: 106 | CD107: 20 | CE107: 20 | CP107: 4 | CQ107: 4 | CS107: 23 | DD107: 160 | DE107: 160 | DF107: 160 | DT107: 5 | DU107: 5 | DV107: 5 | DY107: 184 | EL107: 1 | EM107: 1 | EO107: 35 | EP107: 35 | EQ107: 35 | FH107: 40 | FI107: 40 | FJ107: 40 | FO107: 244 | GF107: 8 | GG107: 8 | GH107: 8 | GK107: 46 | GL107: 46 | GM107: 46 | GQ107: 46 | HH107: 53 | HJ107: 53 | HL107: 53 | HM107: 53 | HW107: 325 | IA107: 325 | IN107: 10 | IP107: 10 | IR107: 10 | IS107: 10
AA108: 20 | AE108: 4 | AO108: 5 | AU108: 1 | BB108: 40 | BC108: 40 | BJ108: 8 | BK108: 8 | BU108: 53 | CD108: 10 | CE108: 10 | CP108: 2 | CQ108: 2 | CS108: 70 | DD108: 80 | DE108: 80 | DF108: 80 | DT108: 16 | DU108: 16 | DV108: 16 | DY108: 92 | EO108: 106 | EP108: 106 | EQ108: =IF(AND(EQ107<>1,EQ107<>""),IF(INT(EQ107/2)=EQ107/2,EQ107/2,3*EQ107+1),"") -> 106 | FH108: 20 | FI108: 20 | FJ108: 20 | FO108: 122 | GF108: 4 | GG108: 4 | GH108: 4 | GK108: 23 | GL108: 23 | GM108: 23 | GQ108: 23 | HH108: 160 | HJ108: 160 | HL108: 160 | HM108: 160 | HW108: 976 | IA108: 976 | IN108: 5 | IP108: 5 | IR108: 5 | IS108: 5
AA109: 10 | AE109: 2 | AO109: 16 | BB109: 20 | BC109: 20 | BJ109: 4 | BK109: 4 | BU109: 160 | CD109: 5 | CE109: 5 | CP109: 1 | CQ109: 1 | CS109: 35 | DD109: 40 | DE109: 40 | DF109: 40 | DT109: 8 | DU109: 8 | DV109: 8 | DY109: 46 | EB109: =IF(AND(EB108<>1,EB108<>""),IF(INT(EB108/2)=EB108/2,EB108/2,3*EB108+1),"") ->  | EC109: =IF(AND(EC108<>1,EC108<>""),IF(INT(EC108/2)=EC108/2,EC108/2,3*EC108+1),"") ->  | ED109: =IF(AND(ED108<>1,ED108<>""),IF(INT(ED108/2)=ED108/2,ED108/2,3*ED108+1),"") ->  | EE109: =IF(AND(EE108<>1,EE108<>""),IF(INT(EE108/2)=EE108/2,EE108/2,3*EE108+1),"") ->  | EF109: =IF(AND(EF108<>1,EF108<>""),IF(INT(EF108/2)=EF108/2,EF108/2,3*EF108+1),"") ->  | EG109: =IF(AND(EG108<>1,EG108<>""),IF(INT(EG108/2)=EG108/2,EG108/2,3*EG108+1),"") ->  | EH109: =IF(AND(EH108<>1,EH108<>""),IF(INT(EH108/2)=EH108/2,EH108/2,3*EH108+1),"") ->  | EI109: =IF(AND(EI108<>1,EI108<>""),IF(INT(EI108/2)=EI108/2,EI108/2,3*EI108+1),"") ->  | EJ109: =IF(AND(EJ108<>1,EJ108<>""),IF(INT(EJ108/2)=EJ108/2,EJ108/2,3*EJ108+1),"") ->  | EK109: =IF(AND(EK108<>1,EK108<>""),IF(INT(EK108/2)=EK108/2,EK108/2,3*EK108+1),"") ->  | EL109: =IF(AND(EL108<>1,EL108<>""),IF(INT(EL108/2)=EL108/2,EL108/2,3*EL108+1),"") ->  | EM109: =IF(AND(EM108<>1,EM108<>""),IF(INT(EM108/2)=EM108/2,EM108/2,3*EM108+1),"") ->  | EN109: =IF(AND(EN108<>1,EN108<>""),IF(INT(EN108/2)=EN108/2,EN108/2,3*EN108+1),"") ->  | EO109: =IF(AND(EO108<>1,EO108<>""),IF(INT(EO108/2)=EO108/2,EO108/2,3*EO108+1),"") -> 53 | EP109: =IF(AND(EP108<>1,EP108<>""),IF(INT(EP108/2)=EP108/2,EP108/2,3*EP108+1),"") -> 53 | EQ109: 53 | FH109: 10 | FI109: 10 | FJ109: 10 | FO109: 61 | GF109: 2 | GG109: 2 | GH109: 2 | GK109: 70 | GL109: 70 | GM109: 70 | GQ109: 70 | HH109: 80 | HJ109: 80 | HL109: 80 | HM109: 80 | HW109: 488 | IA109: 488 | IN109: 16 | IP109: 16 | IR109: 16 | IS109: 16
AA110: 5 | AE110: 1 | AO110: 8 | BB110: 10 | BC110: 10 | BJ110: 2 | BK110: 2 | BU110: 80 | CD110: 16 | CE110: 16 | CS110: 106 | DD110: 20 | DE110: 20 | DF110: 20 | DT110: 4 | DU110: 4 | DV110: 4 | DY110: 23 | EO110: 160 | EP110: 160 | EQ110: 160 | FH110: 5 | FI110: 5 | FJ110: 5 | FO110: 184 | GF110: 1 | GG110: 1 | GH110: 1 | GK110: 35 | GL110: 35 | GM110: 35 | GQ110: 35 | HH110: 40 | HJ110: 40 | HL110: 40 | HM110: 40 | HW110: 244 | IA110: 244 | IN110: 8 | IP110: 8 | IR110: 8 | IS110: 8
AA111: 16 | AO111: 4 | BB111: 5 | BC111: 5 | BJ111: 1 | BK111: 1 | BU111: 40 | CD111: 8 | CE111: 8 | CS111: 53 | DD111: 10 | DE111: 10 | DF111: 10 | DT111: 2 | DU111: 2 | DV111: 2 | DY111: 70 | EO111: 80 | EP111: 80 | EQ111: 80 | FH111: 16 | FI111: 16 | FJ111: 16 | FO111: 92 | GK111: 106 | GL111: 106 | GM111: 106 | GQ111: 106 | HH111: 20 | HJ111: 20 | HL111: 20 | HM111: 20 | HW111: 122 | IA111: 122 | IN111: 4 | IP111: 4 | IR111: 4 | IS111: 4
AA112: 8 | AO112: 2 | BB112: 16 | BC112: 16 | BU112: 20 | CD112: 4 | CE112: 4 | CS112: 160 | CX112: =IF(AND(CX111<>1,CX111<>""),IF(INT(CX111/2)=CX111/2,CX111/2,3*CX111+1),"") ->  | DD112: 5 | DE112: 5 | DF112: 5 | DT112: 1 | DU112: 1 | DV112: 1 | DY112: 35 | EO112: 40 | EP112: 40 | EQ112: 40 | FH112: 8 | FI112: 8 | FJ112: 8 | FO112: 46 | GK112: 53 | GL112: 53 | GM112: 53 | GQ112: 53 | HH112: 10 | HJ112: 10 | HL112: 10 | HM112: 10 | HW112: 61 | IA112: 61 | IN112: 2 | IP112: 2 | IR112: 2 | IS112: 2
AA113: 4 | AO113: 1 | BB113: 8 | BC113: 8 | BU113: 10 | CD113: 2 | CE113: 2 | CI113: =IF(AND(CI112<>1,CI112<>""),IF(INT(CI112/2)=CI112/2,CI112/2,3*CI112+1),"") ->  | CP113: =IF(AND(CP112<>1,CP112<>""),IF(INT(CP112/2)=CP112/2,CP112/2,3*CP112+1),"") ->  | CS113: 80 | DD113: 16 | DE113: 16 | DF113: 16 | DY113: 106 | EO113: 20 | EP113: 20 | EQ113: 20 | FH113: 4 | FI113: 4 | FJ113: 4 | FO113: 23 | GK113: 160 | GL113: 160 | GM113: 160 | GQ113: 160 | HH113: 5 | HJ113: 5 | HL113: 5 | HM113: 5 | HW113: 184 | IA113: 184 | IN113: 1 | IP113: 1 | IR113: 1 | IS113: 1
AA114: 2 | BB114: 4 | BC114: 4 | BU114: 5 | CD114: 1 | CE114: 1 | CS114: 40 | DD114: 8 | DE114: 8 | DF114: 8 | DY114: 53 | EO114: 10 | EP114: 10 | EQ114: 10 | FH114: 2 | FI114: 2 | FJ114: 2 | FO114: 70 | GK114: 80 | GL114: 80 | GM114: 80 | GQ114: 80 | HH114: 16 | HJ114: 16 | HL114: 16 | HM114: 16 | HW114: 92 | IA114: 92
AA115: 1 | BB115: 2 | BC115: 2 | BU115: 16 | CS115: 20 | DD115: 4 | DE115: 4 | DF115: 4 | DY115: 160 | EO115: 5 | EP115: 5 | EQ115: 5 | FF115: =IF(AND(FF114<>1,FF114<>""),IF(INT(FF114/2)=FF114/2,FF114/2,3*FF114+1),"") ->  | FH115: 1 | FI115: 1 | FJ115: 1 | FO115: 35 | FV115: =IF(AND(FV114<>1,FV114<>""),IF(INT(FV114/2)=FV114/2,FV114/2,3*FV114+1),"") ->  | GK115: 40 | GL115: =IF(AND(GL114<>1,GL114<>""),IF(INT(GL114/2)=GL114/2,GL114/2,3*GL114+1),"") -> 40 | GM115: 40 | GQ115: 40 | HB115: =IF(AND(HB114<>1,HB114<>""),IF(INT(HB114/2)=HB114/2,HB114/2,3*HB114+1),"") ->  | HH115: 8 | HJ115: 8 | HL115: 8 | HM115: 8 | HR115: =IF(AND(HR114<>1,HR114<>""),IF(INT(HR114/2)=HR114/2,HR114/2,3*HR114+1),"") ->  | HW115: 46 | IA115: =IF(AND(IA114<>1,IA114<>""),IF(INT(IA114/2)=IA114/2,IA114/2,3*IA114+1),"") -> 46 | IB115: =IF(AND(IB114<>1,IB114<>""),IF(INT(IB114/2)=IB114/2,IB114/2,3*IB114+1),"") ->  | IC115: =IF(AND(IC114<>1,IC114<>""),IF(INT(IC114/2)=IC114/2,IC114/2,3*IC114+1),"") ->  | IF115: =IF(AND(IF114<>1,IF114<>""),IF(INT(IF114/2)=IF114/2,IF114/2,3*IF114+1),"") ->  | IG115: =IF(AND(IG114<>1,IG114<>""),IF(INT(IG114/2)=IG114/2,IG114/2,3*IG114+1),"") ->  | IH115: =IF(AND(IH114<>1,IH114<>""),IF(INT(IH114/2)=IH114/2,IH114/2,3*IH114+1),"") ->  | II115: =IF(AND(II114<>1,II114<>""),IF(INT(II114/2)=II114/2,II114/2,3*II114+1),"") ->  | IJ115: =IF(AND(IJ114<>1,IJ114<>""),IF(INT(IJ114/2)=IJ114/2,IJ114/2,3*IJ114+1),"") -> 
BB116: 1 | BC116: 1 | BU116: 8 | CC116: =IF(AND(CC115<>1,CC115<>""),IF(INT(CC115/2)=CC115/2,CC115/2,3*CC115+1),"") ->  | CD116: =IF(AND(CD115<>1,CD115<>""),IF(INT(CD115/2)=CD115/2,CD115/2,3*CD115+1),"") ->  | CE116: =IF(AND(CE115<>1,CE115<>""),IF(INT(CE115/2)=CE115/2,CE115/2,3*CE115+1),"") ->  | CS116: 10 | DD116: 2 | DE116: 2 | DF116: 2 | DO116: =IF(AND(DO115<>1,DO115<>""),IF(INT(DO115/2)=DO115/2,DO115/2,3*DO115+1),"") ->  | DP116: =IF(AND(DP115<>1,DP115<>""),IF(INT(DP115/2)=DP115/2,DP115/2,3*DP115+1),"") ->  | DQ116: =IF(AND(DQ115<>1,DQ115<>""),IF(INT(DQ115/2)=DQ115/2,DQ115/2,3*DQ115+1),"") ->  | DR116: =IF(AND(DR115<>1,DR115<>""),IF(INT(DR115/2)=DR115/2,DR115/2,3*DR115+1),"") ->  | DS116: =IF(AND(DS115<>1,DS115<>""),IF(INT(DS115/2)=DS115/2,DS115/2,3*DS115+1),"") ->  | DT116: =IF(AND(DT115<>1,DT115<>""),IF(INT(DT115/2)=DT115/2,DT115/2,3*DT115+1),"") ->  | DU116: =IF(AND(DU115<>1,DU115<>""),IF(INT(DU115/2)=DU115/2,DU115/2,3*DU115+1),"") ->  | DY116: 80 | EO116: 16 | EP116: 16 | EQ116: 16 | FO116: 106 | GK116: 20 | GL116: 20 | GM116: 20 | GQ116: 20 | HH116: 4 | HJ116: 4 | HL116: 4 | HM116: 4 | HW116: 23 | IA116: 23 | IT116: =IF(AND(IT115<>1,IT115<>""),IF(INT(IT115/2)=IT115/2,IT115/2,3*IT115+1),"") -> 
AI117: =IF(AND(AI116<>1,AI116<>""),IF(INT(AI116/2)=AI116/2,AI116/2,3*AI116+1),"") ->  | AJ117: =IF(AND(AJ116<>1,AJ116<>""),IF(INT(AJ116/2)=AJ116/2,AJ116/2,3*AJ116+1),"") ->  | AK117: =IF(AND(AK116<>1,AK116<>""),IF(INT(AK116/2)=AK116/2,AK116/2,3*AK116+1),"") ->  | AL117: =IF(AND(AL116<>1,AL116<>""),IF(INT(AL116/2)=AL116/2,AL116/2,3*AL116+1),"") ->  | AM117: =IF(AND(AM116<>1,AM116<>""),IF(INT(AM116/2)=AM116/2,AM116/2,3*AM116+1),"") ->  | AN117: =IF(AND(AN116<>1,AN116<>""),IF(INT(AN116/2)=AN116/2,AN116/2,3*AN116+1),"") ->  | AO117: =IF(AND(AO116<>1,AO116<>""),IF(INT(AO116/2)=AO116/2,AO116/2,3*AO116+1),"") ->  | AP117: =IF(AND(AP116<>1,AP116<>""),IF(INT(AP116/2)=AP116/2,AP116/2,3*AP116+1),"") ->  | AQ117: =IF(AND(AQ116<>1,AQ116<>""),IF(INT(AQ116/2)=AQ116/2,AQ116/2,3*AQ116+1),"") ->  | AR117: =IF(AND(AR116<>1,AR116<>""),IF(INT(AR116/2)=AR116/2,AR116/2,3*AR116+1),"") ->  | AS117: =IF(AND(AS116<>1,AS116<>""),IF(INT(AS116/2)=AS116/2,AS116/2,3*AS116+1),"") ->  | AT117: =IF(AND(AT116<>1,AT116<>""),IF(INT(AT116/2)=AT116/2,AT116/2,3*AT116+1),"") ->  | AU117: =IF(AND(AU116<>1,AU116<>""),IF(INT(AU116/2)=AU116/2,AU116/2,3*AU116+1),"") ->  | AV117: =IF(AND(AV116<>1,AV116<>""),IF(INT(AV116/2)=AV116/2,AV116/2,3*AV116+1),"") ->  | AW117: =IF(AND(AW116<>1,AW116<>""),IF(INT(AW116/2)=AW116/2,AW116/2,3*AW116+1),"") ->  | BU117: 4 | CS117: 5 | DD117: 1 | DE117: 1 | DF117: 1 | DY117: 40 | EO117: 8 | EP117: 8 | EQ117: 8 | FO117: 53 | GK117: 10 | GL117: 10 | GM117: 10 | GQ117: 10 | HH117: 2 | HJ117: 2 | HL117: 2 | HM117: 2 | HW117: 70 | IA117: 70 | IN117: =IF(AND(IN116<>1,IN116<>""),IF(INT(IN116/2)=IN116/2,IN116/2,3*IN116+1),"") -> 
BU118: 2 | CS118: 16 | DY118: 20 | EO118: 4 | EP118: 4 | EQ118: 4 | FO118: 160 | GK118: 5 | GL118: 5 | GM118: 5 | GQ118: 5 | HH118: 1 | HJ118: 1 | HL118: 1 | HM118: 1 | HW118: 35 | IA118: 35 | IK118: =IF(AND(IK117<>1,IK117<>""),IF(INT(IK117/2)=IK117/2,IK117/2,3*IK117+1),"") ->  | IL118: =IF(AND(IL117<>1,IL117<>""),IF(INT(IL117/2)=IL117/2,IL117/2,3*IL117+1),"") ->  | IM118: =IF(AND(IM117<>1,IM117<>""),IF(INT(IM117/2)=IM117/2,IM117/2,3*IM117+1),"") -> 
BU119: 1 | BZ119: =IF(AND(BZ118<>1,BZ118<>""),IF(INT(BZ118/2)=BZ118/2,BZ118/2,3*BZ118+1),"") ->  | CI119: =IF(AND(CI118<>1,CI118<>""),IF(INT(CI118/2)=CI118/2,CI118/2,3*CI118+1),"") ->  | CJ119: =IF(AND(CJ118<>1,CJ118<>""),IF(INT(CJ118/2)=CJ118/2,CJ118/2,3*CJ118+1),"") ->  | CK119: =IF(AND(CK118<>1,CK118<>""),IF(INT(CK118/2)=CK118/2,CK118/2,3*CK118+1),"") ->  | CL119: =IF(AND(CL118<>1,CL118<>""),IF(INT(CL118/2)=CL118/2,CL118/2,3*CL118+1),"") ->  | CM119: =IF(AND(CM118<>1,CM118<>""),IF(INT(CM118/2)=CM118/2,CM118/2,3*CM118+1),"") ->  | CN119: =IF(AND(CN118<>1,CN118<>""),IF(INT(CN118/2)=CN118/2,CN118/2,3*CN118+1),"") ->  | CS119: 8 | DY119: 10 | EO119: 2 | EP119: 2 | EQ119: 2 | FO119: 80 | GK119: 16 | GL119: 16 | GM119: 16 | GQ119: 16 | HW119: 106 | IA119: 106
M120: =IF(AND(M119<>1,M119<>""),IF(INT(M119/2)=M119/2,M119/2,3*M119+1),"") ->  | BX120: =IF(AND(BX119<>1,BX119<>""),IF(INT(BX119/2)=BX119/2,BX119/2,3*BX119+1),"") ->  | BY120: =IF(AND(BY119<>1,BY119<>""),IF(INT(BY119/2)=BY119/2,BY119/2,3*BY119+1),"") ->  | CS120: 4 | DY120: 5 | EO120: 1 | EP120: 1 | EQ120: 1 | FO120: 40 | GK120: 8 | GL120: 8 | GM120: 8 | GQ120: 8 | HW120: 53 | IA120: 53
BM121: =IF(AND(BM120<>1,BM120<>""),IF(INT(BM120/2)=BM120/2,BM120/2,3*BM120+1),"") ->  | CS121: 2 | DY121: 16 | EA121: =IF(AND(EA120<>1,EA120<>""),IF(INT(EA120/2)=EA120/2,EA120/2,3*EA120+1),"") ->  | FO121: 20 | GK121: 4 | GL121: 4 | GM121: 4 | GQ121: 4 | HW121: 160 | IA121: 160
CS122: 1 | DY122: 8 | FO122: 10 | GK122: 2 | GL122: 2 | GM122: 2 | GQ122: 2 | HW122: 80 | IA122: 80
DY123: 4 | EB123: =IF(AND(EB122<>1,EB122<>""),IF(INT(EB122/2)=EB122/2,EB122/2,3*EB122+1),"") ->  | EC123: =IF(AND(EC122<>1,EC122<>""),IF(INT(EC122/2)=EC122/2,EC122/2,3*EC122+1),"") ->  | ED123: =IF(AND(ED122<>1,ED122<>""),IF(INT(ED122/2)=ED122/2,ED122/2,3*ED122+1),"") ->  | EE123: =IF(AND(EE122<>1,EE122<>""),IF(INT(EE122/2)=EE122/2,EE122/2,3*EE122+1),"") ->  | EF123: =IF(AND(EF122<>1,EF122<>""),IF(INT(EF122/2)=EF122/2,EF122/2,3*EF122+1),"") ->  | EG123: =IF(AND(EG122<>1,EG122<>""),IF(INT(EG122/2)=EG122/2,EG122/2,3*EG122+1),"") ->  | EH123: =IF(AND(EH122<>1,EH122<>""),IF(INT(EH122/2)=EH122/2,EH122/2,3*EH122+1),"") ->  | EI123: =IF(AND(EI122<>1,EI122<>""),IF(INT(EI122/2)=EI122/2,EI122/2,3*EI122+1),"") ->  | EJ123: =IF(AND(EJ122<>1,EJ122<>""),IF(INT(EJ122/2)=EJ122/2,EJ122/2,3*EJ122+1),"") ->  | EK123: =IF(AND(EK122<>1,EK122<>""),IF(INT(EK122/2)=EK122/2,EK122/2,3*EK122+1),"") ->  | EL123: =IF(AND(EL122<>1,EL122<>""),IF(INT(EL122/2)=EL122/2,EL122/2,3*EL122+1),"") ->  | FO123: 5 | GK123: 1 | GL123: 1 | GM123: 1 | GQ123: 1 | HW123: 40 | IA123: 40
DY124: 2 | FO124: 16 | HW124: 20 | IA124: 20
DY125: 1 | FO125: 8 | HW125: 10 | IA125: 10
FO126: 4 | HW126: 5 | IA126: 5
FO127: 2 | HW127: 16 | IA127: 16
FO128: 1 | HW128: 8 | IA128: 8
AH129: =IF(AND(AH128<>1,AH128<>""),IF(INT(AH128/2)=AH128/2,AH128/2,3*AH128+1),"") ->  | AW129: =IF(AND(AW128<>1,AW128<>""),IF(INT(AW128/2)=AW128/2,AW128/2,3*AW128+1),"") ->  | HW129: 4 | IA129: 4
H130: =IF(AND(H129<>1,H129<>""),IF(INT(H129/2)=H129/2,H129/2,3*H129+1),"") ->  | AW130: =IF(AND(AW129<>1,AW129<>""),IF(INT(AW129/2)=AW129/2,AW129/2,3*AW129+1),"") ->  | FC130: =IF(AND(FC129<>1,FC129<>""),IF(INT(FC129/2)=FC129/2,FC129/2,3*FC129+1),"") ->  | HW130: 2 | IA130: 2
B131: =IF(AND(B130<>1,B130<>""),IF(INT(B130/2)=B130/2,B130/2,3*B130+1),"") ->  | AW131: =IF(AND(AW130<>1,AW130<>""),IF(INT(AW130/2)=AW130/2,AW130/2,3*AW130+1),"") ->  | AX131: =IF(AND(AX130<>1,AX130<>""),IF(INT(AX130/2)=AX130/2,AX130/2,3*AX130+1),"") ->  | ER131: =IF(AND(ER130<>1,ER130<>""),IF(INT(ER130/2)=ER130/2,ER130/2,3*ER130+1),"") ->  | FP131: =IF(AND(FP130<>1,FP130<>""),IF(INT(FP130/2)=FP130/2,FP130/2,3*FP130+1),"") ->  | GF131: =IF(AND(GF130<>1,GF130<>""),IF(INT(GF130/2)=GF130/2,GF130/2,3*GF130+1),"") ->  | GV131: =IF(AND(GV130<>1,GV130<>""),IF(INT(GV130/2)=GV130/2,GV130/2,3*GV130+1),"") ->  | HL131: =IF(AND(HL130<>1,HL130<>""),IF(INT(HL130/2)=HL130/2,HL130/2,3*HL130+1),"") ->  | HW131: 1 | IA131: 1 | ID131: =IF(AND(ID130<>1,ID130<>""),IF(INT(ID130/2)=ID130/2,ID130/2,3*ID130+1),"") ->  | IE131: =IF(AND(IE130<>1,IE130<>""),IF(INT(IE130/2)=IE130/2,IE130/2,3*IE130+1),"") -> 
AW132: =IF(AND(AW131<>1,AW131<>""),IF(INT(AW131/2)=AW131/2,AW131/2,3*AW131+1),"") ->  | CI132: =IF(AND(CI131<>1,CI131<>""),IF(INT(CI131/2)=CI131/2,CI131/2,3*CI131+1),"") ->  | CJ132: =IF(AND(CJ131<>1,CJ131<>""),IF(INT(CJ131/2)=CJ131/2,CJ131/2,3*CJ131+1),"") ->  | CK132: =IF(AND(CK131<>1,CK131<>""),IF(INT(CK131/2)=CK131/2,CK131/2,3*CK131+1),"") ->  | CM132: =IF(AND(CM131<>1,CM131<>""),IF(INT(CM131/2)=CM131/2,CM131/2,3*CM131+1),"") -> 
BV133: =IF(AND(BV132<>1,BV132<>""),IF(INT(BV132/2)=BV132/2,BV132/2,3*BV132+1),"") ->  | CH133: =IF(AND(CH132<>1,CH132<>""),IF(INT(CH132/2)=CH132/2,CH132/2,3*CH132+1),"") ->  | CN133: =IF(AND(CN132<>1,CN132<>""),IF(INT(CN132/2)=CN132/2,CN132/2,3*CN132+1),"") ->  | DB133: =IF(AND(DB132<>1,DB132<>""),IF(INT(DB132/2)=DB132/2,DB132/2,3*DB132+1),"") ->  | DR133: =IF(AND(DR132<>1,DR132<>""),IF(INT(DR132/2)=DR132/2,DR132/2,3*DR132+1),"") ->  | EL133: =IF(AND(EL132<>1,EL132<>""),IF(INT(EL132/2)=EL132/2,EL132/2,3*EL132+1),"") ->  | FC133: =IF(AND(FC132<>1,FC132<>""),IF(INT(FC132/2)=FC132/2,FC132/2,3*FC132+1),"") ->  | IN133: =IF(AND(IN132<>1,IN132<>""),IF(INT(IN132/2)=IN132/2,IN132/2,3*IN132+1),"") -> 
AA134: =IF(AND(AA133<>1,AA133<>""),IF(INT(AA133/2)=AA133/2,AA133/2,3*AA133+1),"") ->  | AX134: =IF(AND(AX133<>1,AX133<>""),IF(INT(AX133/2)=AX133/2,AX133/2,3*AX133+1),"") ->  | BV134: =IF(AND(BV133<>1,BV133<>""),IF(INT(BV133/2)=BV133/2,BV133/2,3*BV133+1),"") ->  | CC134: =IF(AND(CC133<>1,CC133<>""),IF(INT(CC133/2)=CC133/2,CC133/2,3*CC133+1),"") ->  | DL134: =IF(AND(DL133<>1,DL133<>""),IF(INT(DL133/2)=DL133/2,DL133/2,3*DL133+1),"") ->  | EB134: =IF(AND(EB133<>1,EB133<>""),IF(INT(EB133/2)=EB133/2,EB133/2,3*EB133+1),"") -> 
BV135: =IF(AND(BV134<>1,BV134<>""),IF(INT(BV134/2)=BV134/2,BV134/2,3*BV134+1),"") ->  | DC135: =IF(AND(DC134<>1,DC134<>""),IF(INT(DC134/2)=DC134/2,DC134/2,3*DC134+1),"") -> 
BV136: =IF(AND(BV135<>1,BV135<>""),IF(INT(BV135/2)=BV135/2,BV135/2,3*BV135+1),"") -> 
T137: =IF(AND(T136<>1,T136<>""),IF(INT(T136/2)=T136/2,T136/2,3*T136+1),"") ->  | BV137: =IF(AND(BV136<>1,BV136<>""),IF(INT(BV136/2)=BV136/2,BV136/2,3*BV136+1),"") ->  | CB137: =IF(AND(CB136<>1,CB136<>""),IF(INT(CB136/2)=CB136/2,CB136/2,3*CB136+1),"") ->  | EB137: =IF(AND(EB136<>1,EB136<>""),IF(INT(EB136/2)=EB136/2,EB136/2,3*EB136+1),"") ->  | EC137: =IF(AND(EC136<>1,EC136<>""),IF(INT(EC136/2)=EC136/2,EC136/2,3*EC136+1),"") ->  | ED137: =IF(AND(ED136<>1,ED136<>""),IF(INT(ED136/2)=ED136/2,ED136/2,3*ED136+1),"") ->  | EE137: =IF(AND(EE136<>1,EE136<>""),IF(INT(EE136/2)=EE136/2,EE136/2,3*EE136+1),"") -> 

Sheet durée et altitude
C1: Durée et altitude des vols des entiers n compris entre 2 et 8000
A3: n | B3: durée du vol | C3: altitude du vol
A4: 2 | B4: =durée(A4) -> 1 | C4: =altitude(A4) -> 2
A5: 3 | B5: =durée(A5) -> 7 | C5: =altitude(A5) -> 16
A6: 4 | B6: 2 | C6: 4
A7: 5 | B7: 5 | C7: 16
A8: 6 | B8: 8 | C8: 16
A9: 7 | B9: 16 | C9: 52
A10: 8 | B10: 3 | C10: 8
A11: 9 | B11: 19 | C11: 52
A12: 10 | B12: 6 | C12: 16
A13: 11 | B13: 14 | C13: 52
A14: 12 | B14: 9 | C14: 16
A15: 13 | B15: 9 | C15: 40
A16: 14 | B16: 17 | C16: 52
A17: 15 | B17: =durée(A17) -> 17 | C17: 160
A18: 16 | B18: 4 | C18: 16
A19: 17 | B19: 12 | C19: 52
A20: 18 | B20: 20 | C20: 52
A21: 19 | B21: 20 | C21: 88
A22: 20 | B22: 7 | C22: 20
A23: 21 | B23: 7 | C23: 64
A24: 22 | B24: 15 | C24: 52
A25: 23 | B25: 15 | C25: 160
A26: 24 | B26: 10 | C26: =altitude(A26) -> 24
A27: 25 | B27: 23 | C27: 88
A28: 26 | B28: 10 | C28: 40
A29: 27 | B29: 111 | C29: 9232
A30: 28 | B30: 18 | C30: 52
A31: 29 | B31: 18 | C31: 88
A32: 30 | B32: 18 | C32: 160
A33: 31 | B33: 106 | C33: 9232
A34: 32 | B34: 5 | C34: 32
A35: 33 | B35: 26 | C35: 100
A36: 34 | B36: 13 | C36: 52
A37: 35 | B37: 13 | C37: 160
A38: 36 | B38: 21 | C38: 52
A39: 37 | B39: 21 | C39: 112
A40: 38 | B40: 21 | C40: 88
A41: 39 | B41: 34 | C41: 304
A42: 40 | B42: 8 | C42: 40
A43: 41 | B43: 109 | C43: 9232
A44: 42 | B44: 8 | C44: 64
A45: 43 | B45: 29 | C45: 196
A46: 44 | B46: 16 | C46: 52
A47: 45 | B47: 16 | C47: 136
A48: 46 | B48: 16 | C48: 160
A49: 47 | B49: 104 | C49: 9232
A50: 48 | B50: 11 | C50: 48
A51: 49 | B51: 24 | C51: 148
A52: 50 | B52: 24 | C52: 88
A53: 51 | B53: 24 | C53: 232
A54: 52 | B54: 11 | C54: 52
A55: 53 | B55: 11 | C55: 160
A56: 54 | B56: 112 | C56: 9232
A57: 55 | B57: 112 | C57: 9232
A58: 56 | B58: 19 | C58: 56
A59: 57 | B59: 32 | C59: 196
A60: 58 | B60: 19 | C60: 88
A61: 59 | B61: 32 | C61: 304
A62: 60 | B62: 19 | C62: 160
A63: 61 | B63: 19 | C63: 184
A64: 62 | B64: 107 | C64: 9232
A65: 63 | B65: 107 | C65: 9232
A66: 64 | B66: 6 | C66: 64
A67: 65 | B67: 27 | C67: 196
A68: 66 | B68: 27 | C68: 100
A69: 67 | B69: =durée(A69) -> 27 | C69: 304
A70: 68 | B70: 14 | C70: 68
A71: 69 | B71: 14 | C71: 208
A72: 70 | B72: 14 | C72: 160
A73: 71 | B73: 102 | C73: 9232
A74: 72 | B74: 22 | C74: 72
A75: 73 | B75: 115 | C75: 9232
A76: 74 | B76: 22 | C76: 112
A77: 75 | B77: 14 | C77: 340
A78: 76 | B78: 22 | C78: 88
A79: 77 | B79: 22 | C79: 232
A80: 78 | B80: 35 | C80: 304
A81: 79 | B81: 35 | C81: 808
A82: 80 | B82: 9 | C82: 80
A83: 81 | B83: 22 | C83: 244
A84: 82 | B84: 110 | C84: 9232
A85: 83 | B85: 110 | C85: 9232
A86: 84 | B86: 9 | C86: 84
A87: 85 | B87: 9 | C87: 256
A88: 86 | B88: 30 | C88: 196
A89: 87 | B89: 30 | C89: 592
A90: 88 | B90: 17 | C90: =altitude(A90) -> 88
A91: 89 | B91: 30 | C91: 304
A92: 90 | B92: 17 | C92: 136
A93: 91 | B93: 92 | C93: 9232
A94: 92 | B94: 17 | C94: 160
A95: 93 | B95: 17 | C95: 280
A96: 94 | B96: 105 | C96: 9232
A97: 95 | B97: 105 | C97: 9232
A98: 96 | B98: 12 | C98: 96
A99: 97 | B99: 118 | C99: 9232
A100: 98 | B100: 25 | C100: 148
A101: 99 | B101: 25 | C101: 448
A102: 100 | B102: 25 | C102: =altitude(A102) -> 100
A103: 101 | B103: 25 | C103: =altitude(A103) -> 304
A104: 102 | B104: 25 | C104: =altitude(A104) -> 232
A105: 103 | B105: 87 | C105: 9232
A106: 104 | B106: 12 | C106: 104
A107: 105 | B107: 38 | C107: 808
A108: 106 | B108: 12 | C108: 160
A109: 107 | B109: 100 | C109: 9232
A110: 108 | B110: 113 | C110: 9232
A111: 109 | B111: 113 | C111: 9232
A112: 110 | B112: 113 | C112: 9232
A113: 111 | B113: 69 | C113: 9232
A114: 112 | B114: 20 | C114: 112
A115: 113 | B115: 12 | C115: 340
A116: 114 | B116: 33 | C116: 196
A117: 115 | B117: 33 | C117: 520
A118: 116 | B118: 20 | C118: 116
A119: 117 | B119: 20 | C119: 352
A120: 118 | B120: 33 | C120: 304
A121: 119 | B121: 33 | C121: =altitude(A121) -> 808
A122: 120 | B122: 20 | C122: 160
A123: 121 | B123: 95 | C123: 9232
A124: 122 | B124: 20 | C124: 184
A125: 123 | B125: 46 | C125: 628
A126: 124 | B126: 108 | C126: 9232
A127: 125 | B127: 108 | C127: 9232
A128: 126 | B128: 108 | C128: 9232
A129: 127 | B129: 46 | C129: 4372
A130: 128 | B130: 7 | C130: 128
A131: 129 | B131: 121 | C131: 9232
A132: 130 | B132: 28 | C132: 196
A133: 131 | B133: =durée(A133) -> 28 | C133: 592
A134: 132 | B134: 28 | C134: 132
A135: 133 | B135: 28 | C135: 400
A136: 134 | B136: 28 | C136: 304
A137: 135 | B137: 41 | C137: 916
A138: 136 | B138: 15 | C138: 136
A139: 137 | B139: 90 | C139: 9232
A140: 138 | B140: 15 | C140: 208
A141: 139 | B141: 41 | C141: 628
A142: 140 | B142: 15 | C142: 160
A143: 141 | B143: 15 | C143: 424
A144: 142 | B144: 103 | C144: 9232
A145: 143 | B145: 103 | C145: 9232
A146: 144 | B146: 23 | C146: 144
A147: 145 | B147: 116 | C147: 9232
A148: 146 | B148: 116 | C148: 9232
A149: 147 | B149: 116 | C149: 9232
A150: 148 | B150: 23 | C150: 148
A151: 149 | B151: 23 | C151: 448
A152: 150 | B152: 15 | C152: 340
A153: 151 | B153: 15 | C153: 1024
A154: 152 | B154: 23 | C154: 152
A155: 153 | B155: 36 | C155: 520
A156: 154 | B156: 23 | C156: 232
A157: 155 | B157: 85 | C157: 9232
A158: 156 | B158: 36 | C158: 304
A159: 157 | B159: 36 | C159: 472
A160: 158 | B160: 36 | C160: 808
A161: 159 | B161: 54 | C161: 9232
A162: 160 | B162: 10 | C162: 160
A163: 161 | B163: 98 | C163: 9232
A164: 162 | B164: 23 | C164: 244
A165: 163 | B165: 23 | C165: 736
A166: 164 | B166: 111 | C166: 9232
A167: 165 | B167: 111 | C167: 9232
A168: 166 | B168: 111 | C168: 9232
A169: 167 | B169: 67 | C169: 9232
A170: 168 | B170: 10 | C170: 168
A171: 169 | B171: 49 | C171: 4372
A172: 170 | B172: 10 | C172: 256
A173: 171 | B173: 124 | C173: 9232
A174: 172 | B174: 31 | C174: 196
A175: 173 | B175: 31 | C175: 520
A176: 174 | B176: 31 | C176: 592
A177: 175 | B177: 80 | C177: 9232
A178: 176 | B178: 18 | C178: 176
A179: 177 | B179: 31 | C179: 532
A180: 178 | B180: 31 | C180: 304
A181: 179 | B181: 31 | C181: 808
A182: 180 | B182: 18 | C182: 180
A183: 181 | B183: 18 | C183: 544
A184: 182 | B184: 93 | C184: 9232
A185: 183 | B185: 93 | C185: =altitude(A185) -> 9232
A186: 184 | B186: 18 | C186: 184
A187: 185 | B187: 44 | C187: 628
A188: 186 | B188: 18 | C188: 280
A189: 187 | B189: 44 | C189: 952
A190: 188 | B190: 106 | C190: 9232
A191: 189 | B191: 106 | C191: 9232
A192: 190 | B192: 106 | C192: 9232
A193: 191 | B193: 44 | C193: 4372
A194: 192 | B194: 13 | C194: 192
A195: 193 | B195: 119 | C195: 9232
A196: 194 | B196: 119 | C196: 9232
A197: 195 | B197: =durée(A197) -> 119 | C197: 9232
A198: 196 | B198: 26 | C198: 196
A199: 197 | B199: 26 | C199: 592
A200: 198 | B200: 26 | C200: 448
A201: 199 | B201: 119 | C201: 9232
... 7801 more rows
